{"text_format":"1","workbook":"xlsx","n_sheets":4,"sheets":["INTRODUCCIÓN","CUESTIONARIO SIN-DME","BD-SINDME","Hoja2"],"not_rendered":{"charts":0,"images":16,"macros":0,"external_links":0,"defined_names":25,"comments":0,"pivot_tables":0},"unopened":[],"bounds":{"document_bytes":16777216,"sheet_cells":100000,"rows_first":2000,"rows_last":500,"rows_between":2000,"halvings":0,"cell_chars":16384,"cell_head_chars":4096},"cells_cut":0,"cells_raw":0,"read":"whole","date_system":"1900"}

{"sheet":"INTRODUCCIÓN","index":0,"n_rows":11,"n_cols":2,"rows_kept":11,"cut":false,"hidden":false,"merged":[[8,1,8,5],[10,1,27,5]]}
[]
[]
[]
[]
[]
[]
[]
[]
[null,"SIN-DME CUESTIONARIO DE SÍNTOMAS MÚSCULO ESQUELÉTICOS"]
[]
[null,"El cuestionario de sintomatología SIN-DME, es una prueba tamiz que tiene como objetivo recolectar información sobre la presencia de síntomas relacionados con Desórdenes Músculo Esqueléticos en la población trabajadora de una empresa u organización productiva.\nEl cuestionario se divide en cuatro dominios:      \n\na. Información personal. \nEn la cual se recoleta información del trabajador y el cargo ocupado.\nb. Hábitos. \nSe indaga sobre los hábitos individuales: consumo de tabaco y actividad física.\nc. Trabajo. \nTiene como finalidad identificar la exposición laboral a posibles eventos generadores de DME.\nd. Estado de salud. \nSe utiliza un gráfico que permite a través de la codificación visual, identificar las zonas del cuerpo donde se presentan diferentes síntomas asociados con DME. Se le pide al trabajador que IDENTIFIQUE la parte del cuerpo en donde ha presentado dolor o molestias. Luego se pregunta sobre la duración del mismo y sobre la intensidad del tipo de dolor identificado, finalmente se indaga sobre la interferencia de los síntomas en las actividades desarrolladas por el trabajador.\n\n\n"]

{"sheet":"CUESTIONARIO SIN-DME","index":1,"n_rows":182,"n_cols":8,"rows_kept":182,"cut":false,"hidden":false,"merged":[[0,0,4,7],[30,0,30,2],[14,5,14,6],[17,5,17,7],[18,0,18,4],[19,0,19,4],[28,3,28,5],[28,6,28,7],[172,1,172,5],[172,6,172,7],[36,4,36,7],[45,0,45,7],[47,0,47,7],[40,0,40,7],[41,0,41,7],[42,0,42,7],[44,0,44,7],[48,0,48,7],[46,0,46,7],[37,0,38,0],[37,1,38,1],[37,2,38,3],[37,4,37,7],[38,4,38,7],[14,0,14,2],[173,1,173,5],[173,6,173,7],[180,1,180,5],[180,6,180,7],[181,1,181,5],[181,6,181,7],[97,1,97,5],[97,6,97,7],[98,1,98,5],[98,6,98,7],[108,1,108,5],[108,6,108,7],[109,1,109,5],[109,6,109,7],[124,1,124,5],[124,6,124,7],[118,0,118,7],[115,1,115,5],[115,6,115,7],[116,1,116,5],[111,4,111,7],[112,4,112,7],[113,1,113,3],[113,4,113,5],[14,3,14,4],[7,4,7,5],[23,5,23,6],[24,0,24,1],[24,2,24,4],[25,2,25,4],[24,5,24,6],[20,0,20,7],[25,5,25,6],[22,0,23,2],[21,0,21,7],[22,3,22,4],[22,5,22,6],[16,5,16,7],[8,0,8,7],[9,0,9,7],[16,0,16,2],[16,3,16,4],[15,0,15,2],[15,5,15,6],[6,4,6,5],[5,0,5,7],[6,0,7,2],[6,6,6,7],[7,6,7,7],[10,0,10,7],[12,0,13,2],[11,0,11,7],[12,3,12,4],[12,5,12,7],[13,3,13,4],[13,5,13,7],[78,6,78,7],[79,1,79,3],[79,4,79,5],[79,6,79,7],[80,1,80,5],[80,6,80,7],[60,0,66,0],[68,0,74,0],[68,1,68,3],[68,4,68,7],[69,4,69,7],[75,0,75,7],[76,0,82,0],[76,1,76,3],[61,4,61,7],[60,4,60,7],[62,6,62,7],[76,4,76,7],[77,4,77,7],[78,1,78,3],[78,4,78,5],[26,0,26,7],[63,4,63,5],[63,6,63,7],[70,1,70,3],[70,4,70,5],[70,6,70,7],[71,1,71,3],[71,4,71,5],[30,3,30,7],[31,3,31,7],[55,0,55,7],[29,3,29,5],[29,6,29,7],[31,0,31,2],[34,0,35,2],[34,3,34,7],[35,3,35,4],[35,5,35,6],[32,0,32,7],[28,0,29,2],[49,0,49,7],[43,0,43,7],[36,0,36,3],[56,0,58,2],[56,3,58,7],[60,1,60,3],[62,1,62,3],[63,1,63,3],[62,4,62,5],[95,4,95,5],[95,6,95,7],[64,1,64,5],[64,6,64,7],[73,1,73,5],[73,6,73,7],[74,1,74,5],[74,6,74,7],[65,1,65,5],[65,6,65,7],[66,1,66,5],[66,6,66,7],[81,1,81,5],[81,6,81,7],[82,1,82,5],[82,6,82,7],[89,1,89,5],[89,6,89,7],[90,1,90,5],[90,6,90,7],[71,6,71,7],[72,1,72,5],[72,6,72,7],[67,0,67,7],[96,1,96,5],[96,6,96,7],[83,0,83,7],[84,0,90,0],[84,1,84,3],[84,4,84,7],[85,4,85,7],[86,1,86,3],[86,4,86,5],[86,6,86,7],[87,1,87,3],[87,4,87,5],[87,6,87,7],[88,1,88,5],[88,6,88,7],[91,0,91,7],[92,0,98,0],[92,1,92,3],[92,4,92,7],[93,4,93,7],[94,1,94,3],[94,4,94,5],[94,6,94,7],[95,1,95,3],[103,0,109,0],[103,1,103,3],[103,4,103,7],[104,4,104,7],[105,1,105,3],[105,4,105,5],[105,6,105,7],[106,1,106,3],[106,4,106,5],[106,6,106,7],[107,1,107,5],[107,6,107,7],[100,0,102,7],[113,6,113,7],[114,1,114,3],[114,4,114,5],[114,6,114,7],[117,1,117,5],[117,6,117,7],[116,6,116,7],[127,0,133,0],[127,1,127,3],[127,4,127,7],[128,4,128,7],[129,1,129,3],[129,4,129,5],[129,6,129,7],[130,1,130,3],[130,4,130,5],[130,6,130,7],[131,1,131,5],[131,6,131,7],[132,1,132,5],[132,6,132,7],[133,1,133,5],[133,6,133,7],[126,0,126,7],[149,1,149,5],[149,6,149,7],[134,0,134,7],[135,0,141,0],[135,1,135,3],[135,4,135,7],[136,4,136,7],[137,1,137,3],[137,4,137,5],[137,6,137,7],[138,1,138,3],[138,4,138,5],[138,6,138,7],[139,1,139,5],[139,6,139,7],[140,1,140,5],[140,6,140,7],[141,1,141,5],[141,6,141,7],[170,1,170,3],[170,4,170,5],[170,6,170,7],[171,1,171,5],[171,6,171,7],[158,0,158,7],[159,0,165,0],[159,1,159,3],[159,4,159,7],[160,4,160,7],[161,1,161,3],[161,4,161,5],[161,6,161,7],[162,1,162,3],[162,4,162,5],[162,6,162,7],[163,1,163,5],[163,6,163,7],[164,1,164,5],[164,6,164,7],[165,1,165,5],[165,6,165,7],[166,0,166,7],[167,0,173,0],[183,0,183,7],[182,0,182,7],[174,0,174,7],[175,0,181,0],[175,1,175,3],[175,4,175,7],[176,4,176,7],[177,1,177,3],[177,4,177,5],[177,6,177,7],[178,1,178,3],[178,4,178,5],[178,6,178,7],[179,1,179,5],[179,6,179,7],[169,1,169,3],[169,4,169,5],[169,6,169,7],[27,0,27,7],[53,0,54,7],[50,0,50,7],[51,0,52,7],[119,0,125,0],[119,1,119,3],[119,4,119,7],[120,4,120,7],[121,1,121,3],[121,4,121,5],[121,6,121,7],[122,1,122,3],[122,4,122,5],[122,6,122,7],[123,1,123,5],[123,6,123,7],[150,0,150,7],[151,0,157,0],[151,1,151,3],[168,4,168,7],[151,4,151,7],[152,4,152,7],[153,1,153,3],[153,4,153,5],[153,6,153,7],[154,1,154,3],[154,4,154,5],[154,6,154,7],[155,1,155,5],[155,6,155,7],[156,1,156,5],[156,6,156,7],[157,1,157,5],[157,6,157,7],[39,0,39,7],[125,1,125,5],[125,6,125,7],[99,0,99,7],[110,0,110,7],[111,0,117,0],[111,1,111,3],[167,1,167,3],[167,4,167,7],[142,0,142,7],[143,0,149,0],[143,1,143,3],[143,4,143,7],[144,4,144,7],[145,1,145,3],[145,4,145,5],[145,6,145,7],[146,1,146,3],[146,4,146,5],[146,6,146,7],[147,1,147,5],[147,6,147,7],[148,1,148,5],[148,6,148,7]]}
["SIN-DME Cuestionario de Síntomas Músculo Esqueléticos "]
[]
[]
[]
[]
[]
["DATOS EMPRESA",null,null,"Fecha","Departamento",null,"Municipio/Ciudad"]
[]
["Razón Social "]
[]
[]
[]
["INFORMACIÓN DEL TRABAJADOR",null,null,"Nombres",null,"Apellidos"]
[]
["Número de identificación",null,null,"Sexo",null,"Peso (Kg)",null,"Estatura (cm)"]
[null,null,null,"Hombre","Mujer"]
["¿Usted es?",null,null,"Edad",null,"Área o Dependencia"]
["Derecho","Izquierdo","Ambos",null,"Años "]
["Su cargo actual es",null,null,null,null,"Antigüedad en el cargo"]
[null,null,null,null,null,null,"Años ","Meses"]
[]
[]
["HÁBITOS",null,null,"Fuma",null,"¿Cuántos cigarrillos día?",null,"¿Hace cuánto tiempo fuma?"]
[null,null,null,"Sí","No"]
["¿Realiza actividad física?",null,"¿Cuál?",null,null,"Frecuencia",null,"Duración"]
["Sí","No",null,null,null,"Seleccione",null,"Seleccione"]
[]
[]
["SU TRABAJO",null,null,"¿Cuál es su jornada de trabajo?",null,null,"¿Cuántas horas trabaja por día?"]
[null,null,null,"Seleccione",null,null,"Seleccione"]
["¿La duración semanal de la jornada es variable?",null,null,"Explique"]
["Seleccione"]
[]
[]
["SU ESTADO DE SALUD",null,null,"¿Durante los últimos 7 días ha presentado dolor, molestias o inconfort en alguna parte del cuerpo?"]
[null,null,null,"Sí",null,"No"]
["¿Durante los últimos 7 días, Usted ha presentado alguna enfermedad?",null,null,null,"¿Cuál?"]
["Sí","No "]
[]
[]
["Observaciones"]
[]
[]
[]
[]
[]
[]
[]
[]
[]
[]
["Cuestionario de Síntomas Músculo Esqueléticos "]
[]
[]
[]
[]
["EVALUACIÓN CONDICIONES DE SALUD MÚSCULO ESQUELÉTICA ACTUAL",null,null,"De acuerdo a las partes del cuerpo que identifica en cada gráfico, seleccione los lugares donde Usted presenta molestias:"]
[]
[]
[]
[null,"1.Tengo molestias en el Cuello",null,null,"3. Los síntomas se presentan cuando: "]
[null,"Lado izquierdo"," Lado derecho ","Ambos","Seleccione"]
[null,"2. Generalmente se presentan como:",null,null,"4. Los tengo desde hace:",null,"5. Permanecen por:"]
[null,"Seleccione",null,null,"Seleccione",null,"Seleccione"]
[null,"6. Si presenta DOLOR seleccione a continuación la INTENSIDAD del mismo: ",null,null,null,null,"Seleccione"]
[null,"7. Si usted experimentó molestias, dolor ¿Qué tan incómodo era esto?",null,null,null,null,"Seleccione"]
[null,"8. Si usted experimentó dolor,  ¿Cuánto  interfirió con su habilidad para trabajar?",null,null,null,null,"Seleccione"]
[]
[null,"1.Tengo molestias en el hombro",null,null,"3. Los síntomas se presentan cuando: "]
[null,"Lado izquierdo"," Lado derecho ","Ambos","Seleccione"]
[null,"2. Generalmente se presentan como:",null,null,"4. Los tengo desde hace:",null,"5. Permanecen por:"]
[null,"Seleccione",null,null,"Seleccione",null,"Seleccione"]
[null,"6. Si presenta DOLOR seleccione a continuación la INTENSIDAD del mismo: ",null,null,null,null,"Seleccione"]
[null,"7. Si usted experimentó molestias, dolor ¿Qué tan incómodo era esto?",null,null,null,null,"Seleccione"]
[null,"8. Si usted experimentó dolor,  ¿Cuánto  interfirió con su habilidad para trabajar?",null,null,null,null,"Seleccione"]
[]
[null,"1.Tengo molestias en el Brazo",null,null,"3. Los síntomas se presentan cuando: "]
[null,"Lado izquierdo"," Lado derecho ","Ambos","Seleccione"]
[null,"2. Generalmente se presentan como:",null,null,"4. Los tengo desde hace:",null,"5. Permanecen por:"]
[null,"Seleccione",null,null,"Seleccione",null,"Seleccione"]
[null,"6. Si presenta DOLOR seleccione a continuación la INTENSIDAD del mismo: ",null,null,null,null,"Seleccione"]
[null,"7. Si usted experimentó molestias, dolor ¿Qué tan incómodo era esto?",null,null,null,null,"Seleccione"]
[null,"8. Si usted experimentó dolor,  ¿Cuánto  interfirió con su habilidad para trabajar?",null,null,null,null,"Seleccione"]
[]
[null,"1.Tengo molestias en la codo",null,null,"3. Los síntomas se presentan cuando: "]
[null,"Lado izquierdo"," Lado derecho ","Ambos","Seleccione"]
[null,"2. Generalmente se presentan como:",null,null,"4. Los tengo desde hace:",null,"5. Permanecen por:"]
[null,"Seleccione",null,null,"Seleccione",null,"Seleccione"]
[null,"6. Si presenta DOLOR seleccione a continuación la INTENSIDAD del mismo: ",null,null,null,null,"Seleccione"]
[null,"7. Si usted experimentó molestias, dolor ¿Qué tan incómodo era esto?",null,null,null,null,"Seleccione"]
[null,"8. Si usted experimentó dolor,  ¿Cuánto  interfirió con su habilidad para trabajar?",null,null,null,null,"Seleccione"]
[]
[null,"1.Tengo molestias en el antebrazo",null,null,"3. Los síntomas se presentan cuando: "]
[null,"Lado izquierdo"," Lado derecho ","Ambos","Seleccione"]
[null,"2. Generalmente se presentan como:",null,null,"4. Los tengo desde hace:",null,"5. Permanecen por:"]
[null,"Seleccione",null,null,"Seleccione",null,"Seleccione"]
[null,"6. Si presenta DOLOR seleccione a continuación la INTENSIDAD del mismo: ",null,null,null,null,"Seleccione"]
[null,"7. Si usted experimentó molestias, dolor ¿Qué tan incómodo era esto?",null,null,null,null,"Seleccione"]
[null,"8. Si usted experimentó dolor,  ¿Cuánto  interfirió con su habilidad para trabajar?",null,null,null,null,"Seleccione"]
[]
[]
[]
[]
[null,"1.Tengo molestias en el muñeca",null,null,"3. Los síntomas se presentan cuando: "]
[null,"Lado izquierdo"," Lado derecho ","Ambos","Seleccione"]
[null,"2. Generalmente se presentan como:",null,null,"4. Los tengo desde hace:",null,"5. Permanecen por:"]
[null,"Seleccione",null,null,"Seleccione",null,"Seleccione"]
[null,"6. Si presenta DOLOR seleccione a continuación la INTENSIDAD del mismo: ",null,null,null,null,"Seleccione"]
[null,"7. Si usted experimentó molestias, dolor ¿Qué tan incómodo era esto?",null,null,null,null,"Seleccione"]
[null,"8. Si usted experimentó dolor,  ¿Cuánto  interfirió con su habilidad para trabajar?",null,null,null,null,"Seleccione"]
[]
[null,"1.Tengo molestias en la mano",null,null,"3. Los síntomas se presentan cuando: "]
[null,"Lado izquierdo"," Lado derecho ","Ambos","Seleccione"]
[null,"2. Generalmente se presentan como:",null,null,"4. Los tengo desde hace:",null,"5. Permanecen por:"]
[null,"Seleccione",null,null,"Seleccione",null,"Seleccione"]
[null,"6. Si presenta DOLOR seleccione a continuación la INTENSIDAD del mismo: ",null,null,null,null,"Seleccione"]
[null,"7. Si usted experimentó molestias, dolor ¿Qué tan incómodo era esto?",null,null,null,null,"Seleccione"]
[null,"8. Si usted experimentó dolor,  ¿Cuánto  interfirió con su habilidad para trabajar?",null,null,null,null,"Seleccione"]
[]
[null,"1.Tengo molestias en los dedos",null,null,"3. Los síntomas se presentan cuando: "]
[null,"Lado izquierdo"," Lado derecho ","Ambos","Seleccione"]
[null,"2. Generalmente se presentan como:",null,null,"4. Los tengo desde hace:",null,"5. Permanecen por:"]
[null,"Seleccione",null,null,"Seleccione",null,"Seleccione"]
[null,"6. Si presenta DOLOR seleccione a continuación la INTENSIDAD del mismo: ",null,null,null,null,"Seleccione"]
[null,"7. Si usted experimentó molestias, dolor ¿Qué tan incómodo era esto?",null,null,null,null,"Seleccione"]
[null,"8. Si usted experimentó dolor,  ¿Cuánto  interfirió con su habilidad para trabajar?",null,null,null,null,"Seleccione"]
[]
[null,"1.Tengo molestias en la espalda alta",null,null,"3. Los síntomas se presentan cuando: "]
[null,"Lado izquierdo"," Lado derecho ","Ambos","Seleccione"]
[null,"2. Generalmente se presentan como:",null,null,"4. Los tengo desde hace:",null,"5. Permanecen por:"]
[null,"Seleccione",null,null,"Seleccione",null,"Seleccione"]
[null,"6. Si presenta DOLOR seleccione a continuación la INTENSIDAD del mismo: ",null,null,null,null,"Seleccione"]
[null,"7. Si usted experimentó molestias, dolor ¿Qué tan incómodo era esto?",null,null,null,null,"Seleccione"]
[null,"8. Si usted experimentó dolor,  ¿Cuánto  interfirió con su habilidad para trabajar?",null,null,null,null,"Seleccione"]
[]
[null,"1.Tengo molestias en la espalda baja",null,null,"3. Los síntomas se presentan cuando: "]
[null,"Lado izquierdo"," Lado derecho ","Ambos","Seleccione"]
[null,"2. Generalmente se presentan como:",null,null,"4. Los tengo desde hace:",null,"5. Permanecen por:"]
[null,"Seleccione",null,null,"Seleccione",null,"Seleccione"]
[null,"6. Si presenta DOLOR seleccione a continuación la INTENSIDAD del mismo: ",null,null,null,null,"Seleccione"]
[null,"7. Si usted experimentó molestias, dolor ¿Qué tan incómodo era esto?",null,null,null,null,"Seleccione"]
[null,"8. Si usted experimentó dolor,  ¿Cuánto  interfirió con su habilidad para trabajar?",null,null,null,null,"Seleccione"]
[]
[null,"1.Tengo molestias en la cadera",null,null,"3. Los síntomas se presentan cuando: "]
[null,"Lado izquierdo"," Lado derecho ","Ambos","Seleccione"]
[null,"2. Generalmente se presentan como:",null,null,"4. Los tengo desde hace:",null,"5. Permanecen por:"]
[null,"Seleccione",null,null,"Seleccione",null,"Seleccione"]
[null,"6. Si presenta DOLOR seleccione a continuación la INTENSIDAD del mismo: ",null,null,null,null,"Seleccione"]
[null,"7. Si usted experimentó molestias, dolor ¿Qué tan incómodo era esto?",null,null,null,null,"Seleccione"]
[null,"8. Si usted experimentó dolor,  ¿Cuánto  interfirió con su habilidad para trabajar?",null,null,null,null,"Seleccione"]
[]
[null,"1.Tengo molestias en el muslo",null,null,"3. Los síntomas se presentan cuando: "]
[null,"Lado izquierdo"," Lado derecho ","Ambos","Seleccione"]
[null,"2. Generalmente se presentan como:",null,null,"4. Los tengo desde hace:",null,"5. Permanecen por:"]
[null,"Seleccione",null,null,"Seleccione",null,"Seleccione"]
[null,"6. Si presenta DOLOR seleccione a continuación la INTENSIDAD del mismo: ",null,null,null,null,"Seleccione"]
[null,"7. Si usted experimentó molestias, dolor ¿Qué tan incómodo era esto?",null,null,null,null,"Seleccione"]
[null,"8. Si usted experimentó dolor,  ¿Cuánto  interfirió con su habilidad para trabajar?",null,null,null,null,"Seleccione"]
[]
[null,"1.Tengo molestias en la rodilla",null,null,"3. Los síntomas se presentan cuando: "]
[null,"Lado izquierdo"," Lado derecho ","Ambos","Seleccione"]
[null,"2. Generalmente se presentan como:",null,null,"4. Los tengo desde hace:",null,"5. Permanecen por:"]
[null,"Seleccione",null,null,"Seleccione",null,"Seleccione"]
[null,"6. Si presenta DOLOR seleccione a continuación la INTENSIDAD del mismo: ",null,null,null,null,"Seleccione"]
[null,"7. Si usted experimentó molestias, dolor ¿Qué tan incómodo era esto?",null,null,null,null,"Seleccione"]
[null,"8. Si usted experimentó dolor,  ¿Cuánto  interfirió con su habilidad para trabajar?",null,null,null,null,"Seleccione"]
[]
[null,"1.Tengo molestias en la pierna",null,null,"3. Los síntomas se presentan cuando: "]
[null,"Lado izquierdo"," Lado derecho ","Ambos","Seleccione"]
[null,"2. Generalmente se presentan como:",null,null,"4. Los tengo desde hace:",null,"5. Permanecen por:"]
[null,"Seleccione",null,null,"Seleccione",null,"Seleccione"]
[null,"6. Si presenta DOLOR seleccione a continuación la INTENSIDAD del mismo: ",null,null,null,null,"Seleccione"]
[null,"7. Si usted experimentó molestias, dolor ¿Qué tan incómodo era esto?",null,null,null,null,"Seleccione"]
[null,"8. Si usted experimentó dolor,  ¿Cuánto  interfirió con su habilidad para trabajar?",null,null,null,null,"Seleccione"]
[]
[null,"1.Tengo molestias en el pie",null,null,"3. Los síntomas se presentan cuando: "]
[null,"Lado izquierdo"," Lado derecho ","Ambos","Seleccione"]
[null,"2. Generalmente se presentan como:",null,null,"4. Los tengo desde hace:",null,"5. Permanecen por:"]
[null,"Seleccione",null,null,"Seleccione",null,"Seleccione"]
[null,"6. Si presenta DOLOR seleccione a continuación la INTENSIDAD del mismo: ",null,null,null,null,"Seleccione"]
[null,"7. Si usted experimentó molestias, dolor ¿Qué tan incómodo era esto?",null,null,null,null,"Seleccione"]
[null,"8. Si usted experimentó dolor,  ¿Cuánto  interfirió con su habilidad para trabajar?",null,null,null,null,"Seleccione"]

{"sheet":"BD-SINDME","index":2,"n_rows":15,"n_cols":173,"rows_kept":15,"cut":false,"hidden":false,"merged":[[8,100,8,108],[8,109,8,117],[8,118,8,126],[6,5,7,19],[8,46,8,54],[8,55,8,63],[8,64,8,72],[8,73,8,81],[8,37,8,45],[7,34,8,36],[8,163,8,171],[7,37,7,172],[6,34,6,171],[8,127,8,135],[2,3,3,19],[2,71,3,80],[6,1,7,4],[6,20,6,28],[6,29,7,33],[7,20,7,24],[7,25,7,28],[8,136,8,144],[8,145,8,153],[8,154,8,162],[8,82,8,90],[8,91,8,99]]}
[]
[]
[null,null,null,"CUESTIONARIO DE SÍNTOMAS MÚSCULO ESQUELÉTICOS"]
[]
[]
[]
[null,"DATOS EMPRESA",null,null,null,"A. INFORMACION PERSONAL",null,null,null,null,null,null,null,null,null,null,null,null,null,null,"B. HÁBITOS",null,null,null,null,null,null,null,null,"C. SU TRABAJO",null,null,null,null,"D. ESTADO DE SALUD ACTUAL",null,null,null,null,null,null,null,null,null,null,null,null,null,null,null,null,null,null,null,null,null,null,null,null,null,null,null,null,null,null,null,null,null,null,null,null,null,null,null,null,null,null,null,null,null,null,null,null,null,null,null,null,null,null,null,null,null,null,null,null,null,null,null,null,null,null,null,null,null,null,null,null,null,null,null,null,null,null,null,null,null,null,null,null,null,null,null,null,null,null,null,null,null,null,null,null,null,null,null,null,null,null,null,null,null,null,null,null,null,null,null,null,null,null,null,null,null,null,null,null,null,null,null,null,null,null,null,null,null,null,null,null,null,null,null,null,null,"RESUMEN"]
[null,null,null,null,null,null,null,null,null,null,null,null,null,null,null,null,null,null,null,null,"FUMAR",null,null,null,null,"ACTIVIDAD FISICA",null,null,null,null,null,null,null,null,"MOLESTIA O ENFERMEDAD ÚLTIMOS 7 DÍAS",null,null,"EVALUACIÓN CONDICIÓN DE SALUD MÚSCULO ESQUELÉTICA ACTUAL"]
[null,null,null,null,null,null,null,null,null,null,null,null,null,null,null,null,null,null,null,null,null,null,null,null,null,null,null,null,null,null,null,null,null,null,null,null,null,"29. CUELLO",null,null,null,null,null,null,null,null,"30. HOMBRO",null,null,null,null,null,null,null,null,"31. CODO",null,null,null,null,null,null,null,null,"32. ANTEBRAZO",null,null,null,null,null,null,null,null,"33. BRAZO",null,null,null,null,null,null,null,null,"34. MUÑECA",null,null,null,null,null,null,null,null,"35. MANO",null,null,null,null,null,null,null,null,"36. DEDOS",null,null,null,null,null,null,null,null,"37. ESPALDA ALTA",null,null,null,null,null,null,null,null,"38. ESPALDA BAJA",null,null,null,null,null,null,null,null,"39. CADERA",null,null,null,null,null,null,null,null,"40. MUSLO",null,null,null,null,null,null,null,null,"41. RODILLA",null,null,null,null,null,null,null,null,"42. PIERNA",null,null,null,null,null,null,null,null,"43. PIE"]
[null,"FECHA (dd/mm/aaaa)","1. DEPARTAMENTO","2. MUNICIPIO","3. RAZÓN SOCIAL","4. NOMBRES","5. APELLIDOS","6. NÚMERO IDENTIFICACIÓN","7. SEXO","8. PESO                          (Kg)","9. ESTATURA           (m)","9.1 IMC"," 9.2 CLASIFICACIÓN IMC","10. EDAD","10.1 GRUPO DE EDAD","11. USTED ES (DOMINANCIA)","12. ÁREA O DEPENDENCIA","13. CARGO ACTUAL","14. ANTIGÜEDAD EN EL CARGO ACTUAL (AÑOS)","14.1 GRUPO DE  ANTIGÜEDAD EN EL CARGO ACTUAL","16. FUMA","17. ¿CUÁNTOS CIGARRILLOS AL DÍA?","18. GRUPO CIGARRILLOS FUMADOS AL DÍA","19 ¿HACE CUANTO TIEMPO FUMA? (AÑOS)","19.1 GRUPO TIEMPO QUE HACE QUE FUMA","20. ¿REALIZA ALGÚN TIPO DE ACTIVIDAD FÍSICA?","21. ¿CUÁL?","22. ¿CON QUÉ FRECUENCIA?","23. ¿POR CUÁNTO TIEMPO REALIZA ESTA ACTIVIDAD?","24. ¿CUÁL ES SU JORNADA DE TRABAJO?","25. ¿CUANTAS HORAS TRABAJA POR DÍA?","25.1 GRUPO HORAS DIARIAS TRABAJADAS","26. LA DURACION SEMANAL DE SU TRABAJO ES VARIABLE","26.1 EXPLIQUE","27. ¿DURANTE LOS ÚLTIMOS 7 DÍAS HA PRESENTADO DOLOR, MOLESTIA O INCONFORT EN ALGUNA PARTE DEL CUERPO?","28. ¿DURANTE LOS ÚLTIMOS 7 DÍAS HA PRESENTADO ALGUNA ENFERMEDAD?","28.1 ¿CUAL?","29.1 LOCALIZACIÓN DE LOS SÍNTOMAS","29.2 GENERALMENTE SE PRESENTA COMO","29.3 LOS SÍNTOMAS SE PRESENTAN CUANDO","29.4 LOS TENGO DESDE HACE","29.5 PERMANECEN POR","29.6 INTENSIDAD DEL DOLOR ","29.6.1 GRUPO INTENSIDAD DEL DOLOR","29.7 ¿QUÉ TAN INCÓMODO ERA ESTO?"," 29.8 ¿CUÁNTO INTERFIRIÓ CON SU HABILIDAD PARA TRABAJAR?","30.1 LOCALIZACIÓN DE LOS SÍNTOMAS","30.2 GENERALMENTE SE PRESENTA COMO","30.3 LOS SÍNTOMAS SE PRESENTAN CUANDO","30.4 LOS TENGO DESDE HACE","30.5 PERMANECEN POR","30.6 INTENSIDAD DEL DOLOR ","30.6.1 GRUPO INTENSIDAD DEL DOLOR","30.7 ¿QUÉ TAN INCÓMODO ERA ESTO?"," 30.8 ¿CUÁNTO INTERFIRIÓ CON SU HABILIDAD PARA TRABAJAR?","31.1 LOCALIZACIÓN DE LOS SÍNTOMAS","31.2 GENERALMENTE SE PRESENTA COMO","31.3 LOS SÍNTOMAS SE PRESENTAN CUANDO","31.4 LOS TENGO DESDE HACE","31.5 PERMANECEN POR","31.6 INTENSIDAD DEL DOLOR ","31.6.1 GRUPO INTENSIDAD DEL DOLOR","31.7 ¿QUÉ TAN INCÓMODO ERA ESTO?"," 31.8 ¿CUÁNTO INTERFIRIÓ CON SU HABILIDAD PARA TRABAJAR?","31.1 LOCALIZACIÓN DE LOS SÍNTOMAS","32.2 GENERALMENTE SE PRESENTA COMO","32.3 LOS SÍNTOMAS SE PRESENTAN CUANDO","32.4 LOS TENGO DESDE HACE","32.5 PERMANECEN POR","32.6 INTENSIDAD DEL DOLOR ","32.6.1 GRUPO INTENSIDAD DEL DOLOR","32.7 ¿QUÉ TAN INCÓMODO ERA ESTO?"," 32.8 ¿CUÁNTO INTERFIRIÓ CON SU HABILIDAD PARA TRABAJAR?","33.1 LOCALIZACIÓN DE LOS SÍNTOMAS","33.2 GENERALMENTE SE PRESENTA COMO","33.3 LOS SÍNTOMAS SE PRESENTAN CUANDO","33.4 LOS TENGO DESDE HACE","33.5 PERMANECEN POR","33.6 INTENSIDAD DEL DOLOR ","33.6.1 GRUPO INTENSIDAD DEL DOLOR","33.7 ¿QUÉ TAN INCÓMODO ERA ESTO?"," 33.8 ¿CUÁNTO INTERFIRIÓ CON SU HABILIDAD PARA TRABAJAR?","34.1 LOCALIZACIÓN DE LOS SÍNTOMAS","34.2 GENERALMENTE SE PRESENTA COMO","34.3 LOS SÍNTOMAS SE PRESENTAN CUANDO","34.4 LOS TENGO DESDE HACE","34.5 PERMANECEN POR","34.6 INTENSIDAD DEL DOLOR ","34.6.1 GRUPO INTENSIDAD DEL DOLOR","34.7 ¿QUÉ TAN INCÓMODO ERA ESTO?"," 34.8 ¿CUÁNTO INTERFIRIÓ CON SU HABILIDAD PARA TRABAJAR?","35.1 LOCALIZACIÓN DE LOS SÍNTOMAS","35.2 GENERALMENTE SE PRESENTA COMO","35.3 LOS SÍNTOMAS SE PRESENTAN CUANDO","35.4 LOS TENGO DESDE HACE","35.5 PERMANECEN POR","35.6 INTENSIDAD DEL DOLOR ","35.6.1 GRUPO INTENSIDAD DEL DOLOR","35.7 ¿QUÉ TAN INCÓMODO ERA ESTO?"," 35.8 ¿CUÁNTO INTERFIRIÓ CON SU HABILIDAD PARA TRABAJAR?","36.1 LOCALIZACIÓN DE LOS SÍNTOMAS","36.2 GENERALMENTE SE PRESENTA COMO","36.3 LOS SÍNTOMAS SE PRESENTAN CUANDO","36.4 LOS TENGO DESDE HACE","36.5 PERMANECEN POR","36.6 INTENSIDAD DEL DOLOR ","36.6.1 GRUPO INTENSIDAD DEL DOLOR","36.7 ¿QUÉ TAN INCÓMODO ERA ESTO?"," 36.8 ¿CUÁNTO INTERFIRIÓ CON SU HABILIDAD PARA TRABAJAR?","37.1 LOCALIZACIÓN DE LOS SÍNTOMAS","37.2 GENERALMENTE SE PRESENTA COMO","37.3 LOS SÍNTOMAS SE PRESENTAN CUANDO","37.4 LOS TENGO DESDE HACE","37.5 PERMANECEN POR","37.6 INTENSIDAD DEL DOLOR ","37.6.1 GRUPO INTENSIDAD DEL DOLOR","37.7 ¿QUÉ TAN INCÓMODO ERA ESTO?"," 37.8 ¿CUÁNTO INTERFIRIÓ CON SU HABILIDAD PARA TRABAJAR?","38.1 LOCALIZACIÓN DE LOS SÍNTOMAS","38.2 GENERALMENTE SE PRESENTA COMO","38.3 LOS SÍNTOMAS SE PRESENTAN CUANDO","38.4 LOS TENGO DESDE HACE","38.5 PERMANECEN POR","38.6 INTENSIDAD DEL DOLOR ","38.6.1 GRUPO INTENSIDAD DEL DOLOR","38.7 ¿QUÉ TAN INCÓMODO ERA ESTO?"," 38.8 ¿CUÁNTO INTERFIRIÓ CON SU HABILIDAD PARA TRABAJAR?","39.1 LOCALIZACIÓN DE LOS SÍNTOMAS","39.2 GENERALMENTE SE PRESENTA COMO","39.3 LOS SÍNTOMAS SE PRESENTAN CUANDO","39.4 LOS TENGO DESDE HACE","39.5 PERMANECEN POR","39.6 INTENSIDAD DEL DOLOR ","39.6.1 GRUPO INTENSIDAD DEL DOLOR","39.7 ¿QUÉ TAN INCÓMODO ERA ESTO?"," 39.8 ¿CUÁNTO INTERFIRIÓ CON SU HABILIDAD PARA TRABAJAR?","40.1 LOCALIZACIÓN DE LOS SÍNTOMAS","40.2 GENERALMENTE SE PRESENTA COMO","40.3 LOS SÍNTOMAS SE PRESENTAN CUANDO","40.4 LOS TENGO DESDE HACE","40.5 PERMANECEN POR","40.6 INTENSIDAD DEL DOLOR ","40.6.1 GRUPO INTENSIDAD DEL DOLOR","40.7 ¿QUÉ TAN INCÓMODO ERA ESTO?"," 40.8 ¿CUÁNTO INTERFIRIÓ CON SU HABILIDAD PARA TRABAJAR?","41.1 LOCALIZACIÓN DE LOS SÍNTOMAS","41.2 GENERALMENTE SE PRESENTA COMO","41.3 LOS SÍNTOMAS SE PRESENTAN CUANDO","41.4 LOS TENGO DESDE HACE","41.5 PERMANECEN POR","41.6 INTENSIDAD DEL DOLOR ","41.6.1 GRUPO INTENSIDAD DEL DOLOR","41.7 ¿QUÉ TAN INCÓMODO ERA ESTO?"," 41.8 ¿CUÁNTO INTERFIRIÓ CON SU HABILIDAD PARA TRABAJAR?","42.1 LOCALIZACIÓN DE LOS SÍNTOMAS","42.2 GENERALMENTE SE PRESENTA COMO","42.3 LOS SÍNTOMAS SE PRESENTAN CUANDO","42.4 LOS TENGO DESDE HACE","42.5 PERMANECEN POR","42.6 INTENSIDAD DEL DOLOR ","42.6.1 GRUPO INTENSIDAD DEL DOLOR","42.7 ¿QUÉ TAN INCÓMODO ERA ESTO?"," 42.8 ¿CUÁNTO INTERFIRIÓ CON SU HABILIDAD PARA TRABAJAR?","43.1 LOCALIZACIÓN DE LOS SÍNTOMAS","43.2 GENERALMENTE SE PRESENTA COMO","43.3 LOS SÍNTOMAS SE PRESENTAN CUANDO","43.4 LOS TENGO DESDE HACE","43.5 PERMANECEN POR","43.6 INTENSIDAD DEL DOLOR ","43.6.1 GRUPO INTENSIDAD DEL DOLOR","43.7 ¿QUÉ TAN INCÓMODO ERA ESTO?"," 43.8 ¿CUÁNTO INTERFIRIÓ CON SU HABILIDAD PARA TRABAJAR?","44. ¿EL TRABAJADOR PRESENTA SÍNTOMAS EN MÁS DE CINCO PARTES DEL CUERPO?"]
[null,null,null,null,null,null,null,null,"Seleccione",33.000000000000043,1.3,{"$f":"J11/(K11*K11)","v":19.526627218934934},{"$f":"IF(AND(L11>18.45,L11<25),\"RANGO NORMAL\",IF(AND(L11>24.9,L11<30),\"SOBREPESO\",IF(AND(L11>29.9,L11<35),\"OBESIDAD GRADO I\",IF(AND(L11>34.9,L11<40),\"OBESIDAD GRADO II\",IF(L11>39.9,\"OBESIDAD GRADO III\",IF(L11<18.5,\"BAJO PESO\",\"SELECCIONE\"))))))","v":"RANGO NORMAL"},15,{"$f":"IF(AND(N11>14,N11<26),\" ≤ 18 a 25 años\",IF(AND(N11>25,N11<36),\"26 a 35 años\",IF(AND(N11>35,N11<46),\"36 a 45 años\",IF(AND(N11>45,N11<56),\"46 a 55 años\",IF(AND(N11>=56,N11<120),\"≥ 56 años\",\"SELECCIONE\")))))","v":" ≤ 18 a 25 años"},"Seleccione",null,null,12,{"$f":"IF(S11<1,\"Menos de 1 año\",IF(AND(S11>=1,S11<6),\"1 a 5 años\",IF(AND(S11>5,S11<11),\"6 a 10 años\",IF(AND(S11>10,S11<16),\"11 a 15 años\",IF(AND(S11>=16,S11<60),\"16 años en adelante\",\"SELECCIONE\")))))","v":"11 a 15 años"},"Sí",2,{"$f":"IF(AND(V11>=1,V11<6),\"1 a 5 cigarrillos\",IF(AND(V11>5,V11<16),\"6 a 15 cigarrillos\",IF(AND(V11=16,V11<100),\"16 y más cigarrillos\",\"SELECCIONE\")))","v":"1 a 5 cigarrillos"},1,{"$f":"IF(X11<1,\"Menos de 1 año\",IF(AND(X11>=1,X11<3),\"1 a 2 años\",IF(AND(X11>2,X11<5),\"3 a 4 años\",IF(AND(X11>4,X11<10),\"5 a 9 años\",IF(AND(X11>=10,X11<100),\"10 años en adelante\",\"SELECCIONE\")))))","v":"1 a 2 años"},"No",null,"Seleccione","Seleccione","Seleccione","Seleccione",{"$f":"IF(AND(AE11>=1,AE11<5),\"1 a 4 horas\",IF(AND(AE11>4,AE11<9),\"5 a 8 horas\",IF(AND(AE11>8,AE11<13),\"9 a 12 horas\",IF(AND(AE11>12,AE11<24),\"Más de 12 horas\",\"SELECCIONE\"))))","v":"SELECCIONE"},"Seleccione",null,"No","No",null,"Cuello lado derecho","Dolor","Al realizar mi trabajo","1 semana","Menos de 24 horas",3,{"$f":"IF(AND(AQ11>0,AQ11<4),\"BAJO\",IF(AND(AQ11>3,AQ11<8),\"MEDIO\",IF(AND(AQ11>7,AQ11<11),\"ALTO\",\"SELECCIONE\")))","v":"BAJO"},"Un poco incómodo","Poca interferencia","Seleccione","Seleccione","Seleccione","Seleccione","Seleccione","Seleccione",{"$f":"IF(AND(AZ11>0,AZ11<4),\"BAJO\",IF(AND(AZ11>3,AZ11<8),\"MEDIO\",IF(AND(AZ11>7,AZ11<11),\"ALTO\",\"SELECCIONE\")))","v":"SELECCIONE"},"Seleccione","Seleccione","Seleccione","Seleccione","Seleccione","Seleccione","Seleccione","Seleccione",{"$f":"IF(AND(BI11>0,BI11<4),\"BAJO\",IF(AND(BI11>3,BI11<8),\"MEDIO\",IF(AND(BI11>7,BI11<11),\"ALTO\",\"SELECCIONE\")))","v":"SELECCIONE"},"Seleccione","Seleccione","Seleccione","Seleccione","Seleccione","Seleccione","Seleccione","Seleccione",{"$f":"IF(AND(BR11>0,BR11<4),\"BAJO\",IF(AND(BR11>3,BR11<8),\"MEDIO\",IF(AND(BR11>7,BR11<11),\"ALTO\",\"SELECCIONE\")))","v":"SELECCIONE"},"Seleccione","Seleccione","Seleccione","Seleccione","Seleccione","Seleccione","Seleccione","Seleccione",{"$f":"IF(AND(CA11>0,CA11<4),\"BAJO\",IF(AND(CA11>3,CA11<8),\"MEDIO\",IF(AND(CA11>7,CA11<11),\"ALTO\",\"SELECCIONE\")))","v":"SELECCIONE"},"Seleccione","Seleccione","Seleccione","Seleccione","Seleccione","Seleccione","Seleccione","Seleccione",{"$f":"IF(AND(CJ11>0,CJ11<4),\"BAJO\",IF(AND(CJ11>3,CJ11<8),\"MEDIO\",IF(AND(CJ11>7,CJ11<11),\"ALTO\",\"SELECCIONE\")))","v":"SELECCIONE"},"Seleccione","Seleccione","Seleccione","Seleccione","Seleccione","Seleccione","Seleccione","Seleccione",{"$f":"IF(AND(CS11>0,CS11<4),\"BAJO\",IF(AND(CS11>3,CS11<8),\"MEDIO\",IF(AND(CS11>7,CS11<11),\"ALTO\",\"SELECCIONE\")))","v":"SELECCIONE"},"Seleccione","Seleccione","Seleccione","Seleccione","Seleccione","Seleccione","Seleccione","Seleccione",{"$f":"IF(AND(DB11>0,DB11<4),\"BAJO\",IF(AND(DB11>3,DB11<8),\"MEDIO\",IF(AND(DB11>7,DB11<11),\"ALTO\",\"SELECCIONE\")))","v":"SELECCIONE"},"Seleccione","Seleccione","Seleccione","Seleccione","Seleccione","Seleccione","Seleccione","Seleccione",{"$f":"IF(AND(DK11>0,DK11<4),\"BAJO\",IF(AND(DK11>3,DK11<8),\"MEDIO\",IF(AND(DK11>7,DK11<11),\"ALTO\",\"SELECCIONE\")))","v":"SELECCIONE"},"Seleccione","Seleccione","Seleccione","Seleccione","Seleccione","Seleccione","Seleccione","Seleccione",{"$f":"IF(AND(DT11>0,DT11<4),\"BAJO\",IF(AND(DT11>3,DT11<8),\"MEDIO\",IF(AND(DT11>7,DT11<11),\"ALTO\",\"SELECCIONE\")))","v":"SELECCIONE"},"Seleccione","Seleccione","Seleccione","Seleccione","Seleccione","Seleccione","Seleccione","Seleccione",{"$f":"IF(AND(EC11>0,EC11<4),\"BAJO\",IF(AND(EC11>3,EC11<8),\"MEDIO\",IF(AND(EC11>7,EC11<11),\"ALTO\",\"SELECCIONE\")))","v":"SELECCIONE"},"Seleccione","Seleccione","Seleccione","Seleccione","Seleccione","Seleccione","Seleccione","Seleccione",{"$f":"IF(AND(EL11>0,EL11<4),\"BAJO\",IF(AND(EL11>3,EL11<8),\"MEDIO\",IF(AND(EL11>7,EL11<11),\"ALTO\",\"SELECCIONE\")))","v":"SELECCIONE"},"Seleccione","Seleccione","Seleccione","Seleccione","Seleccione","Seleccione","Seleccione","Seleccione",{"$f":"IF(AND(EU11>0,EU11<4),\"BAJO\",IF(AND(EU11>3,EU11<8),\"MEDIO\",IF(AND(EU11>7,EU11<11),\"ALTO\",\"SELECCIONE\")))","v":"SELECCIONE"},"Seleccione","Seleccione","Seleccione","Seleccione","Seleccione","Seleccione","Seleccione","Seleccione",{"$f":"IF(AND(FD11>0,FD11<4),\"BAJO\",IF(AND(FD11>3,FD11<8),\"MEDIO\",IF(AND(FD11>7,FD11<11),\"ALTO\",\"SELECCIONE\")))","v":"SELECCIONE"},"Seleccione","Seleccione","Seleccione","Seleccione","Seleccione","Seleccione","Seleccione","Seleccione",{"$f":"IF(AND(FM11>0,FM11<4),\"BAJO\",IF(AND(FM11>3,FM11<8),\"MEDIO\",IF(AND(FM11>7,FM11<11),\"ALTO\",\"SELECCIONE\")))","v":"SELECCIONE"},"Seleccione","Seleccione","Seleccione"]
[null,null,null,null,null,null,null,null,"Seleccione",30,"Seleccione",{"$f":"J12/(K12*K12)","v":{"$error":"#VALUE!"}},{"$f":"IF(AND(L12>18.45,L12<25),\"RANGO NORMAL\",IF(AND(L12>24.9,L12<30),\"SOBREPESO\",IF(AND(L12>29.9,L12<35),\"OBESIDAD GRADO I\",IF(AND(L12>34.9,L12<40),\"OBESIDAD GRADO II\",IF(L12>39.9,\"OBESIDAD GRADO III\",IF(L12<18.5,\"BAJO PESO\",\"SELECCIONE\"))))))","v":{"$error":"#VALUE!"}},23,{"$f":"IF(AND(N12>14,N12<26),\" ≤ 18 a 25 años\",IF(AND(N12>25,N12<36),\"26 a 35 años\",IF(AND(N12>35,N12<46),\"36 a 45 años\",IF(AND(N12>45,N12<56),\"46 a 55 años\",IF(AND(N12>=56,N12<120),\"≥ 56 años\",\"SELECCIONE\")))))","v":" ≤ 18 a 25 años"},"Seleccione",null,null,"Seleccione","SELECCIONE","Seleccione","Seleccione",{"$f":"IF(AND(V12>=1,V12<6),\"1 a 5 cigarrillos\",IF(AND(V12>5,V12<16),\"6 a 15 cigarrillos\",IF(AND(V12=16,V12<100),\"16 y más cigarrillos\",\"SELECCIONE\")))","v":"SELECCIONE"},"Seleccione","SELECCIONE","Seleccione",null,"Seleccione","Seleccione","Seleccione","Seleccione","SELECCIONE","Seleccione",null,"Seleccione","Seleccione",null,"Seleccione","Seleccione","Seleccione","Seleccione","Seleccione","Seleccione",{"$f":"IF(AND(AQ12>0,AQ12<4),\"BAJO\",IF(AND(AQ12>3,AQ12<8),\"MEDIO\",IF(AND(AQ12>7,AQ12<11),\"ALTO\",\"SELECCIONE\")))","v":"SELECCIONE"},"Seleccione","Seleccione","Seleccione","Seleccione","Seleccione","Seleccione","Seleccione","Seleccione",{"$f":"IF(AND(AZ12>0,AZ12<4),\"BAJO\",IF(AND(AZ12>3,AZ12<8),\"MEDIO\",IF(AND(AZ12>7,AZ12<11),\"ALTO\",\"SELECCIONE\")))","v":"SELECCIONE"},"Seleccione","Seleccione","Seleccione","Seleccione","Seleccione","Seleccione","Seleccione","Seleccione",{"$f":"IF(AND(BI12>0,BI12<4),\"BAJO\",IF(AND(BI12>3,BI12<8),\"MEDIO\",IF(AND(BI12>7,BI12<11),\"ALTO\",\"SELECCIONE\")))","v":"SELECCIONE"},"Seleccione","Seleccione","Seleccione","Seleccione","Seleccione","Seleccione","Seleccione","Seleccione",{"$f":"IF(AND(BR12>0,BR12<4),\"BAJO\",IF(AND(BR12>3,BR12<8),\"MEDIO\",IF(AND(BR12>7,BR12<11),\"ALTO\",\"SELECCIONE\")))","v":"SELECCIONE"},"Seleccione","Seleccione","Seleccione","Seleccione","Seleccione","Seleccione","Seleccione","Seleccione",{"$f":"IF(AND(CA12>0,CA12<4),\"BAJO\",IF(AND(CA12>3,CA12<8),\"MEDIO\",IF(AND(CA12>7,CA12<11),\"ALTO\",\"SELECCIONE\")))","v":"SELECCIONE"},"Seleccione","Seleccione","Seleccione","Seleccione","Seleccione","Seleccione","Seleccione","Seleccione",{"$f":"IF(AND(CJ12>0,CJ12<4),\"BAJO\",IF(AND(CJ12>3,CJ12<8),\"MEDIO\",IF(AND(CJ12>7,CJ12<11),\"ALTO\",\"SELECCIONE\")))","v":"SELECCIONE"},"Seleccione","Seleccione","Seleccione","Seleccione","Seleccione","Seleccione","Seleccione","Seleccione",{"$f":"IF(AND(CS12>0,CS12<4),\"BAJO\",IF(AND(CS12>3,CS12<8),\"MEDIO\",IF(AND(CS12>7,CS12<11),\"ALTO\",\"SELECCIONE\")))","v":"SELECCIONE"},"Seleccione","Seleccione","Seleccione","Seleccione","Seleccione","Seleccione","Seleccione","Seleccione",{"$f":"IF(AND(DB12>0,DB12<4),\"BAJO\",IF(AND(DB12>3,DB12<8),\"MEDIO\",IF(AND(DB12>7,DB12<11),\"ALTO\",\"SELECCIONE\")))","v":"SELECCIONE"},"Seleccione","Seleccione","Seleccione","Seleccione","Seleccione","Seleccione","Seleccione","Seleccione",{"$f":"IF(AND(DK12>0,DK12<4),\"BAJO\",IF(AND(DK12>3,DK12<8),\"MEDIO\",IF(AND(DK12>7,DK12<11),\"ALTO\",\"SELECCIONE\")))","v":"SELECCIONE"},"Seleccione","Seleccione","Seleccione","Seleccione","Seleccione","Seleccione","Seleccione","Seleccione",{"$f":"IF(AND(DT12>0,DT12<4),\"BAJO\",IF(AND(DT12>3,DT12<8),\"MEDIO\",IF(AND(DT12>7,DT12<11),\"ALTO\",\"SELECCIONE\")))","v":"SELECCIONE"},"Seleccione","Seleccione","Seleccione","Seleccione","Seleccione","Seleccione","Seleccione","Seleccione",{"$f":"IF(AND(EC12>0,EC12<4),\"BAJO\",IF(AND(EC12>3,EC12<8),\"MEDIO\",IF(AND(EC12>7,EC12<11),\"ALTO\",\"SELECCIONE\")))","v":"SELECCIONE"},"Seleccione","Seleccione","Seleccione","Seleccione","Seleccione","Seleccione","Seleccione","Seleccione",{"$f":"IF(AND(EL12>0,EL12<4),\"BAJO\",IF(AND(EL12>3,EL12<8),\"MEDIO\",IF(AND(EL12>7,EL12<11),\"ALTO\",\"SELECCIONE\")))","v":"SELECCIONE"},"Seleccione","Seleccione","Seleccione","Seleccione","Seleccione","Seleccione","Seleccione","Seleccione",{"$f":"IF(AND(EU12>0,EU12<4),\"BAJO\",IF(AND(EU12>3,EU12<8),\"MEDIO\",IF(AND(EU12>7,EU12<11),\"ALTO\",\"SELECCIONE\")))","v":"SELECCIONE"},"Seleccione","Seleccione","Seleccione","Seleccione","Seleccione","Seleccione","Seleccione","Seleccione",{"$f":"IF(AND(FD12>0,FD12<4),\"BAJO\",IF(AND(FD12>3,FD12<8),\"MEDIO\",IF(AND(FD12>7,FD12<11),\"ALTO\",\"SELECCIONE\")))","v":"SELECCIONE"},"Seleccione","Seleccione","Seleccione","Seleccione","Seleccione","Seleccione","Seleccione","Seleccione",{"$f":"IF(AND(FM12>0,FM12<4),\"BAJO\",IF(AND(FM12>3,FM12<8),\"MEDIO\",IF(AND(FM12>7,FM12<11),\"ALTO\",\"SELECCIONE\")))","v":"SELECCIONE"},"Seleccione","Seleccione","Seleccione"]
[null,null,null,null,null,null,null,null,"Seleccione",30,"Seleccione",{"$f":"J13/(K13*K13)","v":{"$error":"#VALUE!"}},{"$error":"#VALUE!"},26,"26 a 35 años","Seleccione",null,null,"Seleccione","SELECCIONE","Seleccione","Seleccione","SELECCIONE","Seleccione","SELECCIONE","Seleccione",null,"Seleccione","Seleccione","Seleccione","Seleccione","SELECCIONE","Seleccione",null,"Seleccione","Seleccione",null,"Seleccione","Seleccione","Seleccione","Seleccione","Seleccione","Seleccione",{"$f":"IF(AND(AQ13>0,AQ13<4),\"BAJO\",IF(AND(AQ13>3,AQ13<8),\"MEDIO\",IF(AND(AQ13>7,AQ13<11),\"ALTO\",\"SELECCIONE\")))","v":"SELECCIONE"},"Seleccione","Seleccione","Seleccione","Seleccione","Seleccione","Seleccione","Seleccione","Seleccione",{"$f":"IF(AND(AZ13>0,AZ13<4),\"BAJO\",IF(AND(AZ13>3,AZ13<8),\"MEDIO\",IF(AND(AZ13>7,AZ13<11),\"ALTO\",\"SELECCIONE\")))","v":"SELECCIONE"},"Seleccione","Seleccione","Seleccione","Seleccione","Seleccione","Seleccione","Seleccione","Seleccione",{"$f":"IF(AND(BI13>0,BI13<4),\"BAJO\",IF(AND(BI13>3,BI13<8),\"MEDIO\",IF(AND(BI13>7,BI13<11),\"ALTO\",\"SELECCIONE\")))","v":"SELECCIONE"},"Seleccione","Seleccione","Seleccione","Seleccione","Seleccione","Seleccione","Seleccione","Seleccione",{"$f":"IF(AND(BR13>0,BR13<4),\"BAJO\",IF(AND(BR13>3,BR13<8),\"MEDIO\",IF(AND(BR13>7,BR13<11),\"ALTO\",\"SELECCIONE\")))","v":"SELECCIONE"},"Seleccione","Seleccione","Seleccione","Seleccione","Seleccione","Seleccione","Seleccione","Seleccione",{"$f":"IF(AND(CA13>0,CA13<4),\"BAJO\",IF(AND(CA13>3,CA13<8),\"MEDIO\",IF(AND(CA13>7,CA13<11),\"ALTO\",\"SELECCIONE\")))","v":"SELECCIONE"},"Seleccione","Seleccione","Seleccione","Seleccione","Seleccione","Seleccione","Seleccione","Seleccione",{"$f":"IF(AND(CJ13>0,CJ13<4),\"BAJO\",IF(AND(CJ13>3,CJ13<8),\"MEDIO\",IF(AND(CJ13>7,CJ13<11),\"ALTO\",\"SELECCIONE\")))","v":"SELECCIONE"},"Seleccione","Seleccione","Seleccione","Seleccione","Seleccione","Seleccione","Seleccione","Seleccione",{"$f":"IF(AND(CS13>0,CS13<4),\"BAJO\",IF(AND(CS13>3,CS13<8),\"MEDIO\",IF(AND(CS13>7,CS13<11),\"ALTO\",\"SELECCIONE\")))","v":"SELECCIONE"},"Seleccione","Seleccione","Seleccione","Seleccione","Seleccione","Seleccione","Seleccione","Seleccione",{"$f":"IF(AND(DB13>0,DB13<4),\"BAJO\",IF(AND(DB13>3,DB13<8),\"MEDIO\",IF(AND(DB13>7,DB13<11),\"ALTO\",\"SELECCIONE\")))","v":"SELECCIONE"},"Seleccione","Seleccione","Seleccione","Seleccione","Seleccione","Seleccione","Seleccione","Seleccione",{"$f":"IF(AND(DK13>0,DK13<4),\"BAJO\",IF(AND(DK13>3,DK13<8),\"MEDIO\",IF(AND(DK13>7,DK13<11),\"ALTO\",\"SELECCIONE\")))","v":"SELECCIONE"},"Seleccione","Seleccione","Seleccione","Seleccione","Seleccione","Seleccione","Seleccione","Seleccione",{"$f":"IF(AND(DT13>0,DT13<4),\"BAJO\",IF(AND(DT13>3,DT13<8),\"MEDIO\",IF(AND(DT13>7,DT13<11),\"ALTO\",\"SELECCIONE\")))","v":"SELECCIONE"},"Seleccione","Seleccione","Seleccione","Seleccione","Seleccione","Seleccione","Seleccione","Seleccione",{"$f":"IF(AND(EC13>0,EC13<4),\"BAJO\",IF(AND(EC13>3,EC13<8),\"MEDIO\",IF(AND(EC13>7,EC13<11),\"ALTO\",\"SELECCIONE\")))","v":"SELECCIONE"},"Seleccione","Seleccione","Seleccione","Seleccione","Seleccione","Seleccione","Seleccione","Seleccione",{"$f":"IF(AND(EL13>0,EL13<4),\"BAJO\",IF(AND(EL13>3,EL13<8),\"MEDIO\",IF(AND(EL13>7,EL13<11),\"ALTO\",\"SELECCIONE\")))","v":"SELECCIONE"},"Seleccione","Seleccione","Seleccione","Seleccione","Seleccione","Seleccione","Seleccione","Seleccione",{"$f":"IF(AND(EU13>0,EU13<4),\"BAJO\",IF(AND(EU13>3,EU13<8),\"MEDIO\",IF(AND(EU13>7,EU13<11),\"ALTO\",\"SELECCIONE\")))","v":"SELECCIONE"},"Seleccione","Seleccione","Seleccione","Seleccione","Seleccione","Seleccione","Seleccione","Seleccione",{"$f":"IF(AND(FD13>0,FD13<4),\"BAJO\",IF(AND(FD13>3,FD13<8),\"MEDIO\",IF(AND(FD13>7,FD13<11),\"ALTO\",\"SELECCIONE\")))","v":"SELECCIONE"},"Seleccione","Seleccione","Seleccione","Seleccione","Seleccione","Seleccione","Seleccione","Seleccione",{"$f":"IF(AND(FM13>0,FM13<4),\"BAJO\",IF(AND(FM13>3,FM13<8),\"MEDIO\",IF(AND(FM13>7,FM13<11),\"ALTO\",\"SELECCIONE\")))","v":"SELECCIONE"},"Seleccione","Seleccione","Seleccione"]
[null,null,null,null,null,null,null,null,"Seleccione",30,"Seleccione",{"$f":"J14/(K14*K14)","v":{"$error":"#VALUE!"}},{"$error":"#VALUE!"},65,"≥ 56 años","Seleccione",null,null,"Seleccione","SELECCIONE","Seleccione","Seleccione","SELECCIONE","Seleccione","SELECCIONE","Seleccione",null,"Seleccione","Seleccione","Seleccione","Seleccione","SELECCIONE","Seleccione",null,"Seleccione","Seleccione",null,"Seleccione","Seleccione","Seleccione","Seleccione","Seleccione","Seleccione",{"$f":"IF(AND(AQ14>0,AQ14<4),\"BAJO\",IF(AND(AQ14>3,AQ14<8),\"MEDIO\",IF(AND(AQ14>7,AQ14<11),\"ALTO\",\"SELECCIONE\")))","v":"SELECCIONE"},"Seleccione","Seleccione","Seleccione","Seleccione","Seleccione","Seleccione","Seleccione","Seleccione",{"$f":"IF(AND(AZ14>0,AZ14<4),\"BAJO\",IF(AND(AZ14>3,AZ14<8),\"MEDIO\",IF(AND(AZ14>7,AZ14<11),\"ALTO\",\"SELECCIONE\")))","v":"SELECCIONE"},"Seleccione","Seleccione","Seleccione","Seleccione","Seleccione","Seleccione","Seleccione","Seleccione",{"$f":"IF(AND(BI14>0,BI14<4),\"BAJO\",IF(AND(BI14>3,BI14<8),\"MEDIO\",IF(AND(BI14>7,BI14<11),\"ALTO\",\"SELECCIONE\")))","v":"SELECCIONE"},"Seleccione","Seleccione","Seleccione","Seleccione","Seleccione","Seleccione","Seleccione","Seleccione",{"$f":"IF(AND(BR14>0,BR14<4),\"BAJO\",IF(AND(BR14>3,BR14<8),\"MEDIO\",IF(AND(BR14>7,BR14<11),\"ALTO\",\"SELECCIONE\")))","v":"SELECCIONE"},"Seleccione","Seleccione","Seleccione","Seleccione","Seleccione","Seleccione","Seleccione","Seleccione",{"$f":"IF(AND(CA14>0,CA14<4),\"BAJO\",IF(AND(CA14>3,CA14<8),\"MEDIO\",IF(AND(CA14>7,CA14<11),\"ALTO\",\"SELECCIONE\")))","v":"SELECCIONE"},"Seleccione","Seleccione","Seleccione","Seleccione","Seleccione","Seleccione","Seleccione","Seleccione",{"$f":"IF(AND(CJ14>0,CJ14<4),\"BAJO\",IF(AND(CJ14>3,CJ14<8),\"MEDIO\",IF(AND(CJ14>7,CJ14<11),\"ALTO\",\"SELECCIONE\")))","v":"SELECCIONE"},"Seleccione","Seleccione","Seleccione","Seleccione","Seleccione","Seleccione","Seleccione","Seleccione",{"$f":"IF(AND(CS14>0,CS14<4),\"BAJO\",IF(AND(CS14>3,CS14<8),\"MEDIO\",IF(AND(CS14>7,CS14<11),\"ALTO\",\"SELECCIONE\")))","v":"SELECCIONE"},"Seleccione","Seleccione","Seleccione","Seleccione","Seleccione","Seleccione","Seleccione","Seleccione",{"$f":"IF(AND(DB14>0,DB14<4),\"BAJO\",IF(AND(DB14>3,DB14<8),\"MEDIO\",IF(AND(DB14>7,DB14<11),\"ALTO\",\"SELECCIONE\")))","v":"SELECCIONE"},"Seleccione","Seleccione","Seleccione","Seleccione","Seleccione","Seleccione","Seleccione","Seleccione",{"$f":"IF(AND(DK14>0,DK14<4),\"BAJO\",IF(AND(DK14>3,DK14<8),\"MEDIO\",IF(AND(DK14>7,DK14<11),\"ALTO\",\"SELECCIONE\")))","v":"SELECCIONE"},"Seleccione","Seleccione","Seleccione","Seleccione","Seleccione","Seleccione","Seleccione","Seleccione",{"$f":"IF(AND(DT14>0,DT14<4),\"BAJO\",IF(AND(DT14>3,DT14<8),\"MEDIO\",IF(AND(DT14>7,DT14<11),\"ALTO\",\"SELECCIONE\")))","v":"SELECCIONE"},"Seleccione","Seleccione","Seleccione","Seleccione","Seleccione","Seleccione","Seleccione","Seleccione",{"$f":"IF(AND(EC14>0,EC14<4),\"BAJO\",IF(AND(EC14>3,EC14<8),\"MEDIO\",IF(AND(EC14>7,EC14<11),\"ALTO\",\"SELECCIONE\")))","v":"SELECCIONE"},"Seleccione","Seleccione","Seleccione","Seleccione","Seleccione","Seleccione","Seleccione","Seleccione",{"$f":"IF(AND(EL14>0,EL14<4),\"BAJO\",IF(AND(EL14>3,EL14<8),\"MEDIO\",IF(AND(EL14>7,EL14<11),\"ALTO\",\"SELECCIONE\")))","v":"SELECCIONE"},"Seleccione","Seleccione","Seleccione","Seleccione","Seleccione","Seleccione","Seleccione","Seleccione",{"$f":"IF(AND(EU14>0,EU14<4),\"BAJO\",IF(AND(EU14>3,EU14<8),\"MEDIO\",IF(AND(EU14>7,EU14<11),\"ALTO\",\"SELECCIONE\")))","v":"SELECCIONE"},"Seleccione","Seleccione","Seleccione","Seleccione","Seleccione","Seleccione","Seleccione","Seleccione",{"$f":"IF(AND(FD14>0,FD14<4),\"BAJO\",IF(AND(FD14>3,FD14<8),\"MEDIO\",IF(AND(FD14>7,FD14<11),\"ALTO\",\"SELECCIONE\")))","v":"SELECCIONE"},"Seleccione","Seleccione","Seleccione","Seleccione","Seleccione","Seleccione","Seleccione","Seleccione",{"$f":"IF(AND(FM14>0,FM14<4),\"BAJO\",IF(AND(FM14>3,FM14<8),\"MEDIO\",IF(AND(FM14>7,FM14<11),\"ALTO\",\"SELECCIONE\")))","v":"SELECCIONE"},"Seleccione","Seleccione","Seleccione"]
[null,null,null,null,null,null,null,null,"Seleccione",30,"Seleccione",{"$f":"J15/(K15*K15)","v":{"$error":"#VALUE!"}},{"$error":"#VALUE!"},"Seleccione","SELECCIONE","Seleccione",null,null,"Seleccione","SELECCIONE","Seleccione","Seleccione","SELECCIONE","Seleccione","SELECCIONE","Seleccione",null,"Seleccione","Seleccione","Seleccione","Seleccione","SELECCIONE","Seleccione",null,"Seleccione","Seleccione",null,"Seleccione","Seleccione","Seleccione","Seleccione","Seleccione","Seleccione",{"$f":"IF(AND(AQ15>0,AQ15<4),\"BAJO\",IF(AND(AQ15>3,AQ15<8),\"MEDIO\",IF(AND(AQ15>7,AQ15<11),\"ALTO\",\"SELECCIONE\")))","v":"SELECCIONE"},"Seleccione","Seleccione","Seleccione","Seleccione","Seleccione","Seleccione","Seleccione","Seleccione",{"$f":"IF(AND(AZ15>0,AZ15<4),\"BAJO\",IF(AND(AZ15>3,AZ15<8),\"MEDIO\",IF(AND(AZ15>7,AZ15<11),\"ALTO\",\"SELECCIONE\")))","v":"SELECCIONE"},"Seleccione","Seleccione","Seleccione","Seleccione","Seleccione","Seleccione","Seleccione","Seleccione",{"$f":"IF(AND(BI15>0,BI15<4),\"BAJO\",IF(AND(BI15>3,BI15<8),\"MEDIO\",IF(AND(BI15>7,BI15<11),\"ALTO\",\"SELECCIONE\")))","v":"SELECCIONE"},"Seleccione","Seleccione","Seleccione","Seleccione","Seleccione","Seleccione","Seleccione","Seleccione",{"$f":"IF(AND(BR15>0,BR15<4),\"BAJO\",IF(AND(BR15>3,BR15<8),\"MEDIO\",IF(AND(BR15>7,BR15<11),\"ALTO\",\"SELECCIONE\")))","v":"SELECCIONE"},"Seleccione","Seleccione","Seleccione","Seleccione","Seleccione","Seleccione","Seleccione","Seleccione",{"$f":"IF(AND(CA15>0,CA15<4),\"BAJO\",IF(AND(CA15>3,CA15<8),\"MEDIO\",IF(AND(CA15>7,CA15<11),\"ALTO\",\"SELECCIONE\")))","v":"SELECCIONE"},"Seleccione","Seleccione","Seleccione","Seleccione","Seleccione","Seleccione","Seleccione","Seleccione",{"$f":"IF(AND(CJ15>0,CJ15<4),\"BAJO\",IF(AND(CJ15>3,CJ15<8),\"MEDIO\",IF(AND(CJ15>7,CJ15<11),\"ALTO\",\"SELECCIONE\")))","v":"SELECCIONE"},"Seleccione","Seleccione","Seleccione","Seleccione","Seleccione","Seleccione","Seleccione","Seleccione",{"$f":"IF(AND(CS15>0,CS15<4),\"BAJO\",IF(AND(CS15>3,CS15<8),\"MEDIO\",IF(AND(CS15>7,CS15<11),\"ALTO\",\"SELECCIONE\")))","v":"SELECCIONE"},"Seleccione","Seleccione","Seleccione","Seleccione","Seleccione","Seleccione","Seleccione","Seleccione",{"$f":"IF(AND(DB15>0,DB15<4),\"BAJO\",IF(AND(DB15>3,DB15<8),\"MEDIO\",IF(AND(DB15>7,DB15<11),\"ALTO\",\"SELECCIONE\")))","v":"SELECCIONE"},"Seleccione","Seleccione","Seleccione","Seleccione","Seleccione","Seleccione","Seleccione","Seleccione",{"$f":"IF(AND(DK15>0,DK15<4),\"BAJO\",IF(AND(DK15>3,DK15<8),\"MEDIO\",IF(AND(DK15>7,DK15<11),\"ALTO\",\"SELECCIONE\")))","v":"SELECCIONE"},"Seleccione","Seleccione","Seleccione","Seleccione","Seleccione","Seleccione","Seleccione","Seleccione",{"$f":"IF(AND(DT15>0,DT15<4),\"BAJO\",IF(AND(DT15>3,DT15<8),\"MEDIO\",IF(AND(DT15>7,DT15<11),\"ALTO\",\"SELECCIONE\")))","v":"SELECCIONE"},"Seleccione","Seleccione","Seleccione","Seleccione","Seleccione","Seleccione","Seleccione","Seleccione",{"$f":"IF(AND(EC15>0,EC15<4),\"BAJO\",IF(AND(EC15>3,EC15<8),\"MEDIO\",IF(AND(EC15>7,EC15<11),\"ALTO\",\"SELECCIONE\")))","v":"SELECCIONE"},"Seleccione","Seleccione","Seleccione","Seleccione","Seleccione","Seleccione","Seleccione","Seleccione",{"$f":"IF(AND(EL15>0,EL15<4),\"BAJO\",IF(AND(EL15>3,EL15<8),\"MEDIO\",IF(AND(EL15>7,EL15<11),\"ALTO\",\"SELECCIONE\")))","v":"SELECCIONE"},"Seleccione","Seleccione","Seleccione","Seleccione","Seleccione","Seleccione","Seleccione","Seleccione",{"$f":"IF(AND(EU15>0,EU15<4),\"BAJO\",IF(AND(EU15>3,EU15<8),\"MEDIO\",IF(AND(EU15>7,EU15<11),\"ALTO\",\"SELECCIONE\")))","v":"SELECCIONE"},"Seleccione","Seleccione","Seleccione","Seleccione","Seleccione","Seleccione","Seleccione","Seleccione",{"$f":"IF(AND(FD15>0,FD15<4),\"BAJO\",IF(AND(FD15>3,FD15<8),\"MEDIO\",IF(AND(FD15>7,FD15<11),\"ALTO\",\"SELECCIONE\")))","v":"SELECCIONE"},"Seleccione","Seleccione","Seleccione","Seleccione","Seleccione","Seleccione","Seleccione","Seleccione",{"$f":"IF(AND(FM15>0,FM15<4),\"BAJO\",IF(AND(FM15>3,FM15<8),\"MEDIO\",IF(AND(FM15>7,FM15<11),\"ALTO\",\"SELECCIONE\")))","v":"SELECCIONE"},"Seleccione","Seleccione","Seleccione"]

{"sheet":"Hoja2","index":3,"n_rows":1505,"n_cols":42,"rows_kept":1505,"cut":false,"hidden":true,"merged":[]}
[]
[null,null,null,null,null,null,null,"fumar"]
["Talla","Peso",null,"Actividad física",null,null,null,"Seleccione","jornada de trabajo","horas que trabaja por día",null,"ANTIGÜEDAD CARGO",null,"CIGARRILLOS","TIEMPO QUE FUMA","Variable duración "]
["Seleccione","Seleccione",null,"Seleccione",null,"Seleccione",null,"1 a 5 cigarrillos","Seleccione","Seleccione",null,"Seleccione",null,"Seleccione","Seleccione","Seleccione",null,"Seleccione",null,null,"Seleccione",null,null,"Seleccione","Seleccione",null,"Edad",null,null,null,null,null,"Seleccione",null,"Seleccione","Seleccione","Seleccione","Seleccione","Seleccione","Seleccione",null,"Seleccione"]
[1.3,30,null,"Caminar",null,"Diario",null,"6 a 15 cigarrillos","0-1 hora",1,null,0,null,1,0,"Sí",null,"Dolor",null,null,"Abejorral",null,null,"Diario","15 min",null,"Seleccione",null,null,"Seleccione","Seleccione",null,"Cuello lado derecho",null,"Dolor","Al realizar mi trabajo","1 semana","Menos de 24 horas","Nada","No, en absoluto",null,"Sí"]
[{"$f":"A5+0.01","v":1.31},{"$f":"B5+0.1","v":30.1},null,"Trotar",null,"Dos veces a la semana",null,"16 y más cigarrillos","1-2 horas",2,null,1,null,{"$f":"N5+1","v":2},1,"No",null,"Hormigueo",null,null,"Ábrego",null,null,"Dos veces a la semana","30 min",null,15,null,null,"Lado derecho","Dolor",null,"Cuello lado izquierdo",null,"Hormigueo","Al final del día","1 mes","De 1 a 7 días","Un poco incómodo","Poca interferencia",null,"No"]
[{"$f":"A6+0.01","v":1.32},30.200000000000003,null,"Correr",null,"Tres veces a la semana",null,null,"2- 4 horas",3,null,2,null,{"$f":"N6+1","v":3},2,null,null,"Adormecimiento",null,null,"Abriaquí",null,null,"Tres veces a la semana","1 hora",null,16,null,null,"Lado izquierdo ","Hormigueo",null,"Cuello ambos lados",null,"Adormecimiento","Al final de la semana","3 meses","De 8 a 30 días","Moderadamente incómodo","Interfiere sustancialmente"]
[1.33,30.300000000000004,null,"Gimnasio",null,"Fines de semana",null,null,"4-6 horas",4,null,3,null,4,3,null,null,"Malestar",null,null,"Acacías",null,null,"Fines de semana","Más de 1 hora",null,17,"Seleccione","Seleccione","Ambos","Adormecimiento",null,"Hombro derecho",null,"Malestar","Todo el tiempo","6 meses","De manera permanente","Muy incómodo"]
[1.34,30.400000000000006,null,"Bicicleta",null,"Nunca",null,"Seleccione","8 horas",{"$f":"J8+1","v":5},null,4,null,5,4,null,null,null,null,null,"Acandí",null,null,null,null,null,18,"Diario","15 min",null,"Malestar",null,"Hombro izquierdo",null,null,"En mi casa","12 meses","De manera intermitente"]
[1.35,30.500000000000007,null,"Futbol",null,null,null,"Menos de 1 año","12 horas",{"$f":"J9+1","v":6},null,{"$f":"L9+1","v":5},null,6,{"$f":"O9+1","v":5},null,null,null,null,null,"Acevedo",null,null,null,null,null,{"$f":"AA9+1","v":19},"Dos veces a la semana","30 min",null,null,null,"Ambos hombros",null,null,null,"Más de 12 meses"]
[1.36,30.600000000000009,null,"Baloncesto",null,null,null,"1 a 2 años","otro",7,null,{"$f":"L10+1","v":6},null,7,6,null,null,"Seleccione",null,null,"Achí",null,null,null,null,null,{"$f":"AA10+1","v":20},"Tres veces a la semana","1 hora",null,null,null,"Espalda alta lado derecho"]
[1.37,30.70000000000001,null,"Voleyball",null,null,null,"3 a 4 años",null,8,null,7,null,8,7,null,null,"Al realizar mi trabajo",null,null,"Agrado",null,null,"Seleccione",null,"Seleccione",21,"Fines de semana","Más de 1 hora",null,"Seleccione",null,"Espalda alta lado izquierdo"]
[1.3800000000000001,30.800000000000011,null,"Natación",null,"Seleccione",null,"5 a 9 años",null,9,null,8,null,9,8,null,null,"Al final del día",null,null,"Agua De Dios",null,null,"Mujer",null,1,22,null,null,null,"Al realizar mi trabajo",null,"Espalda alta ambos lados"]
[1.3900000000000001,30.900000000000013,null,"Tenis de campo",null,"15 min",null,"10 años en adelante",null,10,null,9,null,10,9,null,null,"Al final de la semana",null,null,"Aguachica",null,null,"Hombre",null,2,23,null,null,null,"Al final del día",null,"Espalda baja lado derecho"]
[1.4,31.000000000000014,null,"Ciclovia",null,"30 min",null,null,null,11,null,10,null,{"$f":"N14+1","v":11},10,null,null,"Todo el tiempo",null,null,"Aguada",null,null,null,null,3,24,null,null,null,"Al final de la semana",null,"Espalda baja lado izquierdo"]
[{"$f":"A15+0.01","v":1.41},31.100000000000016,null,"Patinar",null,"1 hora",null,null,null,12,null,11,null,12,11,null,null,"En mi casa",null,null,"Aguadas",null,null,"Seleccione",null,4,25,null,null,null,"Todo el tiempo",null,"Espalda baja ambos lados"]
[1.42,31.200000000000017,null,"Otro",null,"Más de 1 hora",null,null,null,13,null,12,null,13,12,null,null,null,null,null,"Aguazul",null,null,"Derecho",null,5,26,null,"Seleccione",null,"En mi casa",null,"Brazo derecho"]
[1.43,31.300000000000018,null,null,null,null,null,null,null,14,null,13,null,14,13,null,null,null,null,null,"Agustín Codazzi",null,null,"Izquierdo",null,6,27,null,1,null,null,null,"Brazo izquierdo"]
[1.44,31.40000000000002,null,null,null,null,null,null,null,15,null,14,null,15,14,null,null,"Seleccione",null,null,"Aipe",null,null,"Ambos",null,7,28,null,2,null,null,null,"Ambos brazos"]
[1.45,31.500000000000021,null,null,null,null,null,null,null,16,null,15,null,16,15,null,null,"Menos de 24 horas",null,null,"Albán",null,null,null,null,8,29,null,3,null,null,null,"Codo derecho"]
[1.46,31.600000000000023,null,null,null,null,null,null,null,17,null,16,null,17,16,null,null,"De 1 a 7 días",null,null,"Albania",null,null,null,null,9,30,null,4,null,null,null,"Codo izquierdo"]
[1.47,31.700000000000024,null,null,null,null,null,null,null,18,null,17,null,18,17,null,null,"De 8 a 30 días",null,null,"Alcalá",null,null,null,null,10,31,null,5,null,null,null,"Ambos codos"]
[1.48,31.800000000000026,null,null,null,null,null,null,null,19,null,18,null,19,18,null,null,"De manera permanente",null,null,"Aldana",null,null,null,null,11,32,null,6,null,null,null,"Antebrazo derecho"]
[1.49,31.900000000000027,null,null,null,null,null,null,null,20,null,19,null,20,19,null,null,"De manera intermitente",null,null,"Alejandría",null,null,null,null,12,33,null,7,null,null,null,"Antebrazo izquierdo"]
[1.5,32.000000000000028,null,null,null,null,null,null,null,21,null,20,null,21,20,null,null,null,null,null,"Algarrobo",null,null,null,null,13,34,null,8,null,null,null,"Ambos antebrazos"]
[1.51,32.10000000000003,null,null,null,null,null,null,null,22,null,21,null,22,21,null,null,null,null,null,"Algeciras",null,null,null,null,14,35,null,9,null,null,null,"Muñeca derecha"]
[1.52,32.200000000000031,null,null,null,null,null,null,null,23,null,22,null,23,22,null,null,"Seleccione",null,null,"Almaguer",null,null,null,null,15,36,null,10,null,null,null,"Muñeca izquierda"]
[1.53,32.300000000000033,null,null,null,null,null,null,null,24,null,23,null,24,23,null,null,"1 semana",null,null,"Almeida",null,null,null,null,16,37,null,null,null,"Seleccione",null,"Ambas muñecas"]
[1.54,32.400000000000034,null,null,null,null,null,null,null,null,null,24,null,25,{"$f":"O28+1","v":24},null,null,"1 mes",null,null,"Alpujarra",null,null,null,null,17,38,null,null,null,"1 semana",null,"Mano derecha"]
[1.55,32.500000000000036,null,null,null,null,null,null,null,null,null,25,null,26,25,null,null,"3 meses",null,null,"Altamira",null,null,null,null,18,39,null,null,null,"1 mes",null,"Mano izquierda"]
[1.56,32.600000000000037,null,null,null,null,null,null,null,null,null,26,null,27,26,null,null,"6 meses",null,null,"Alto Baudó",null,null,null,null,19,40,null,null,null,"3 meses",null,"Ambas manos"]
[1.57,32.700000000000038,null,null,null,null,null,null,null,null,null,27,null,28,27,null,null,"12 meses",null,null,"Altos Del Rosario",null,null,null,null,20,41,null,null,null,"6 meses",null,"Dedos mano derecha"]
[1.58,32.80000000000004,null,null,null,null,null,null,"Seleccione",null,null,28,null,29,28,null,null,"Más de 12 meses",null,null,"Alvarado",null,null,null,null,21,42,null,null,null,"12 meses",null,"Dedos mano izquierda"]
[1.59,32.900000000000041,null,null,null,null,null,null,"Diario",null,null,29,null,30,29,null,null,null,null,null,"Amagá",null,null,null,null,22,43,null,null,null,"Más de 12 meses",null,"Dedos ambas manos"]
[1.6,33.000000000000043,null,null,null,null,null,null,"Dos veces a la semana",null,null,30,null,31,30,null,null,"Seleccione",null,null,"Amalfi",null,null,null,null,23,44,null,null,null,null,null,"Cadera derecha"]
[1.61,33.100000000000044,null,null,null,null,null,null,"Tres veces a la semana",null,null,31,null,32,31,null,null,"0: Ningún dolor",null,null,"Ambalema",null,null,null,null,24,45,null,null,null,null,null,"Cadera izquierda"]
[1.62,33.200000000000045,null,null,null,null,null,null,"Fines de semana",null,null,32,null,33,32,null,null,1,null,null,"Anapoima",null,null,"Seleccione",null,null,46,null,null,null,null,null,"Ambas caderas"]
[1.6300000000000001,33.300000000000047,null,null,null,null,null,null,"Nunca",null,null,33,null,34,33,null,null,2,null,null,"Ancuyá",null,null,"No, en absoluto",null,null,47,null,null,null,null,null,"Muslo derecho"]
[1.6400000000000001,33.400000000000048,null,null,null,null,null,null,null,null,null,34,null,35,34,null,null,3,null,null,"Andalucía",null,null,"Poca interferencia",null,null,48,null,null,null,null,null,"Muslo izquierdo"]
[1.6500000000000001,33.50000000000005,null,null,null,null,null,null,null,null,null,35,null,36,35,null,null,4,null,null,"Andes",null,null,"Interfiere sustancialmente",null,null,49,null,null,null,null,null,"Ambos muslos"]
[1.6600000000000001,33.600000000000051,null,null,null,null,null,null,null,null,null,36,null,37,36,null,null,5,null,null,"Angelópolis",null,null,null,null,null,50,null,null,null,null,null,"Rodilla derecha "]
[1.6700000000000002,33.700000000000053,null,null,null,null,null,null,null,null,null,37,null,38,37,null,null,6,null,null,"Angostura",null,null,null,null,null,51,null,null,null,null,null,"Rodilla izquierda"]
[1.6800000000000002,33.800000000000054,null,null,null,null,null,null,null,null,null,38,null,39,38,null,null,7,null,null,"Anolaima",null,null,null,null,null,52,null,null,null,null,null,"Ambas rodillas"]
[1.6900000000000002,33.900000000000055,null,null,null,null,null,null,null,null,null,39,null,40,39,null,null,8,null,null,"Anorí",null,null,null,null,null,53,null,null,null,null,null,"Pierna derecha"]
[1.7000000000000002,34.000000000000057,null,null,null,null,null,null,null,null,null,40,null,null,40,null,null,9,null,null,"Anserma",null,null,null,null,null,54,null,null,null,null,null,"Pierna izquierda"]
[1.7100000000000002,34.100000000000058,null,null,null,null,null,null,null,null,null,null,null,null,41,null,null,"10: Dolor intolerable",null,null,"Ansermanuevo",null,null,null,null,null,55,null,null,null,null,null,"Ambas piernas"]
[1.7200000000000002,34.20000000000006,null,null,null,null,null,null,null,null,null,null,null,null,42,null,null,null,null,null,"Anzá",null,null,null,null,null,{"$f":"AA46+1","v":56},null,null,null,null,null,"Pie derecho"]
[{"$f":"A47+0.01","v":1.7300000000000002},34.300000000000061,null,null,null,null,null,null,null,null,null,null,null,null,43,null,null,null,null,null,"Anzoátegui",null,null,null,null,null,57,null,null,null,null,null,"Pie izquierdo"]
[1.7400000000000002,34.400000000000063,null,null,null,null,null,null,null,null,null,null,null,null,44,null,null,null,null,null,"Apartadó",null,null,null,null,null,58,null,null,null,null,null,"Ambos pies"]
[1.7500000000000002,34.500000000000064,null,null,null,null,null,null,null,null,null,null,null,null,45,null,null,null,null,null,"Apía",null,null,null,null,null,59]
[1.7600000000000002,34.600000000000065,null,null,null,null,null,null,null,null,null,null,null,null,46,null,null,null,null,null,"Apulo",null,null,null,null,null,60]
[1.7700000000000002,34.700000000000067,null,null,null,null,null,null,null,null,null,null,null,null,47,null,null,null,null,null,"Aquitania",null,null,null,null,null,61]
[1.7800000000000002,34.800000000000068,null,null,null,null,null,null,null,null,null,null,null,null,48,null,null,null,null,null,"Aracataca",null,null,null,null,null,62]
[1.7900000000000003,34.90000000000007,null,null,null,null,null,null,null,null,null,null,null,null,49,null,null,null,null,null,"Aranzazu",null,null,null,null,null,63]
[1.8000000000000003,35.000000000000071,null,null,null,null,null,null,null,null,null,null,null,null,50,null,null,null,null,null,"Aratoca",null,null,null,null,null,64]
[1.8100000000000003,35.100000000000072,null,null,null,null,null,null,null,null,null,null,null,null,51,null,null,null,null,null,"Arauca",null,null,null,null,null,65]
[1.8200000000000003,35.200000000000074,null,null,null,null,null,null,null,null,null,null,null,null,52,null,null,null,null,null,"Arauquita",null,null,null,null,null,66]
[1.8300000000000003,35.300000000000075,null,null,null,null,null,null,null,null,null,null,null,null,53,null,null,null,null,null,"Arbeláez",null,null,null,null,null,67]
[1.8400000000000003,35.400000000000077,null,null,null,null,null,null,null,null,null,null,null,null,54,null,null,null,null,null,"Arboleda",null,null,null,null,null,68]
[1.8500000000000003,35.500000000000078,null,null,null,null,null,null,null,null,null,null,null,null,55,null,null,null,null,null,"Arboledas",null,null,null,null,null,{"$f":"AA59+1","v":69}]
[1.8600000000000003,35.60000000000008,null,null,null,null,null,null,null,null,null,null,null,null,56,null,null,null,null,null,"Arboletes",null,null,null,null,null,70]
[1.8700000000000003,35.700000000000081,null,null,null,null,null,null,null,null,null,null,null,null,57,null,null,null,null,null,"Arcabuco"]
[1.8800000000000003,35.800000000000082,null,null,null,null,null,null,null,null,null,null,null,null,58,null,null,null,null,null,"Arenal"]
[1.8900000000000003,35.900000000000084,null,null,null,null,null,null,null,null,null,null,null,null,59,null,null,null,null,null,"Argelia"]
[1.9000000000000004,36.000000000000085,null,null,null,null,null,null,null,null,null,null,null,null,60,null,null,null,null,null,"Ariguaní"]
[1.9100000000000004,36.100000000000087,null,null,null,null,null,null,null,null,null,null,null,null,null,null,null,null,null,null,"Arjona"]
[1.9200000000000004,36.200000000000088,null,null,null,null,null,null,null,null,null,null,null,null,null,null,null,null,null,null,"Armenia"]
[1.9300000000000004,36.30000000000009,null,null,null,null,null,null,null,null,null,null,null,null,null,null,null,null,null,null,"Armero Guayabal"]
[1.9400000000000004,36.400000000000091,null,null,null,null,null,null,null,null,null,null,null,null,null,null,null,null,null,null,"Arroyohondo"]
[1.9500000000000004,{"$f":"B69+0.1","v":36.500000000000092},null,null,null,null,null,null,null,null,null,null,null,null,null,null,null,null,null,null,"Astrea"]
[1.9600000000000004,36.600000000000094,null,null,null,null,null,null,null,null,null,null,null,null,null,null,null,null,null,null,"Ataco"]
[1.9700000000000004,36.700000000000095,null,null,null,null,null,null,null,null,null,null,null,null,null,null,null,null,null,null,"Atrato"]
[1.9800000000000004,36.800000000000097,null,null,null,null,null,null,null,null,null,null,null,null,null,null,null,null,null,null,"Ayapel"]
[1.9900000000000004,36.900000000000098,null,null,null,null,null,null,null,null,null,null,null,null,null,null,null,null,null,null,"Bagadó"]
[2.0000000000000004,37.000000000000099,null,null,null,null,null,null,null,null,null,null,null,null,null,null,null,null,null,null,"Bahía Solano"]
[2.0100000000000002,37.100000000000101,null,null,null,null,null,null,null,null,null,null,null,null,null,null,null,null,null,null,"Bajo Baudó"]
[2.02,37.200000000000102,null,null,null,null,null,null,null,null,null,null,null,null,null,null,null,null,null,null,"Balboa"]
[2.0299999999999998,37.300000000000104,null,null,null,null,null,null,null,null,null,null,null,null,null,null,null,null,null,null,"Baranoa"]
[2.0399999999999996,37.400000000000105,null,null,null,null,null,null,null,null,null,null,null,null,null,null,null,null,null,null,"Baraya"]
[{"$f":"A79+0.01","v":2.0499999999999994},37.500000000000107,null,null,null,null,null,null,null,null,null,null,null,null,null,null,null,null,null,null,"Barbacoas"]
[2.0599999999999992,37.600000000000108,null,null,null,null,null,null,null,null,null,null,null,null,null,null,null,null,null,null,"Barbosa"]
[2.069999999999999,37.700000000000109,null,null,null,null,null,null,null,null,null,null,null,null,null,null,null,null,null,null,"Barichara"]
[2.0799999999999987,37.800000000000111,null,null,null,null,null,null,null,null,null,null,null,null,null,null,null,null,null,null,"Barranca De Upía"]
[2.0899999999999985,37.900000000000112,null,null,null,null,null,null,null,null,null,null,null,null,null,null,null,null,null,null,"Barrancabermeja"]
[2.0999999999999983,38.000000000000114,null,null,null,null,null,null,null,null,null,null,null,null,null,null,null,null,null,null,"Barrancas"]
[null,38.100000000000115,null,null,null,null,null,null,null,null,null,null,null,null,null,null,null,null,null,null,"Barranco De Loba"]
[null,38.200000000000117,null,null,null,null,null,null,null,null,null,null,null,null,null,null,null,null,null,null,"Barranco Minas"]
[null,38.300000000000118,null,null,null,null,null,null,null,null,null,null,null,null,null,null,null,null,null,null,"Barranquilla"]
[null,38.400000000000119,null,null,null,null,null,null,null,null,null,null,null,null,null,null,null,null,null,null,"Becerril"]
[null,38.500000000000121,null,null,null,null,null,null,null,null,null,null,null,null,null,null,null,null,null,null,"Belalcázar"]
[null,38.600000000000122,null,null,null,null,null,null,null,null,null,null,null,null,null,null,null,null,null,null,"Belén"]
[null,38.700000000000124,null,null,null,null,null,null,null,null,null,null,null,null,null,null,null,null,null,null,"Belén De Los Andaquíes"]
[null,38.800000000000125,null,null,null,null,null,null,null,null,null,null,null,null,null,null,null,null,null,null,"Belén De Umbría"]
[null,38.900000000000126,null,null,null,null,null,null,null,null,null,null,null,null,null,null,null,null,null,null,"Bello"]
[null,39.000000000000128,null,null,null,null,null,null,null,null,null,null,null,null,null,null,null,null,null,null,"Belmira"]
[null,39.100000000000129,null,null,null,null,null,null,null,null,null,null,null,null,null,null,null,null,null,null,"Beltrán"]
[null,39.200000000000131,null,null,null,null,null,null,null,null,null,null,null,null,null,null,null,null,null,null,"Berbeo"]
[null,39.300000000000132,null,null,null,null,null,null,null,null,null,null,null,null,null,null,null,null,null,null,"Betania"]
[null,39.400000000000134,null,null,null,null,null,null,null,null,null,null,null,null,null,null,null,null,null,null,"Betéitiva"]
[null,39.500000000000135,null,null,null,null,null,null,null,null,null,null,null,null,null,null,null,null,null,null,"Betulia"]
[null,39.600000000000136,null,null,null,null,null,null,null,null,null,null,null,null,null,null,null,null,null,null,"Bituima"]
[null,39.700000000000138,null,null,null,null,null,null,null,null,null,null,null,null,null,null,null,null,null,null,"Boavita"]
[null,39.800000000000139,null,null,null,null,null,null,null,null,null,null,null,null,null,null,null,null,null,null,"Bochalema"]
[null,39.900000000000141,null,null,null,null,null,null,null,null,null,null,null,null,null,null,null,null,null,null,"Bogotá, D.C."]
[null,40.000000000000142,null,null,null,null,null,null,null,null,null,null,null,null,null,null,null,null,null,null,"Bojacá"]
[null,40.100000000000144,null,null,null,null,null,null,null,null,null,null,null,null,null,null,null,null,null,null,"Bojayá"]
[null,40.200000000000145,null,null,null,null,null,null,null,null,null,null,null,null,null,null,null,null,null,null,"Bolívar"]
[null,40.300000000000146,null,null,null,null,null,null,null,null,null,null,null,null,null,null,null,null,null,null,"Bosconia"]
[null,40.400000000000148,null,null,null,null,null,null,null,null,null,null,null,null,null,null,null,null,null,null,"Boyacá"]
[null,40.500000000000149,null,null,null,null,null,null,null,null,null,null,null,null,null,null,null,null,null,null,"Briceño"]
[null,40.600000000000151,null,null,null,null,null,null,null,null,null,null,null,null,null,null,null,null,null,null,"Bucaramanga"]
[null,40.700000000000152,null,null,null,null,null,null,null,null,null,null,null,null,null,null,null,null,null,null,"Bucarasica"]
[null,40.800000000000153,null,null,null,null,null,null,null,null,null,null,null,null,null,null,null,null,null,null,"Buenaventura"]
[null,40.900000000000155,null,null,null,null,null,null,null,null,null,null,null,null,null,null,null,null,null,null,"Buenavista"]
[null,41.000000000000156,null,null,null,null,null,null,null,null,null,null,null,null,null,null,null,null,null,null,"Buenos Aires"]
[null,41.100000000000158,null,null,null,null,null,null,null,null,null,null,null,null,null,null,null,null,null,null,"Buesaco"]
[null,41.200000000000159,null,null,null,null,null,null,null,null,null,null,null,null,null,null,null,null,null,null,"Bugalagrande"]
[null,41.300000000000161,null,null,null,null,null,null,null,null,null,null,null,null,null,null,null,null,null,null,"Buriticá"]
[null,41.400000000000162,null,null,null,null,null,null,null,null,null,null,null,null,null,null,null,null,null,null,"Busbanzá"]
[null,41.500000000000163,null,null,null,null,null,null,null,null,null,null,null,null,null,null,null,null,null,null,"Cabrera"]
[null,41.600000000000165,null,null,null,null,null,null,null,null,null,null,null,null,null,null,null,null,null,null,"Cabuyaro"]
[null,41.700000000000166,null,null,null,null,null,null,null,null,null,null,null,null,null,null,null,null,null,null,"Cacahual"]
[null,41.800000000000168,null,null,null,null,null,null,null,null,null,null,null,null,null,null,null,null,null,null,"Cáceres"]
[null,41.900000000000169,null,null,null,null,null,null,null,null,null,null,null,null,null,null,null,null,null,null,"Cachipay"]
[null,42.000000000000171,null,null,null,null,null,null,null,null,null,null,null,null,null,null,null,null,null,null,"Cáchira"]
[null,42.100000000000172,null,null,null,null,null,null,null,null,null,null,null,null,null,null,null,null,null,null,"Cácota"]
[null,42.200000000000173,null,null,null,null,null,null,null,null,null,null,null,null,null,null,null,null,null,null,"Caicedo"]
[null,42.300000000000175,null,null,null,null,null,null,null,null,null,null,null,null,null,null,null,null,null,null,"Caicedonia"]
[null,42.400000000000176,null,null,null,null,null,null,null,null,null,null,null,null,null,null,null,null,null,null,"Caimito"]
[null,42.500000000000178,null,null,null,null,null,null,null,null,null,null,null,null,null,null,null,null,null,null,"Cajamarca"]
[null,42.600000000000179,null,null,null,null,null,null,null,null,null,null,null,null,null,null,null,null,null,null,"Cajibío"]
[null,42.70000000000018,null,null,null,null,null,null,null,null,null,null,null,null,null,null,null,null,null,null,"Cajicá"]
[null,42.800000000000182,null,null,null,null,null,null,null,null,null,null,null,null,null,null,null,null,null,null,"Calamar"]
[null,{"$f":"B133+0.1","v":42.900000000000183},null,null,null,null,null,null,null,null,null,null,null,null,null,null,null,null,null,null,"Calarcá"]
[null,43.000000000000185,null,null,null,null,null,null,null,null,null,null,null,null,null,null,null,null,null,null,"Caldas"]
[null,43.100000000000186,null,null,null,null,null,null,null,null,null,null,null,null,null,null,null,null,null,null,"Caldono"]
[null,43.200000000000188,null,null,null,null,null,null,null,null,null,null,null,null,null,null,null,null,null,null,"Cali"]
[null,43.300000000000189,null,null,null,null,null,null,null,null,null,null,null,null,null,null,null,null,null,null,"California"]
[null,43.40000000000019,null,null,null,null,null,null,null,null,null,null,null,null,null,null,null,null,null,null,"Calima"]
[null,43.500000000000192,null,null,null,null,null,null,null,null,null,null,null,null,null,null,null,null,null,null,"Caloto"]
[null,43.600000000000193,null,null,null,null,null,null,null,null,null,null,null,null,null,null,null,null,null,null,"Campamento"]
[null,43.700000000000195,null,null,null,null,null,null,null,null,null,null,null,null,null,null,null,null,null,null,"Campo De La Cruz"]
[null,43.800000000000196,null,null,null,null,null,null,null,null,null,null,null,null,null,null,null,null,null,null,"Campoalegre"]
[null,43.900000000000198,null,null,null,null,null,null,null,null,null,null,null,null,null,null,null,null,null,null,"Campohermoso"]
[null,44.000000000000199,null,null,null,null,null,null,null,null,null,null,null,null,null,null,null,null,null,null,"Canalete"]
[null,44.1000000000002,null,null,null,null,null,null,null,null,null,null,null,null,null,null,null,null,null,null,"Candelaria"]
[null,44.200000000000202,null,null,null,null,null,null,null,null,null,null,null,null,null,null,null,null,null,null,"Cantagallo"]
[null,44.300000000000203,null,null,null,null,null,null,null,null,null,null,null,null,null,null,null,null,null,null,"Cañasgordas"]
[null,44.400000000000205,null,null,null,null,null,null,null,null,null,null,null,null,null,null,null,null,null,null,"Caparrapí"]
[null,44.500000000000206,null,null,null,null,null,null,null,null,null,null,null,null,null,null,null,null,null,null,"Capitanejo"]
[null,44.600000000000207,null,null,null,null,null,null,null,null,null,null,null,null,null,null,null,null,null,null,"Cáqueza"]
[null,44.700000000000209,null,null,null,null,null,null,null,null,null,null,null,null,null,null,null,null,null,null,"Caracolí"]
[null,44.80000000000021,null,null,null,null,null,null,null,null,null,null,null,null,null,null,null,null,null,null,"Caramanta"]
[null,44.900000000000212,null,null,null,null,null,null,null,null,null,null,null,null,null,null,null,null,null,null,"Carcasí"]
[null,45.000000000000213,null,null,null,null,null,null,null,null,null,null,null,null,null,null,null,null,null,null,"Carepa"]
[null,45.100000000000215,null,null,null,null,null,null,null,null,null,null,null,null,null,null,null,null,null,null,"Carmen De Apicalá"]
[null,45.200000000000216,null,null,null,null,null,null,null,null,null,null,null,null,null,null,null,null,null,null,"Carmen De Carupa"]
[null,45.300000000000217,null,null,null,null,null,null,null,null,null,null,null,null,null,null,null,null,null,null,"Carmen Del Darién"]
[null,45.400000000000219,null,null,null,null,null,null,null,null,null,null,null,null,null,null,null,null,null,null,"Carolina"]
[null,45.50000000000022,null,null,null,null,null,null,null,null,null,null,null,null,null,null,null,null,null,null,"Cartagena De Indias"]
[null,45.600000000000222,null,null,null,null,null,null,null,null,null,null,null,null,null,null,null,null,null,null,"Cartagena Del Chairá"]
[null,45.700000000000223,null,null,null,null,null,null,null,null,null,null,null,null,null,null,null,null,null,null,"Cartago"]
[null,45.800000000000225,null,null,null,null,null,null,null,null,null,null,null,null,null,null,null,null,null,null,"Carurú"]
[null,45.900000000000226,null,null,null,null,null,null,null,null,null,null,null,null,null,null,null,null,null,null,"Casabianca"]
[null,46.000000000000227,null,null,null,null,null,null,null,null,null,null,null,null,null,null,null,null,null,null,"Castilla La Nueva"]
[null,46.100000000000229,null,null,null,null,null,null,null,null,null,null,null,null,null,null,null,null,null,null,"Caucasia"]
[null,46.20000000000023,null,null,null,null,null,null,null,null,null,null,null,null,null,null,null,null,null,null,"Cepitá"]
[null,46.300000000000232,null,null,null,null,null,null,null,null,null,null,null,null,null,null,null,null,null,null,"Cereté"]
[null,46.400000000000233,null,null,null,null,null,null,null,null,null,null,null,null,null,null,null,null,null,null,"Cerinza"]
[null,46.500000000000234,null,null,null,null,null,null,null,null,null,null,null,null,null,null,null,null,null,null,"Cerrito"]
[null,46.600000000000236,null,null,null,null,null,null,null,null,null,null,null,null,null,null,null,null,null,null,"Cerro De San Antonio"]
[null,46.700000000000237,null,null,null,null,null,null,null,null,null,null,null,null,null,null,null,null,null,null,"Cértegui"]
[null,46.800000000000239,null,null,null,null,null,null,null,null,null,null,null,null,null,null,null,null,null,null,"Chachagüí"]
[null,46.90000000000024,null,null,null,null,null,null,null,null,null,null,null,null,null,null,null,null,null,null,"Chaguaní"]
[null,47.000000000000242,null,null,null,null,null,null,null,null,null,null,null,null,null,null,null,null,null,null,"Chalán"]
[null,47.100000000000243,null,null,null,null,null,null,null,null,null,null,null,null,null,null,null,null,null,null,"Chámeza"]
[null,47.200000000000244,null,null,null,null,null,null,null,null,null,null,null,null,null,null,null,null,null,null,"Chaparral"]
[null,47.300000000000246,null,null,null,null,null,null,null,null,null,null,null,null,null,null,null,null,null,null,"Charalá"]
[null,47.400000000000247,null,null,null,null,null,null,null,null,null,null,null,null,null,null,null,null,null,null,"Charta"]
[null,47.500000000000249,null,null,null,null,null,null,null,null,null,null,null,null,null,null,null,null,null,null,"Chía"]
[null,47.60000000000025,null,null,null,null,null,null,null,null,null,null,null,null,null,null,null,null,null,null,"Chigorodó"]
[null,47.700000000000252,null,null,null,null,null,null,null,null,null,null,null,null,null,null,null,null,null,null,"Chima"]
[null,47.800000000000253,null,null,null,null,null,null,null,null,null,null,null,null,null,null,null,null,null,null,"Chimá"]
[null,47.900000000000254,null,null,null,null,null,null,null,null,null,null,null,null,null,null,null,null,null,null,"Chimichagua"]
[null,48.000000000000256,null,null,null,null,null,null,null,null,null,null,null,null,null,null,null,null,null,null,"Chinácota"]
[null,48.100000000000257,null,null,null,null,null,null,null,null,null,null,null,null,null,null,null,null,null,null,"Chinavita"]
[null,48.200000000000259,null,null,null,null,null,null,null,null,null,null,null,null,null,null,null,null,null,null,"Chinchiná"]
[null,48.30000000000026,null,null,null,null,null,null,null,null,null,null,null,null,null,null,null,null,null,null,"Chinú"]
[null,48.400000000000261,null,null,null,null,null,null,null,null,null,null,null,null,null,null,null,null,null,null,"Chipaque"]
[null,48.500000000000263,null,null,null,null,null,null,null,null,null,null,null,null,null,null,null,null,null,null,"Chipatá"]
[null,48.600000000000264,null,null,null,null,null,null,null,null,null,null,null,null,null,null,null,null,null,null,"Chiquinquirá"]
[null,48.700000000000266,null,null,null,null,null,null,null,null,null,null,null,null,null,null,null,null,null,null,"Chíquiza"]
[null,48.800000000000267,null,null,null,null,null,null,null,null,null,null,null,null,null,null,null,null,null,null,"Chiriguaná"]
[null,48.900000000000269,null,null,null,null,null,null,null,null,null,null,null,null,null,null,null,null,null,null,"Chiscas"]
[null,49.00000000000027,null,null,null,null,null,null,null,null,null,null,null,null,null,null,null,null,null,null,"Chita"]
[null,49.100000000000271,null,null,null,null,null,null,null,null,null,null,null,null,null,null,null,null,null,null,"Chitagá"]
[null,49.200000000000273,null,null,null,null,null,null,null,null,null,null,null,null,null,null,null,null,null,null,"Chitaraque"]
[null,{"$f":"B197+0.1","v":49.300000000000274},null,null,null,null,null,null,null,null,null,null,null,null,null,null,null,null,null,null,"Chivatá"]
[null,49.400000000000276,null,null,null,null,null,null,null,null,null,null,null,null,null,null,null,null,null,null,"Chivolo"]
[null,49.500000000000277,null,null,null,null,null,null,null,null,null,null,null,null,null,null,null,null,null,null,"Chivor"]
[null,49.600000000000279,null,null,null,null,null,null,null,null,null,null,null,null,null,null,null,null,null,null,"Choachí"]
[null,49.70000000000028,null,null,null,null,null,null,null,null,null,null,null,null,null,null,null,null,null,null,"Chocontá"]
[null,49.800000000000281,null,null,null,null,null,null,null,null,null,null,null,null,null,null,null,null,null,null,"Cicuco"]
[null,49.900000000000283,null,null,null,null,null,null,null,null,null,null,null,null,null,null,null,null,null,null,"Ciénaga"]
[null,50.000000000000284,null,null,null,null,null,null,null,null,null,null,null,null,null,null,null,null,null,null,"Ciénaga De Oro"]
[null,50.100000000000286,null,null,null,null,null,null,null,null,null,null,null,null,null,null,null,null,null,null,"Ciénega"]
[null,50.200000000000287,null,null,null,null,null,null,null,null,null,null,null,null,null,null,null,null,null,null,"Cimitarra"]
[null,50.300000000000288,null,null,null,null,null,null,null,null,null,null,null,null,null,null,null,null,null,null,"Circasia"]
[null,50.40000000000029,null,null,null,null,null,null,null,null,null,null,null,null,null,null,null,null,null,null,"Cisneros"]
[null,50.500000000000291,null,null,null,null,null,null,null,null,null,null,null,null,null,null,null,null,null,null,"Ciudad Bolívar"]
[null,50.600000000000293,null,null,null,null,null,null,null,null,null,null,null,null,null,null,null,null,null,null,"Clemencia"]
[null,50.700000000000294,null,null,null,null,null,null,null,null,null,null,null,null,null,null,null,null,null,null,"Cocorná"]
[null,50.800000000000296,null,null,null,null,null,null,null,null,null,null,null,null,null,null,null,null,null,null,"Coello"]
[null,50.900000000000297,null,null,null,null,null,null,null,null,null,null,null,null,null,null,null,null,null,null,"Cogua"]
[null,51.000000000000298,null,null,null,null,null,null,null,null,null,null,null,null,null,null,null,null,null,null,"Colombia"]
[null,51.1000000000003,null,null,null,null,null,null,null,null,null,null,null,null,null,null,null,null,null,null,"Colón"]
[null,51.200000000000301,null,null,null,null,null,null,null,null,null,null,null,null,null,null,null,null,null,null,"Coloso"]
[null,51.300000000000303,null,null,null,null,null,null,null,null,null,null,null,null,null,null,null,null,null,null,"Cómbita"]
[null,51.400000000000304,null,null,null,null,null,null,null,null,null,null,null,null,null,null,null,null,null,null,"Concepción"]
[null,51.500000000000306,null,null,null,null,null,null,null,null,null,null,null,null,null,null,null,null,null,null,"Concordia"]
[null,51.600000000000307,null,null,null,null,null,null,null,null,null,null,null,null,null,null,null,null,null,null,"Condoto"]
[null,51.700000000000308,null,null,null,null,null,null,null,null,null,null,null,null,null,null,null,null,null,null,"Confines"]
[null,51.80000000000031,null,null,null,null,null,null,null,null,null,null,null,null,null,null,null,null,null,null,"Consacá"]
[null,51.900000000000311,null,null,null,null,null,null,null,null,null,null,null,null,null,null,null,null,null,null,"Contadero"]
[null,52.000000000000313,null,null,null,null,null,null,null,null,null,null,null,null,null,null,null,null,null,null,"Contratación"]
[null,52.100000000000314,null,null,null,null,null,null,null,null,null,null,null,null,null,null,null,null,null,null,"Convención"]
[null,52.200000000000315,null,null,null,null,null,null,null,null,null,null,null,null,null,null,null,null,null,null,"Copacabana"]
[null,52.300000000000317,null,null,null,null,null,null,null,null,null,null,null,null,null,null,null,null,null,null,"Coper"]
[null,52.400000000000318,null,null,null,null,null,null,null,null,null,null,null,null,null,null,null,null,null,null,"Córdoba"]
[null,52.50000000000032,null,null,null,null,null,null,null,null,null,null,null,null,null,null,null,null,null,null,"Corinto"]
[null,52.600000000000321,null,null,null,null,null,null,null,null,null,null,null,null,null,null,null,null,null,null,"Coromoro"]
[null,52.700000000000323,null,null,null,null,null,null,null,null,null,null,null,null,null,null,null,null,null,null,"Corozal"]
[null,52.800000000000324,null,null,null,null,null,null,null,null,null,null,null,null,null,null,null,null,null,null,"Corrales"]
[null,52.900000000000325,null,null,null,null,null,null,null,null,null,null,null,null,null,null,null,null,null,null,"Cota"]
[null,53.000000000000327,null,null,null,null,null,null,null,null,null,null,null,null,null,null,null,null,null,null,"Cotorra"]
[null,53.100000000000328,null,null,null,null,null,null,null,null,null,null,null,null,null,null,null,null,null,null,"Covarachía"]
[null,53.20000000000033,null,null,null,null,null,null,null,null,null,null,null,null,null,null,null,null,null,null,"Coveñas"]
[null,53.300000000000331,null,null,null,null,null,null,null,null,null,null,null,null,null,null,null,null,null,null,"Coyaima"]
[null,53.400000000000333,null,null,null,null,null,null,null,null,null,null,null,null,null,null,null,null,null,null,"Cravo Norte"]
[null,53.500000000000334,null,null,null,null,null,null,null,null,null,null,null,null,null,null,null,null,null,null,"Cuaspúd"]
[null,53.600000000000335,null,null,null,null,null,null,null,null,null,null,null,null,null,null,null,null,null,null,"Cubará"]
[null,53.700000000000337,null,null,null,null,null,null,null,null,null,null,null,null,null,null,null,null,null,null,"Cucaita"]
[null,53.800000000000338,null,null,null,null,null,null,null,null,null,null,null,null,null,null,null,null,null,null,"Cucunubá"]
[null,53.90000000000034,null,null,null,null,null,null,null,null,null,null,null,null,null,null,null,null,null,null,"Cúcuta"]
[null,54.000000000000341,null,null,null,null,null,null,null,null,null,null,null,null,null,null,null,null,null,null,"Cucutilla"]
[null,54.100000000000342,null,null,null,null,null,null,null,null,null,null,null,null,null,null,null,null,null,null,"Cuítiva"]
[null,54.200000000000344,null,null,null,null,null,null,null,null,null,null,null,null,null,null,null,null,null,null,"Cumaral"]
[null,54.300000000000345,null,null,null,null,null,null,null,null,null,null,null,null,null,null,null,null,null,null,"Cumaribo"]
[null,54.400000000000347,null,null,null,null,null,null,null,null,null,null,null,null,null,null,null,null,null,null,"Cumbal"]
[null,54.500000000000348,null,null,null,null,null,null,null,null,null,null,null,null,null,null,null,null,null,null,"Cumbitara"]
[null,54.60000000000035,null,null,null,null,null,null,null,null,null,null,null,null,null,null,null,null,null,null,"Cunday"]
[null,54.700000000000351,null,null,null,null,null,null,null,null,null,null,null,null,null,null,null,null,null,null,"Curillo"]
[null,54.800000000000352,null,null,null,null,null,null,null,null,null,null,null,null,null,null,null,null,null,null,"Curití"]
[null,54.900000000000354,null,null,null,null,null,null,null,null,null,null,null,null,null,null,null,null,null,null,"Curumaní"]
[null,55.000000000000355,null,null,null,null,null,null,null,null,null,null,null,null,null,null,null,null,null,null,"Dabeiba"]
[null,55.100000000000357,null,null,null,null,null,null,null,null,null,null,null,null,null,null,null,null,null,null,"Dagua"]
[null,55.200000000000358,null,null,null,null,null,null,null,null,null,null,null,null,null,null,null,null,null,null,"Dibulla"]
[null,55.30000000000036,null,null,null,null,null,null,null,null,null,null,null,null,null,null,null,null,null,null,"Distracción"]
[null,55.400000000000361,null,null,null,null,null,null,null,null,null,null,null,null,null,null,null,null,null,null,"Dolores"]
[null,55.500000000000362,null,null,null,null,null,null,null,null,null,null,null,null,null,null,null,null,null,null,"Donmatías"]
[null,55.600000000000364,null,null,null,null,null,null,null,null,null,null,null,null,null,null,null,null,null,null,"Dosquebradas"]
[null,{"$f":"B261+0.1","v":55.700000000000365},null,null,null,null,null,null,null,null,null,null,null,null,null,null,null,null,null,null,"Duitama"]
[null,55.800000000000367,null,null,null,null,null,null,null,null,null,null,null,null,null,null,null,null,null,null,"Durania"]
[null,55.900000000000368,null,null,null,null,null,null,null,null,null,null,null,null,null,null,null,null,null,null,"Ebéjico"]
[null,56.000000000000369,null,null,null,null,null,null,null,null,null,null,null,null,null,null,null,null,null,null,"El Águila"]
[null,56.100000000000371,null,null,null,null,null,null,null,null,null,null,null,null,null,null,null,null,null,null,"El Bagre"]
[null,56.200000000000372,null,null,null,null,null,null,null,null,null,null,null,null,null,null,null,null,null,null,"El Banco"]
[null,56.300000000000374,null,null,null,null,null,null,null,null,null,null,null,null,null,null,null,null,null,null,"El Cairo"]
[null,56.400000000000375,null,null,null,null,null,null,null,null,null,null,null,null,null,null,null,null,null,null,"El Calvario"]
[null,56.500000000000377,null,null,null,null,null,null,null,null,null,null,null,null,null,null,null,null,null,null,"El Cantón Del San Pablo"]
[null,56.600000000000378,null,null,null,null,null,null,null,null,null,null,null,null,null,null,null,null,null,null,"El Carmen"]
[null,56.700000000000379,null,null,null,null,null,null,null,null,null,null,null,null,null,null,null,null,null,null,"El Carmen De Atrato"]
[null,56.800000000000381,null,null,null,null,null,null,null,null,null,null,null,null,null,null,null,null,null,null,"El Carmen De Bolívar"]
[null,56.900000000000382,null,null,null,null,null,null,null,null,null,null,null,null,null,null,null,null,null,null,"El Carmen De Chucurí"]
[null,57.000000000000384,null,null,null,null,null,null,null,null,null,null,null,null,null,null,null,null,null,null,"El Carmen De Viboral"]
[null,57.100000000000385,null,null,null,null,null,null,null,null,null,null,null,null,null,null,null,null,null,null,"El Castillo"]
[null,57.200000000000387,null,null,null,null,null,null,null,null,null,null,null,null,null,null,null,null,null,null,"El Cerrito"]
[null,57.300000000000388,null,null,null,null,null,null,null,null,null,null,null,null,null,null,null,null,null,null,"El Charco"]
[null,57.400000000000389,null,null,null,null,null,null,null,null,null,null,null,null,null,null,null,null,null,null,"El Cocuy"]
[null,57.500000000000391,null,null,null,null,null,null,null,null,null,null,null,null,null,null,null,null,null,null,"El Colegio"]
[null,57.600000000000392,null,null,null,null,null,null,null,null,null,null,null,null,null,null,null,null,null,null,"El Copey"]
[null,57.700000000000394,null,null,null,null,null,null,null,null,null,null,null,null,null,null,null,null,null,null,"El Doncello"]
[null,57.800000000000395,null,null,null,null,null,null,null,null,null,null,null,null,null,null,null,null,null,null,"El Dorado"]
[null,57.900000000000396,null,null,null,null,null,null,null,null,null,null,null,null,null,null,null,null,null,null,"El Dovio"]
[null,58.000000000000398,null,null,null,null,null,null,null,null,null,null,null,null,null,null,null,null,null,null,"El Encanto"]
[null,58.100000000000399,null,null,null,null,null,null,null,null,null,null,null,null,null,null,null,null,null,null,"El Espino"]
[null,58.200000000000401,null,null,null,null,null,null,null,null,null,null,null,null,null,null,null,null,null,null,"El Guacamayo"]
[null,58.300000000000402,null,null,null,null,null,null,null,null,null,null,null,null,null,null,null,null,null,null,"El Guamo"]
[null,58.400000000000404,null,null,null,null,null,null,null,null,null,null,null,null,null,null,null,null,null,null,"El Litoral Del San Juan"]
[null,58.500000000000405,null,null,null,null,null,null,null,null,null,null,null,null,null,null,null,null,null,null,"El Molino"]
[null,58.600000000000406,null,null,null,null,null,null,null,null,null,null,null,null,null,null,null,null,null,null,"El Paso"]
[null,58.700000000000408,null,null,null,null,null,null,null,null,null,null,null,null,null,null,null,null,null,null,"El Paujíl"]
[null,58.800000000000409,null,null,null,null,null,null,null,null,null,null,null,null,null,null,null,null,null,null,"El Peñol"]
[null,58.900000000000411,null,null,null,null,null,null,null,null,null,null,null,null,null,null,null,null,null,null,"El Peñón"]
[null,59.000000000000412,null,null,null,null,null,null,null,null,null,null,null,null,null,null,null,null,null,null,"El Piñón"]
[null,59.100000000000414,null,null,null,null,null,null,null,null,null,null,null,null,null,null,null,null,null,null,"El Playón"]
[null,59.200000000000415,null,null,null,null,null,null,null,null,null,null,null,null,null,null,null,null,null,null,"El Retén"]
[null,59.300000000000416,null,null,null,null,null,null,null,null,null,null,null,null,null,null,null,null,null,null,"El Retorno"]
[null,59.400000000000418,null,null,null,null,null,null,null,null,null,null,null,null,null,null,null,null,null,null,"El Roble"]
[null,59.500000000000419,null,null,null,null,null,null,null,null,null,null,null,null,null,null,null,null,null,null,"El Rosal"]
[null,59.600000000000421,null,null,null,null,null,null,null,null,null,null,null,null,null,null,null,null,null,null,"El Rosario"]
[null,59.700000000000422,null,null,null,null,null,null,null,null,null,null,null,null,null,null,null,null,null,null,"El Santuario"]
[null,59.800000000000423,null,null,null,null,null,null,null,null,null,null,null,null,null,null,null,null,null,null,"El Tablón De Gómez"]
[null,59.900000000000425,null,null,null,null,null,null,null,null,null,null,null,null,null,null,null,null,null,null,"El Tambo"]
[null,60.000000000000426,null,null,null,null,null,null,null,null,null,null,null,null,null,null,null,null,null,null,"El Tarra"]
[null,60.100000000000428,null,null,null,null,null,null,null,null,null,null,null,null,null,null,null,null,null,null,"El Zulia"]
[null,60.200000000000429,null,null,null,null,null,null,null,null,null,null,null,null,null,null,null,null,null,null,"Elías"]
[null,60.300000000000431,null,null,null,null,null,null,null,null,null,null,null,null,null,null,null,null,null,null,"Encino"]
[null,60.400000000000432,null,null,null,null,null,null,null,null,null,null,null,null,null,null,null,null,null,null,"Enciso"]
[null,60.500000000000433,null,null,null,null,null,null,null,null,null,null,null,null,null,null,null,null,null,null,"Entrerríos"]
[null,60.600000000000435,null,null,null,null,null,null,null,null,null,null,null,null,null,null,null,null,null,null,"Envigado"]
[null,60.700000000000436,null,null,null,null,null,null,null,null,null,null,null,null,null,null,null,null,null,null,"Espinal"]
[null,60.800000000000438,null,null,null,null,null,null,null,null,null,null,null,null,null,null,null,null,null,null,"Facatativá"]
[null,60.900000000000439,null,null,null,null,null,null,null,null,null,null,null,null,null,null,null,null,null,null,"Falan"]
[null,61.000000000000441,null,null,null,null,null,null,null,null,null,null,null,null,null,null,null,null,null,null,"Filadelfia"]
[null,61.100000000000442,null,null,null,null,null,null,null,null,null,null,null,null,null,null,null,null,null,null,"Filandia"]
[null,61.200000000000443,null,null,null,null,null,null,null,null,null,null,null,null,null,null,null,null,null,null,"Firavitoba"]
[null,61.300000000000445,null,null,null,null,null,null,null,null,null,null,null,null,null,null,null,null,null,null,"Flandes"]
[null,61.400000000000446,null,null,null,null,null,null,null,null,null,null,null,null,null,null,null,null,null,null,"Florencia"]
[null,61.500000000000448,null,null,null,null,null,null,null,null,null,null,null,null,null,null,null,null,null,null,"Floresta"]
[null,61.600000000000449,null,null,null,null,null,null,null,null,null,null,null,null,null,null,null,null,null,null,"Florián"]
[null,61.70000000000045,null,null,null,null,null,null,null,null,null,null,null,null,null,null,null,null,null,null,"Florida"]
[null,61.800000000000452,null,null,null,null,null,null,null,null,null,null,null,null,null,null,null,null,null,null,"Floridablanca"]
[null,61.900000000000453,null,null,null,null,null,null,null,null,null,null,null,null,null,null,null,null,null,null,"Fómeque"]
[null,62.000000000000455,null,null,null,null,null,null,null,null,null,null,null,null,null,null,null,null,null,null,"Fonseca"]
[null,{"$f":"B325+0.1","v":62.100000000000456},null,null,null,null,null,null,null,null,null,null,null,null,null,null,null,null,null,null,"Fortul"]
[null,62.200000000000458,null,null,null,null,null,null,null,null,null,null,null,null,null,null,null,null,null,null,"Fosca"]
[null,62.300000000000459,null,null,null,null,null,null,null,null,null,null,null,null,null,null,null,null,null,null,"Francisco Pizarro"]
[null,62.40000000000046,null,null,null,null,null,null,null,null,null,null,null,null,null,null,null,null,null,null,"Fredonia"]
[null,62.500000000000462,null,null,null,null,null,null,null,null,null,null,null,null,null,null,null,null,null,null,"Fresno"]
[null,62.600000000000463,null,null,null,null,null,null,null,null,null,null,null,null,null,null,null,null,null,null,"Frontino"]
[null,62.700000000000465,null,null,null,null,null,null,null,null,null,null,null,null,null,null,null,null,null,null,"Fuente De Oro"]
[null,62.800000000000466,null,null,null,null,null,null,null,null,null,null,null,null,null,null,null,null,null,null,"Fundación"]
[null,62.900000000000468,null,null,null,null,null,null,null,null,null,null,null,null,null,null,null,null,null,null,"Funes"]
[null,63.000000000000469,null,null,null,null,null,null,null,null,null,null,null,null,null,null,null,null,null,null,"Funza"]
[null,63.10000000000047,null,null,null,null,null,null,null,null,null,null,null,null,null,null,null,null,null,null,"Fúquene"]
[null,63.200000000000472,null,null,null,null,null,null,null,null,null,null,null,null,null,null,null,null,null,null,"Fusagasugá"]
[null,63.300000000000473,null,null,null,null,null,null,null,null,null,null,null,null,null,null,null,null,null,null,"Gachalá"]
[null,63.400000000000475,null,null,null,null,null,null,null,null,null,null,null,null,null,null,null,null,null,null,"Gachancipá"]
[null,63.500000000000476,null,null,null,null,null,null,null,null,null,null,null,null,null,null,null,null,null,null,"Gachantivá"]
[null,63.600000000000477,null,null,null,null,null,null,null,null,null,null,null,null,null,null,null,null,null,null,"Gachetá"]
[null,63.700000000000479,null,null,null,null,null,null,null,null,null,null,null,null,null,null,null,null,null,null,"Galán"]
[null,63.80000000000048,null,null,null,null,null,null,null,null,null,null,null,null,null,null,null,null,null,null,"Galapa"]
[null,63.900000000000482,null,null,null,null,null,null,null,null,null,null,null,null,null,null,null,null,null,null,"Galeras"]
[null,64.000000000000483,null,null,null,null,null,null,null,null,null,null,null,null,null,null,null,null,null,null,"Gama"]
[null,64.100000000000477,null,null,null,null,null,null,null,null,null,null,null,null,null,null,null,null,null,null,"Gamarra"]
[null,64.200000000000472,null,null,null,null,null,null,null,null,null,null,null,null,null,null,null,null,null,null,"Gámbita"]
[null,64.300000000000466,null,null,null,null,null,null,null,null,null,null,null,null,null,null,null,null,null,null,"Gámeza"]
[null,64.40000000000046,null,null,null,null,null,null,null,null,null,null,null,null,null,null,null,null,null,null,"Garagoa"]
[null,64.500000000000455,null,null,null,null,null,null,null,null,null,null,null,null,null,null,null,null,null,null,"Garzón"]
[null,64.600000000000449,null,null,null,null,null,null,null,null,null,null,null,null,null,null,null,null,null,null,"Génova"]
[null,64.700000000000443,null,null,null,null,null,null,null,null,null,null,null,null,null,null,null,null,null,null,"Gigante"]
[null,64.800000000000438,null,null,null,null,null,null,null,null,null,null,null,null,null,null,null,null,null,null,"Ginebra"]
[null,64.900000000000432,null,null,null,null,null,null,null,null,null,null,null,null,null,null,null,null,null,null,"Giraldo"]
[null,65.000000000000426,null,null,null,null,null,null,null,null,null,null,null,null,null,null,null,null,null,null,"Girardot"]
[null,65.100000000000421,null,null,null,null,null,null,null,null,null,null,null,null,null,null,null,null,null,null,"Girardota"]
[null,65.200000000000415,null,null,null,null,null,null,null,null,null,null,null,null,null,null,null,null,null,null,"Girón"]
[null,65.300000000000409,null,null,null,null,null,null,null,null,null,null,null,null,null,null,null,null,null,null,"Gómez Plata"]
[null,65.400000000000404,null,null,null,null,null,null,null,null,null,null,null,null,null,null,null,null,null,null,"González"]
[null,65.500000000000398,null,null,null,null,null,null,null,null,null,null,null,null,null,null,null,null,null,null,"Gramalote"]
[null,65.600000000000392,null,null,null,null,null,null,null,null,null,null,null,null,null,null,null,null,null,null,"Granada"]
[null,65.700000000000387,null,null,null,null,null,null,null,null,null,null,null,null,null,null,null,null,null,null,"Guaca"]
[null,65.800000000000381,null,null,null,null,null,null,null,null,null,null,null,null,null,null,null,null,null,null,"Guacamayas"]
[null,65.900000000000375,null,null,null,null,null,null,null,null,null,null,null,null,null,null,null,null,null,null,"Guacarí"]
[null,66.000000000000369,null,null,null,null,null,null,null,null,null,null,null,null,null,null,null,null,null,null,"Guachené"]
[null,66.100000000000364,null,null,null,null,null,null,null,null,null,null,null,null,null,null,null,null,null,null,"Guachetá"]
[null,66.200000000000358,null,null,null,null,null,null,null,null,null,null,null,null,null,null,null,null,null,null,"Guachucal"]
[null,66.300000000000352,null,null,null,null,null,null,null,null,null,null,null,null,null,null,null,null,null,null,"Guadalajara De Buga"]
[null,66.400000000000347,null,null,null,null,null,null,null,null,null,null,null,null,null,null,null,null,null,null,"Guadalupe"]
[null,66.500000000000341,null,null,null,null,null,null,null,null,null,null,null,null,null,null,null,null,null,null,"Guaduas"]
[null,66.600000000000335,null,null,null,null,null,null,null,null,null,null,null,null,null,null,null,null,null,null,"Guaitarilla"]
[null,66.70000000000033,null,null,null,null,null,null,null,null,null,null,null,null,null,null,null,null,null,null,"Gualmatán"]
[null,66.800000000000324,null,null,null,null,null,null,null,null,null,null,null,null,null,null,null,null,null,null,"Guamal"]
[null,66.900000000000318,null,null,null,null,null,null,null,null,null,null,null,null,null,null,null,null,null,null,"Guamo"]
[null,67.000000000000313,null,null,null,null,null,null,null,null,null,null,null,null,null,null,null,null,null,null,"Guapí"]
[null,67.100000000000307,null,null,null,null,null,null,null,null,null,null,null,null,null,null,null,null,null,null,"Guapotá"]
[null,67.200000000000301,null,null,null,null,null,null,null,null,null,null,null,null,null,null,null,null,null,null,"Guaranda"]
[null,67.300000000000296,null,null,null,null,null,null,null,null,null,null,null,null,null,null,null,null,null,null,"Guarne"]
[null,67.40000000000029,null,null,null,null,null,null,null,null,null,null,null,null,null,null,null,null,null,null,"Guasca"]
[null,67.500000000000284,null,null,null,null,null,null,null,null,null,null,null,null,null,null,null,null,null,null,"Guatapé"]
[null,67.600000000000279,null,null,null,null,null,null,null,null,null,null,null,null,null,null,null,null,null,null,"Guataquí"]
[null,67.700000000000273,null,null,null,null,null,null,null,null,null,null,null,null,null,null,null,null,null,null,"Guatavita"]
[null,67.800000000000267,null,null,null,null,null,null,null,null,null,null,null,null,null,null,null,null,null,null,"Guateque"]
[null,67.900000000000261,null,null,null,null,null,null,null,null,null,null,null,null,null,null,null,null,null,null,"Guática"]
[null,68.000000000000256,null,null,null,null,null,null,null,null,null,null,null,null,null,null,null,null,null,null,"Guavatá"]
[null,68.10000000000025,null,null,null,null,null,null,null,null,null,null,null,null,null,null,null,null,null,null,"Guayabal De Síquima"]
[null,68.200000000000244,null,null,null,null,null,null,null,null,null,null,null,null,null,null,null,null,null,null,"Guayabetal"]
[null,68.300000000000239,null,null,null,null,null,null,null,null,null,null,null,null,null,null,null,null,null,null,"Guayatá"]
[null,68.400000000000233,null,null,null,null,null,null,null,null,null,null,null,null,null,null,null,null,null,null,"Güepsa"]
[null,{"$f":"B389+0.1","v":68.500000000000227},null,null,null,null,null,null,null,null,null,null,null,null,null,null,null,null,null,null,"Güicán"]
[null,68.600000000000222,null,null,null,null,null,null,null,null,null,null,null,null,null,null,null,null,null,null,"Gutiérrez"]
[null,68.700000000000216,null,null,null,null,null,null,null,null,null,null,null,null,null,null,null,null,null,null,"Hacarí"]
[null,68.80000000000021,null,null,null,null,null,null,null,null,null,null,null,null,null,null,null,null,null,null,"Hatillo De Loba"]
[null,68.900000000000205,null,null,null,null,null,null,null,null,null,null,null,null,null,null,null,null,null,null,"Hato"]
[null,69.000000000000199,null,null,null,null,null,null,null,null,null,null,null,null,null,null,null,null,null,null,"Hato Corozal"]
[null,69.100000000000193,null,null,null,null,null,null,null,null,null,null,null,null,null,null,null,null,null,null,"Hatonuevo"]
[null,69.200000000000188,null,null,null,null,null,null,null,null,null,null,null,null,null,null,null,null,null,null,"Heliconia"]
[null,69.300000000000182,null,null,null,null,null,null,null,null,null,null,null,null,null,null,null,null,null,null,"Herrán"]
[null,69.400000000000176,null,null,null,null,null,null,null,null,null,null,null,null,null,null,null,null,null,null,"Herveo"]
[null,69.500000000000171,null,null,null,null,null,null,null,null,null,null,null,null,null,null,null,null,null,null,"Hispania"]
[null,69.600000000000165,null,null,null,null,null,null,null,null,null,null,null,null,null,null,null,null,null,null,"Hobo"]
[null,69.700000000000159,null,null,null,null,null,null,null,null,null,null,null,null,null,null,null,null,null,null,"Honda"]
[null,69.800000000000153,null,null,null,null,null,null,null,null,null,null,null,null,null,null,null,null,null,null,"Ibagué"]
[null,69.900000000000148,null,null,null,null,null,null,null,null,null,null,null,null,null,null,null,null,null,null,"Icononzo"]
[null,70.000000000000142,null,null,null,null,null,null,null,null,null,null,null,null,null,null,null,null,null,null,"Iles"]
[null,70.100000000000136,null,null,null,null,null,null,null,null,null,null,null,null,null,null,null,null,null,null,"Imués"]
[null,70.200000000000131,null,null,null,null,null,null,null,null,null,null,null,null,null,null,null,null,null,null,"Inírida"]
[null,70.300000000000125,null,null,null,null,null,null,null,null,null,null,null,null,null,null,null,null,null,null,"Inzá"]
[null,70.400000000000119,null,null,null,null,null,null,null,null,null,null,null,null,null,null,null,null,null,null,"Ipiales"]
[null,70.500000000000114,null,null,null,null,null,null,null,null,null,null,null,null,null,null,null,null,null,null,"Íquira"]
[null,70.600000000000108,null,null,null,null,null,null,null,null,null,null,null,null,null,null,null,null,null,null,"Isnos"]
[null,70.700000000000102,null,null,null,null,null,null,null,null,null,null,null,null,null,null,null,null,null,null,"Istmina"]
[null,70.800000000000097,null,null,null,null,null,null,null,null,null,null,null,null,null,null,null,null,null,null,"Itagüí"]
[null,70.900000000000091,null,null,null,null,null,null,null,null,null,null,null,null,null,null,null,null,null,null,"Ituango"]
[null,71.000000000000085,null,null,null,null,null,null,null,null,null,null,null,null,null,null,null,null,null,null,"Iza"]
[null,71.10000000000008,null,null,null,null,null,null,null,null,null,null,null,null,null,null,null,null,null,null,"Jambaló"]
[null,71.200000000000074,null,null,null,null,null,null,null,null,null,null,null,null,null,null,null,null,null,null,"Jamundí"]
[null,71.300000000000068,null,null,null,null,null,null,null,null,null,null,null,null,null,null,null,null,null,null,"Jardín"]
[null,71.400000000000063,null,null,null,null,null,null,null,null,null,null,null,null,null,null,null,null,null,null,"Jenesano"]
[null,71.500000000000057,null,null,null,null,null,null,null,null,null,null,null,null,null,null,null,null,null,null,"Jericó"]
[null,71.600000000000051,null,null,null,null,null,null,null,null,null,null,null,null,null,null,null,null,null,null,"Jerusalén"]
[null,71.700000000000045,null,null,null,null,null,null,null,null,null,null,null,null,null,null,null,null,null,null,"Jesús María"]
[null,71.80000000000004,null,null,null,null,null,null,null,null,null,null,null,null,null,null,null,null,null,null,"Jordán"]
[null,71.900000000000034,null,null,null,null,null,null,null,null,null,null,null,null,null,null,null,null,null,null,"Juan De Acosta"]
[null,72.000000000000028,null,null,null,null,null,null,null,null,null,null,null,null,null,null,null,null,null,null,"Junín"]
[null,72.100000000000023,null,null,null,null,null,null,null,null,null,null,null,null,null,null,null,null,null,null,"Juradó"]
[null,72.200000000000017,null,null,null,null,null,null,null,null,null,null,null,null,null,null,null,null,null,null,"La Apartada"]
[null,72.300000000000011,null,null,null,null,null,null,null,null,null,null,null,null,null,null,null,null,null,null,"La Argentina"]
[null,72.400000000000006,null,null,null,null,null,null,null,null,null,null,null,null,null,null,null,null,null,null,"La Belleza"]
[null,72.5,null,null,null,null,null,null,null,null,null,null,null,null,null,null,null,null,null,null,"La Calera"]
[null,72.599999999999994,null,null,null,null,null,null,null,null,null,null,null,null,null,null,null,null,null,null,"La Capilla"]
[null,72.699999999999989,null,null,null,null,null,null,null,null,null,null,null,null,null,null,null,null,null,null,"La Ceja"]
[null,72.799999999999983,null,null,null,null,null,null,null,null,null,null,null,null,null,null,null,null,null,null,"La Celia"]
[null,72.899999999999977,null,null,null,null,null,null,null,null,null,null,null,null,null,null,null,null,null,null,"La Chorrera"]
[null,72.999999999999972,null,null,null,null,null,null,null,null,null,null,null,null,null,null,null,null,null,null,"La Cruz"]
[null,73.099999999999966,null,null,null,null,null,null,null,null,null,null,null,null,null,null,null,null,null,null,"La Cumbre"]
[null,73.19999999999996,null,null,null,null,null,null,null,null,null,null,null,null,null,null,null,null,null,null,"La Dorada"]
[null,73.299999999999955,null,null,null,null,null,null,null,null,null,null,null,null,null,null,null,null,null,null,"La Esperanza"]
[null,73.399999999999949,null,null,null,null,null,null,null,null,null,null,null,null,null,null,null,null,null,null,"La Estrella"]
[null,73.499999999999943,null,null,null,null,null,null,null,null,null,null,null,null,null,null,null,null,null,null,"La Florida"]
[null,73.599999999999937,null,null,null,null,null,null,null,null,null,null,null,null,null,null,null,null,null,null,"La Gloria"]
[null,73.699999999999932,null,null,null,null,null,null,null,null,null,null,null,null,null,null,null,null,null,null,"La Guadalupe"]
[null,73.799999999999926,null,null,null,null,null,null,null,null,null,null,null,null,null,null,null,null,null,null,"La Jagua De Ibirico"]
[null,73.89999999999992,null,null,null,null,null,null,null,null,null,null,null,null,null,null,null,null,null,null,"La Jagua Del Pilar"]
[null,73.999999999999915,null,null,null,null,null,null,null,null,null,null,null,null,null,null,null,null,null,null,"La Llanada"]
[null,74.099999999999909,null,null,null,null,null,null,null,null,null,null,null,null,null,null,null,null,null,null,"La Macarena"]
[null,74.199999999999903,null,null,null,null,null,null,null,null,null,null,null,null,null,null,null,null,null,null,"La Merced"]
[null,74.299999999999898,null,null,null,null,null,null,null,null,null,null,null,null,null,null,null,null,null,null,"La Mesa"]
[null,74.399999999999892,null,null,null,null,null,null,null,null,null,null,null,null,null,null,null,null,null,null,"La Montañita"]
[null,74.499999999999886,null,null,null,null,null,null,null,null,null,null,null,null,null,null,null,null,null,null,"La Palma"]
[null,74.599999999999881,null,null,null,null,null,null,null,null,null,null,null,null,null,null,null,null,null,null,"La Paz"]
[null,74.699999999999875,null,null,null,null,null,null,null,null,null,null,null,null,null,null,null,null,null,null,"La Pedrera"]
[null,74.799999999999869,null,null,null,null,null,null,null,null,null,null,null,null,null,null,null,null,null,null,"La Peña"]
[null,{"$f":"B453+0.1","v":74.899999999999864},null,null,null,null,null,null,null,null,null,null,null,null,null,null,null,null,null,null,"La Pintada"]
[null,74.999999999999858,null,null,null,null,null,null,null,null,null,null,null,null,null,null,null,null,null,null,"La Plata"]
[null,75.099999999999852,null,null,null,null,null,null,null,null,null,null,null,null,null,null,null,null,null,null,"La Playa"]
[null,75.199999999999847,null,null,null,null,null,null,null,null,null,null,null,null,null,null,null,null,null,null,"La Primavera"]
[null,75.299999999999841,null,null,null,null,null,null,null,null,null,null,null,null,null,null,null,null,null,null,"La Salina"]
[null,75.399999999999835,null,null,null,null,null,null,null,null,null,null,null,null,null,null,null,null,null,null,"La Sierra"]
[null,75.499999999999829,null,null,null,null,null,null,null,null,null,null,null,null,null,null,null,null,null,null,"La Tebaida"]
[null,75.599999999999824,null,null,null,null,null,null,null,null,null,null,null,null,null,null,null,null,null,null,"La Tola"]
[null,75.699999999999818,null,null,null,null,null,null,null,null,null,null,null,null,null,null,null,null,null,null,"La Unión"]
[null,75.799999999999812,null,null,null,null,null,null,null,null,null,null,null,null,null,null,null,null,null,null,"La Uvita"]
[null,75.899999999999807,null,null,null,null,null,null,null,null,null,null,null,null,null,null,null,null,null,null,"La Vega"]
[null,75.999999999999801,null,null,null,null,null,null,null,null,null,null,null,null,null,null,null,null,null,null,"La Victoria"]
[null,76.099999999999795,null,null,null,null,null,null,null,null,null,null,null,null,null,null,null,null,null,null,"La Virginia"]
[null,76.19999999999979,null,null,null,null,null,null,null,null,null,null,null,null,null,null,null,null,null,null,"Labateca"]
[null,76.299999999999784,null,null,null,null,null,null,null,null,null,null,null,null,null,null,null,null,null,null,"Labranzagrande"]
[null,76.399999999999778,null,null,null,null,null,null,null,null,null,null,null,null,null,null,null,null,null,null,"Landázuri"]
[null,76.499999999999773,null,null,null,null,null,null,null,null,null,null,null,null,null,null,null,null,null,null,"Lebrija"]
[null,76.599999999999767,null,null,null,null,null,null,null,null,null,null,null,null,null,null,null,null,null,null,"Leiva"]
[null,76.699999999999761,null,null,null,null,null,null,null,null,null,null,null,null,null,null,null,null,null,null,"Lejanías"]
[null,76.799999999999756,null,null,null,null,null,null,null,null,null,null,null,null,null,null,null,null,null,null,"Lenguazaque"]
[null,76.89999999999975,null,null,null,null,null,null,null,null,null,null,null,null,null,null,null,null,null,null,"Lérida"]
[null,76.999999999999744,null,null,null,null,null,null,null,null,null,null,null,null,null,null,null,null,null,null,"Leticia"]
[null,77.099999999999739,null,null,null,null,null,null,null,null,null,null,null,null,null,null,null,null,null,null,"Líbano"]
[null,77.199999999999733,null,null,null,null,null,null,null,null,null,null,null,null,null,null,null,null,null,null,"Liborina"]
[null,77.299999999999727,null,null,null,null,null,null,null,null,null,null,null,null,null,null,null,null,null,null,"Linares"]
[null,77.399999999999721,null,null,null,null,null,null,null,null,null,null,null,null,null,null,null,null,null,null,"Lloró"]
[null,77.499999999999716,null,null,null,null,null,null,null,null,null,null,null,null,null,null,null,null,null,null,"López De Micay"]
[null,77.59999999999971,null,null,null,null,null,null,null,null,null,null,null,null,null,null,null,null,null,null,"Lorica"]
[null,77.699999999999704,null,null,null,null,null,null,null,null,null,null,null,null,null,null,null,null,null,null,"Los Andes"]
[null,77.799999999999699,null,null,null,null,null,null,null,null,null,null,null,null,null,null,null,null,null,null,"Los Córdobas"]
[null,77.899999999999693,null,null,null,null,null,null,null,null,null,null,null,null,null,null,null,null,null,null,"Los Palmitos"]
[null,77.999999999999687,null,null,null,null,null,null,null,null,null,null,null,null,null,null,null,null,null,null,"Los Patios"]
[null,78.099999999999682,null,null,null,null,null,null,null,null,null,null,null,null,null,null,null,null,null,null,"Los Santos"]
[null,78.199999999999676,null,null,null,null,null,null,null,null,null,null,null,null,null,null,null,null,null,null,"Lourdes"]
[null,78.29999999999967,null,null,null,null,null,null,null,null,null,null,null,null,null,null,null,null,null,null,"Luruaco"]
[null,78.399999999999665,null,null,null,null,null,null,null,null,null,null,null,null,null,null,null,null,null,null,"Macanal"]
[null,78.499999999999659,null,null,null,null,null,null,null,null,null,null,null,null,null,null,null,null,null,null,"Macaravita"]
[null,78.599999999999653,null,null,null,null,null,null,null,null,null,null,null,null,null,null,null,null,null,null,"Maceo"]
[null,78.699999999999648,null,null,null,null,null,null,null,null,null,null,null,null,null,null,null,null,null,null,"Machetá"]
[null,78.799999999999642,null,null,null,null,null,null,null,null,null,null,null,null,null,null,null,null,null,null,"Madrid"]
[null,78.899999999999636,null,null,null,null,null,null,null,null,null,null,null,null,null,null,null,null,null,null,"Magangué"]
[null,78.999999999999631,null,null,null,null,null,null,null,null,null,null,null,null,null,null,null,null,null,null,"Magüí"]
[null,79.099999999999625,null,null,null,null,null,null,null,null,null,null,null,null,null,null,null,null,null,null,"Mahates"]
[null,79.199999999999619,null,null,null,null,null,null,null,null,null,null,null,null,null,null,null,null,null,null,"Maicao"]
[null,79.299999999999613,null,null,null,null,null,null,null,null,null,null,null,null,null,null,null,null,null,null,"Majagual"]
[null,79.399999999999608,null,null,null,null,null,null,null,null,null,null,null,null,null,null,null,null,null,null,"Málaga"]
[null,79.499999999999602,null,null,null,null,null,null,null,null,null,null,null,null,null,null,null,null,null,null,"Malambo"]
[null,79.599999999999596,null,null,null,null,null,null,null,null,null,null,null,null,null,null,null,null,null,null,"Mallama"]
[null,79.699999999999591,null,null,null,null,null,null,null,null,null,null,null,null,null,null,null,null,null,null,"Manatí"]
[null,79.799999999999585,null,null,null,null,null,null,null,null,null,null,null,null,null,null,null,null,null,null,"Manaure"]
[null,79.899999999999579,null,null,null,null,null,null,null,null,null,null,null,null,null,null,null,null,null,null,"Manaure Balcón Del Cesar"]
[null,79.999999999999574,null,null,null,null,null,null,null,null,null,null,null,null,null,null,null,null,null,null,"Maní"]
[null,80.099999999999568,null,null,null,null,null,null,null,null,null,null,null,null,null,null,null,null,null,null,"Manizales"]
[null,80.199999999999562,null,null,null,null,null,null,null,null,null,null,null,null,null,null,null,null,null,null,"Manta"]
[null,80.299999999999557,null,null,null,null,null,null,null,null,null,null,null,null,null,null,null,null,null,null,"Manzanares"]
[null,80.399999999999551,null,null,null,null,null,null,null,null,null,null,null,null,null,null,null,null,null,null,"Mapiripán"]
[null,80.499999999999545,null,null,null,null,null,null,null,null,null,null,null,null,null,null,null,null,null,null,"Mapiripana"]
[null,80.59999999999954,null,null,null,null,null,null,null,null,null,null,null,null,null,null,null,null,null,null,"Margarita"]
[null,80.699999999999534,null,null,null,null,null,null,null,null,null,null,null,null,null,null,null,null,null,null,"María La Baja"]
[null,80.799999999999528,null,null,null,null,null,null,null,null,null,null,null,null,null,null,null,null,null,null,"Marinilla"]
[null,80.899999999999523,null,null,null,null,null,null,null,null,null,null,null,null,null,null,null,null,null,null,"Maripí"]
[null,80.999999999999517,null,null,null,null,null,null,null,null,null,null,null,null,null,null,null,null,null,null,"Marmato"]
[null,81.099999999999511,null,null,null,null,null,null,null,null,null,null,null,null,null,null,null,null,null,null,"Marquetalia"]
[null,81.199999999999505,null,null,null,null,null,null,null,null,null,null,null,null,null,null,null,null,null,null,"Marsella"]
[null,{"$f":"B517+0.1","v":81.2999999999995},null,null,null,null,null,null,null,null,null,null,null,null,null,null,null,null,null,null,"Marulanda"]
[null,81.399999999999494,null,null,null,null,null,null,null,null,null,null,null,null,null,null,null,null,null,null,"Matanza"]
[null,81.499999999999488,null,null,null,null,null,null,null,null,null,null,null,null,null,null,null,null,null,null,"Medellín"]
[null,81.599999999999483,null,null,null,null,null,null,null,null,null,null,null,null,null,null,null,null,null,null,"Medina"]
[null,81.699999999999477,null,null,null,null,null,null,null,null,null,null,null,null,null,null,null,null,null,null,"Medio Atrato"]
[null,81.799999999999471,null,null,null,null,null,null,null,null,null,null,null,null,null,null,null,null,null,null,"Medio Baudó"]
[null,81.899999999999466,null,null,null,null,null,null,null,null,null,null,null,null,null,null,null,null,null,null,"Medio San Juan"]
[null,81.99999999999946,null,null,null,null,null,null,null,null,null,null,null,null,null,null,null,null,null,null,"Melgar"]
[null,82.099999999999454,null,null,null,null,null,null,null,null,null,null,null,null,null,null,null,null,null,null,"Mercaderes"]
[null,82.199999999999449,null,null,null,null,null,null,null,null,null,null,null,null,null,null,null,null,null,null,"Mesetas"]
[null,82.299999999999443,null,null,null,null,null,null,null,null,null,null,null,null,null,null,null,null,null,null,"Milán"]
[null,82.399999999999437,null,null,null,null,null,null,null,null,null,null,null,null,null,null,null,null,null,null,"Miraflores"]
[null,82.499999999999432,null,null,null,null,null,null,null,null,null,null,null,null,null,null,null,null,null,null,"Miranda"]
[null,82.599999999999426,null,null,null,null,null,null,null,null,null,null,null,null,null,null,null,null,null,null,"Mirití - Paraná"]
[null,82.69999999999942,null,null,null,null,null,null,null,null,null,null,null,null,null,null,null,null,null,null,"Mistrató"]
[null,82.799999999999415,null,null,null,null,null,null,null,null,null,null,null,null,null,null,null,null,null,null,"Mitú"]
[null,82.899999999999409,null,null,null,null,null,null,null,null,null,null,null,null,null,null,null,null,null,null,"Mocoa"]
[null,82.999999999999403,null,null,null,null,null,null,null,null,null,null,null,null,null,null,null,null,null,null,"Mogotes"]
[null,83.099999999999397,null,null,null,null,null,null,null,null,null,null,null,null,null,null,null,null,null,null,"Molagavita"]
[null,83.199999999999392,null,null,null,null,null,null,null,null,null,null,null,null,null,null,null,null,null,null,"Momil"]
[null,83.299999999999386,null,null,null,null,null,null,null,null,null,null,null,null,null,null,null,null,null,null,"Mompós"]
[null,83.39999999999938,null,null,null,null,null,null,null,null,null,null,null,null,null,null,null,null,null,null,"Mongua"]
[null,83.499999999999375,null,null,null,null,null,null,null,null,null,null,null,null,null,null,null,null,null,null,"Monguí"]
[null,83.599999999999369,null,null,null,null,null,null,null,null,null,null,null,null,null,null,null,null,null,null,"Moniquirá"]
[null,83.699999999999363,null,null,null,null,null,null,null,null,null,null,null,null,null,null,null,null,null,null,"Montebello"]
[null,83.799999999999358,null,null,null,null,null,null,null,null,null,null,null,null,null,null,null,null,null,null,"Montecristo"]
[null,83.899999999999352,null,null,null,null,null,null,null,null,null,null,null,null,null,null,null,null,null,null,"Montelíbano"]
[null,83.999999999999346,null,null,null,null,null,null,null,null,null,null,null,null,null,null,null,null,null,null,"Montenegro"]
[null,84.099999999999341,null,null,null,null,null,null,null,null,null,null,null,null,null,null,null,null,null,null,"Montería"]
[null,84.199999999999335,null,null,null,null,null,null,null,null,null,null,null,null,null,null,null,null,null,null,"Monterrey"]
[null,84.299999999999329,null,null,null,null,null,null,null,null,null,null,null,null,null,null,null,null,null,null,"Moñitos"]
[null,84.399999999999324,null,null,null,null,null,null,null,null,null,null,null,null,null,null,null,null,null,null,"Morales"]
[null,84.499999999999318,null,null,null,null,null,null,null,null,null,null,null,null,null,null,null,null,null,null,"Morelia"]
[null,84.599999999999312,null,null,null,null,null,null,null,null,null,null,null,null,null,null,null,null,null,null,"Morichal"]
[null,84.699999999999307,null,null,null,null,null,null,null,null,null,null,null,null,null,null,null,null,null,null,"Morroa"]
[null,84.799999999999301,null,null,null,null,null,null,null,null,null,null,null,null,null,null,null,null,null,null,"Mosquera"]
[null,84.899999999999295,null,null,null,null,null,null,null,null,null,null,null,null,null,null,null,null,null,null,"Motavita"]
[null,84.999999999999289,null,null,null,null,null,null,null,null,null,null,null,null,null,null,null,null,null,null,"Murillo"]
[null,85.099999999999284,null,null,null,null,null,null,null,null,null,null,null,null,null,null,null,null,null,null,"Murindó"]
[null,85.199999999999278,null,null,null,null,null,null,null,null,null,null,null,null,null,null,null,null,null,null,"Mutatá"]
[null,85.299999999999272,null,null,null,null,null,null,null,null,null,null,null,null,null,null,null,null,null,null,"Mutiscua"]
[null,85.399999999999267,null,null,null,null,null,null,null,null,null,null,null,null,null,null,null,null,null,null,"Muzo"]
[null,85.499999999999261,null,null,null,null,null,null,null,null,null,null,null,null,null,null,null,null,null,null,"Nariño"]
[null,85.599999999999255,null,null,null,null,null,null,null,null,null,null,null,null,null,null,null,null,null,null,"Nátaga"]
[null,85.69999999999925,null,null,null,null,null,null,null,null,null,null,null,null,null,null,null,null,null,null,"Natagaima"]
[null,85.799999999999244,null,null,null,null,null,null,null,null,null,null,null,null,null,null,null,null,null,null,"Nechí"]
[null,85.899999999999238,null,null,null,null,null,null,null,null,null,null,null,null,null,null,null,null,null,null,"Necoclí"]
[null,85.999999999999233,null,null,null,null,null,null,null,null,null,null,null,null,null,null,null,null,null,null,"Neira"]
[null,86.099999999999227,null,null,null,null,null,null,null,null,null,null,null,null,null,null,null,null,null,null,"Neiva"]
[null,86.199999999999221,null,null,null,null,null,null,null,null,null,null,null,null,null,null,null,null,null,null,"Nemocón"]
[null,86.299999999999216,null,null,null,null,null,null,null,null,null,null,null,null,null,null,null,null,null,null,"Nilo"]
[null,86.39999999999921,null,null,null,null,null,null,null,null,null,null,null,null,null,null,null,null,null,null,"Nimaima"]
[null,86.499999999999204,null,null,null,null,null,null,null,null,null,null,null,null,null,null,null,null,null,null,"Nobsa"]
[null,86.599999999999199,null,null,null,null,null,null,null,null,null,null,null,null,null,null,null,null,null,null,"Nocaima"]
[null,86.699999999999193,null,null,null,null,null,null,null,null,null,null,null,null,null,null,null,null,null,null,"Norcasia"]
[null,86.799999999999187,null,null,null,null,null,null,null,null,null,null,null,null,null,null,null,null,null,null,"Norosí"]
[null,86.899999999999181,null,null,null,null,null,null,null,null,null,null,null,null,null,null,null,null,null,null,"Nóvita"]
[null,86.999999999999176,null,null,null,null,null,null,null,null,null,null,null,null,null,null,null,null,null,null,"Nueva Granada"]
[null,87.09999999999917,null,null,null,null,null,null,null,null,null,null,null,null,null,null,null,null,null,null,"Nuevo Colón"]
[null,87.199999999999164,null,null,null,null,null,null,null,null,null,null,null,null,null,null,null,null,null,null,"Nunchía"]
[null,87.299999999999159,null,null,null,null,null,null,null,null,null,null,null,null,null,null,null,null,null,null,"Nuquí"]
[null,87.399999999999153,null,null,null,null,null,null,null,null,null,null,null,null,null,null,null,null,null,null,"Obando"]
[null,87.499999999999147,null,null,null,null,null,null,null,null,null,null,null,null,null,null,null,null,null,null,"Ocamonte"]
[null,87.599999999999142,null,null,null,null,null,null,null,null,null,null,null,null,null,null,null,null,null,null,"Ocaña"]
[null,{"$f":"B581+0.1","v":87.699999999999136},null,null,null,null,null,null,null,null,null,null,null,null,null,null,null,null,null,null,"Oiba"]
[null,87.79999999999913,null,null,null,null,null,null,null,null,null,null,null,null,null,null,null,null,null,null,"Oicatá"]
[null,87.899999999999125,null,null,null,null,null,null,null,null,null,null,null,null,null,null,null,null,null,null,"Olaya"]
[null,87.999999999999119,null,null,null,null,null,null,null,null,null,null,null,null,null,null,null,null,null,null,"Olaya Herrera"]
[null,88.099999999999113,null,null,null,null,null,null,null,null,null,null,null,null,null,null,null,null,null,null,"Onzaga"]
[null,88.199999999999108,null,null,null,null,null,null,null,null,null,null,null,null,null,null,null,null,null,null,"Oporapa"]
[null,88.299999999999102,null,null,null,null,null,null,null,null,null,null,null,null,null,null,null,null,null,null,"Orito"]
[null,88.399999999999096,null,null,null,null,null,null,null,null,null,null,null,null,null,null,null,null,null,null,"Orocué"]
[null,88.499999999999091,null,null,null,null,null,null,null,null,null,null,null,null,null,null,null,null,null,null,"Ortega"]
[null,88.599999999999085,null,null,null,null,null,null,null,null,null,null,null,null,null,null,null,null,null,null,"Ospina"]
[null,88.699999999999079,null,null,null,null,null,null,null,null,null,null,null,null,null,null,null,null,null,null,"Otanche"]
[null,88.799999999999073,null,null,null,null,null,null,null,null,null,null,null,null,null,null,null,null,null,null,"Ovejas"]
[null,88.899999999999068,null,null,null,null,null,null,null,null,null,null,null,null,null,null,null,null,null,null,"Pachavita"]
[null,88.999999999999062,null,null,null,null,null,null,null,null,null,null,null,null,null,null,null,null,null,null,"Pacho"]
[null,89.099999999999056,null,null,null,null,null,null,null,null,null,null,null,null,null,null,null,null,null,null,"Pacoa"]
[null,89.199999999999051,null,null,null,null,null,null,null,null,null,null,null,null,null,null,null,null,null,null,"Pácora"]
[null,89.299999999999045,null,null,null,null,null,null,null,null,null,null,null,null,null,null,null,null,null,null,"Padilla"]
[null,89.399999999999039,null,null,null,null,null,null,null,null,null,null,null,null,null,null,null,null,null,null,"Páez"]
[null,89.499999999999034,null,null,null,null,null,null,null,null,null,null,null,null,null,null,null,null,null,null,"Paicol"]
[null,89.599999999999028,null,null,null,null,null,null,null,null,null,null,null,null,null,null,null,null,null,null,"Pailitas"]
[null,89.699999999999022,null,null,null,null,null,null,null,null,null,null,null,null,null,null,null,null,null,null,"Paime"]
[null,89.799999999999017,null,null,null,null,null,null,null,null,null,null,null,null,null,null,null,null,null,null,"Paipa"]
[null,89.899999999999011,null,null,null,null,null,null,null,null,null,null,null,null,null,null,null,null,null,null,"Pajarito"]
[null,89.999999999999005,null,null,null,null,null,null,null,null,null,null,null,null,null,null,null,null,null,null,"Palermo"]
[null,90.099999999999,null,null,null,null,null,null,null,null,null,null,null,null,null,null,null,null,null,null,"Palestina"]
[null,90.199999999998994,null,null,null,null,null,null,null,null,null,null,null,null,null,null,null,null,null,null,"Palmar"]
[null,90.299999999998988,null,null,null,null,null,null,null,null,null,null,null,null,null,null,null,null,null,null,"Palmar De Varela"]
[null,90.399999999998983,null,null,null,null,null,null,null,null,null,null,null,null,null,null,null,null,null,null,"Palmas Del Socorro"]
[null,90.499999999998977,null,null,null,null,null,null,null,null,null,null,null,null,null,null,null,null,null,null,"Palmira"]
[null,90.599999999998971,null,null,null,null,null,null,null,null,null,null,null,null,null,null,null,null,null,null,"Palmito"]
[null,90.699999999998965,null,null,null,null,null,null,null,null,null,null,null,null,null,null,null,null,null,null,"Palocabildo"]
[null,90.79999999999896,null,null,null,null,null,null,null,null,null,null,null,null,null,null,null,null,null,null,"Pamplona"]
[null,90.899999999998954,null,null,null,null,null,null,null,null,null,null,null,null,null,null,null,null,null,null,"Pamplonita"]
[null,90.999999999998948,null,null,null,null,null,null,null,null,null,null,null,null,null,null,null,null,null,null,"Pana Pana"]
[null,91.099999999998943,null,null,null,null,null,null,null,null,null,null,null,null,null,null,null,null,null,null,"Pandi"]
[null,91.199999999998937,null,null,null,null,null,null,null,null,null,null,null,null,null,null,null,null,null,null,"Panqueba"]
[null,91.299999999998931,null,null,null,null,null,null,null,null,null,null,null,null,null,null,null,null,null,null,"Papunaua"]
[null,91.399999999998926,null,null,null,null,null,null,null,null,null,null,null,null,null,null,null,null,null,null,"Páramo"]
[null,91.49999999999892,null,null,null,null,null,null,null,null,null,null,null,null,null,null,null,null,null,null,"Paratebueno"]
[null,91.599999999998914,null,null,null,null,null,null,null,null,null,null,null,null,null,null,null,null,null,null,"Pasca"]
[null,91.699999999998909,null,null,null,null,null,null,null,null,null,null,null,null,null,null,null,null,null,null,"Pasto"]
[null,91.799999999998903,null,null,null,null,null,null,null,null,null,null,null,null,null,null,null,null,null,null,"Patía"]
[null,91.899999999998897,null,null,null,null,null,null,null,null,null,null,null,null,null,null,null,null,null,null,"Pauna"]
[null,91.999999999998892,null,null,null,null,null,null,null,null,null,null,null,null,null,null,null,null,null,null,"Paya"]
[null,92.099999999998886,null,null,null,null,null,null,null,null,null,null,null,null,null,null,null,null,null,null,"Paz De Ariporo"]
[null,92.19999999999888,null,null,null,null,null,null,null,null,null,null,null,null,null,null,null,null,null,null,"Paz De Río"]
[null,92.299999999998875,null,null,null,null,null,null,null,null,null,null,null,null,null,null,null,null,null,null,"Pedraza"]
[null,92.399999999998869,null,null,null,null,null,null,null,null,null,null,null,null,null,null,null,null,null,null,"Pelaya"]
[null,92.499999999998863,null,null,null,null,null,null,null,null,null,null,null,null,null,null,null,null,null,null,"Pensilvania"]
[null,92.599999999998857,null,null,null,null,null,null,null,null,null,null,null,null,null,null,null,null,null,null,"Peñol"]
[null,92.699999999998852,null,null,null,null,null,null,null,null,null,null,null,null,null,null,null,null,null,null,"Peque"]
[null,92.799999999998846,null,null,null,null,null,null,null,null,null,null,null,null,null,null,null,null,null,null,"Pereira"]
[null,92.89999999999884,null,null,null,null,null,null,null,null,null,null,null,null,null,null,null,null,null,null,"Pesca"]
[null,92.999999999998835,null,null,null,null,null,null,null,null,null,null,null,null,null,null,null,null,null,null,"Piamonte"]
[null,93.099999999998829,null,null,null,null,null,null,null,null,null,null,null,null,null,null,null,null,null,null,"Piedecuesta"]
[null,93.199999999998823,null,null,null,null,null,null,null,null,null,null,null,null,null,null,null,null,null,null,"Piedras"]
[null,93.299999999998818,null,null,null,null,null,null,null,null,null,null,null,null,null,null,null,null,null,null,"Piendamó"]
[null,93.399999999998812,null,null,null,null,null,null,null,null,null,null,null,null,null,null,null,null,null,null,"Pijao"]
[null,93.499999999998806,null,null,null,null,null,null,null,null,null,null,null,null,null,null,null,null,null,null,"Pijiño Del Carmen"]
[null,93.599999999998801,null,null,null,null,null,null,null,null,null,null,null,null,null,null,null,null,null,null,"Pinchote"]
[null,93.699999999998795,null,null,null,null,null,null,null,null,null,null,null,null,null,null,null,null,null,null,"Pinillos"]
[null,93.799999999998789,null,null,null,null,null,null,null,null,null,null,null,null,null,null,null,null,null,null,"Piojó"]
[null,93.899999999998784,null,null,null,null,null,null,null,null,null,null,null,null,null,null,null,null,null,null,"Pisba"]
[null,93.999999999998778,null,null,null,null,null,null,null,null,null,null,null,null,null,null,null,null,null,null,"Pital"]
[null,{"$f":"B645+0.1","v":94.099999999998772},null,null,null,null,null,null,null,null,null,null,null,null,null,null,null,null,null,null,"Pitalito"]
[null,94.199999999998766,null,null,null,null,null,null,null,null,null,null,null,null,null,null,null,null,null,null,"Pivijay"]
[null,94.299999999998761,null,null,null,null,null,null,null,null,null,null,null,null,null,null,null,null,null,null,"Planadas"]
[null,94.399999999998755,null,null,null,null,null,null,null,null,null,null,null,null,null,null,null,null,null,null,"Planeta Rica"]
[null,94.499999999998749,null,null,null,null,null,null,null,null,null,null,null,null,null,null,null,null,null,null,"Plato"]
[null,94.599999999998744,null,null,null,null,null,null,null,null,null,null,null,null,null,null,null,null,null,null,"Policarpa"]
[null,94.699999999998738,null,null,null,null,null,null,null,null,null,null,null,null,null,null,null,null,null,null,"Polonuevo"]
[null,94.799999999998732,null,null,null,null,null,null,null,null,null,null,null,null,null,null,null,null,null,null,"Ponedera"]
[null,94.899999999998727,null,null,null,null,null,null,null,null,null,null,null,null,null,null,null,null,null,null,"Popayán"]
[null,94.999999999998721,null,null,null,null,null,null,null,null,null,null,null,null,null,null,null,null,null,null,"Pore"]
[null,95.099999999998715,null,null,null,null,null,null,null,null,null,null,null,null,null,null,null,null,null,null,"Potosí"]
[null,95.19999999999871,null,null,null,null,null,null,null,null,null,null,null,null,null,null,null,null,null,null,"Pradera"]
[null,95.299999999998704,null,null,null,null,null,null,null,null,null,null,null,null,null,null,null,null,null,null,"Prado"]
[null,95.399999999998698,null,null,null,null,null,null,null,null,null,null,null,null,null,null,null,null,null,null,"Providencia"]
[null,95.499999999998693,null,null,null,null,null,null,null,null,null,null,null,null,null,null,null,null,null,null,"Pueblo Bello"]
[null,95.599999999998687,null,null,null,null,null,null,null,null,null,null,null,null,null,null,null,null,null,null,"Pueblo Nuevo"]
[null,95.699999999998681,null,null,null,null,null,null,null,null,null,null,null,null,null,null,null,null,null,null,"Pueblo Rico"]
[null,95.799999999998676,null,null,null,null,null,null,null,null,null,null,null,null,null,null,null,null,null,null,"Pueblorrico"]
[null,95.89999999999867,null,null,null,null,null,null,null,null,null,null,null,null,null,null,null,null,null,null,"Puebloviejo"]
[null,95.999999999998664,null,null,null,null,null,null,null,null,null,null,null,null,null,null,null,null,null,null,"Puente Nacional"]
[null,96.099999999998658,null,null,null,null,null,null,null,null,null,null,null,null,null,null,null,null,null,null,"Puerres"]
[null,96.199999999998653,null,null,null,null,null,null,null,null,null,null,null,null,null,null,null,null,null,null,"Puerto Alegría"]
[null,96.299999999998647,null,null,null,null,null,null,null,null,null,null,null,null,null,null,null,null,null,null,"Puerto Arica"]
[null,96.399999999998641,null,null,null,null,null,null,null,null,null,null,null,null,null,null,null,null,null,null,"Puerto Asís"]
[null,96.499999999998636,null,null,null,null,null,null,null,null,null,null,null,null,null,null,null,null,null,null,"Puerto Berrío"]
[null,96.59999999999863,null,null,null,null,null,null,null,null,null,null,null,null,null,null,null,null,null,null,"Puerto Boyacá"]
[null,96.699999999998624,null,null,null,null,null,null,null,null,null,null,null,null,null,null,null,null,null,null,"Puerto Caicedo"]
[null,96.799999999998619,null,null,null,null,null,null,null,null,null,null,null,null,null,null,null,null,null,null,"Puerto Carreño"]
[null,96.899999999998613,null,null,null,null,null,null,null,null,null,null,null,null,null,null,null,null,null,null,"Puerto Colombia"]
[null,96.999999999998607,null,null,null,null,null,null,null,null,null,null,null,null,null,null,null,null,null,null,"Puerto Concordia"]
[null,97.099999999998602,null,null,null,null,null,null,null,null,null,null,null,null,null,null,null,null,null,null,"Puerto Escondido"]
[null,97.199999999998596,null,null,null,null,null,null,null,null,null,null,null,null,null,null,null,null,null,null,"Puerto Gaitán"]
[null,97.29999999999859,null,null,null,null,null,null,null,null,null,null,null,null,null,null,null,null,null,null,"Puerto Guzmán"]
[null,97.399999999998585,null,null,null,null,null,null,null,null,null,null,null,null,null,null,null,null,null,null,"Puerto Leguízamo"]
[null,97.499999999998579,null,null,null,null,null,null,null,null,null,null,null,null,null,null,null,null,null,null,"Puerto Libertador"]
[null,97.599999999998573,null,null,null,null,null,null,null,null,null,null,null,null,null,null,null,null,null,null,"Puerto Lleras"]
[null,97.699999999998568,null,null,null,null,null,null,null,null,null,null,null,null,null,null,null,null,null,null,"Puerto López"]
[null,97.799999999998562,null,null,null,null,null,null,null,null,null,null,null,null,null,null,null,null,null,null,"Puerto Nare"]
[null,97.899999999998556,null,null,null,null,null,null,null,null,null,null,null,null,null,null,null,null,null,null,"Puerto Nariño"]
[null,97.99999999999855,null,null,null,null,null,null,null,null,null,null,null,null,null,null,null,null,null,null,"Puerto Parra"]
[null,98.099999999998545,null,null,null,null,null,null,null,null,null,null,null,null,null,null,null,null,null,null,"Puerto Rico"]
[null,98.199999999998539,null,null,null,null,null,null,null,null,null,null,null,null,null,null,null,null,null,null,"Puerto Rondón"]
[null,98.299999999998533,null,null,null,null,null,null,null,null,null,null,null,null,null,null,null,null,null,null,"Puerto Salgar"]
[null,98.399999999998528,null,null,null,null,null,null,null,null,null,null,null,null,null,null,null,null,null,null,"Puerto Santander"]
[null,98.499999999998522,null,null,null,null,null,null,null,null,null,null,null,null,null,null,null,null,null,null,"Puerto Tejada"]
[null,98.599999999998516,null,null,null,null,null,null,null,null,null,null,null,null,null,null,null,null,null,null,"Puerto Triunfo"]
[null,98.699999999998511,null,null,null,null,null,null,null,null,null,null,null,null,null,null,null,null,null,null,"Puerto Wilches"]
[null,98.799999999998505,null,null,null,null,null,null,null,null,null,null,null,null,null,null,null,null,null,null,"Pulí"]
[null,98.899999999998499,null,null,null,null,null,null,null,null,null,null,null,null,null,null,null,null,null,null,"Pupiales"]
[null,98.999999999998494,null,null,null,null,null,null,null,null,null,null,null,null,null,null,null,null,null,null,"Puracé"]
[null,99.099999999998488,null,null,null,null,null,null,null,null,null,null,null,null,null,null,null,null,null,null,"Purificación"]
[null,99.199999999998482,null,null,null,null,null,null,null,null,null,null,null,null,null,null,null,null,null,null,"Purísima De La Concepción"]
[null,99.299999999998477,null,null,null,null,null,null,null,null,null,null,null,null,null,null,null,null,null,null,"Quebradanegra"]
[null,99.399999999998471,null,null,null,null,null,null,null,null,null,null,null,null,null,null,null,null,null,null,"Quetame"]
[null,99.499999999998465,null,null,null,null,null,null,null,null,null,null,null,null,null,null,null,null,null,null,"Quibdó"]
[null,99.59999999999846,null,null,null,null,null,null,null,null,null,null,null,null,null,null,null,null,null,null,"Quimbaya"]
[null,99.699999999998454,null,null,null,null,null,null,null,null,null,null,null,null,null,null,null,null,null,null,"Quinchía"]
[null,99.799999999998448,null,null,null,null,null,null,null,null,null,null,null,null,null,null,null,null,null,null,"Quípama"]
[null,99.899999999998442,null,null,null,null,null,null,null,null,null,null,null,null,null,null,null,null,null,null,"Quipile"]
[null,99.999999999998437,null,null,null,null,null,null,null,null,null,null,null,null,null,null,null,null,null,null,"Ragonvalia"]
[null,100.09999999999843,null,null,null,null,null,null,null,null,null,null,null,null,null,null,null,null,null,null,"Ramiriquí"]
[null,100.19999999999843,null,null,null,null,null,null,null,null,null,null,null,null,null,null,null,null,null,null,"Ráquira"]
[null,100.29999999999842,null,null,null,null,null,null,null,null,null,null,null,null,null,null,null,null,null,null,"Recetor"]
[null,100.39999999999841,null,null,null,null,null,null,null,null,null,null,null,null,null,null,null,null,null,null,"Regidor"]
[null,{"$f":"B709+0.1","v":100.49999999999841},null,null,null,null,null,null,null,null,null,null,null,null,null,null,null,null,null,null,"Remedios"]
[null,100.5999999999984,null,null,null,null,null,null,null,null,null,null,null,null,null,null,null,null,null,null,"Remolino"]
[null,100.6999999999984,null,null,null,null,null,null,null,null,null,null,null,null,null,null,null,null,null,null,"Repelón"]
[null,100.79999999999839,null,null,null,null,null,null,null,null,null,null,null,null,null,null,null,null,null,null,"Restrepo"]
[null,100.89999999999839,null,null,null,null,null,null,null,null,null,null,null,null,null,null,null,null,null,null,"Retiro"]
[null,100.99999999999838,null,null,null,null,null,null,null,null,null,null,null,null,null,null,null,null,null,null,"Ricaurte"]
[null,101.09999999999837,null,null,null,null,null,null,null,null,null,null,null,null,null,null,null,null,null,null,"Río De Oro"]
[null,101.19999999999837,null,null,null,null,null,null,null,null,null,null,null,null,null,null,null,null,null,null,"Río Iró"]
[null,101.29999999999836,null,null,null,null,null,null,null,null,null,null,null,null,null,null,null,null,null,null,"Río Quito"]
[null,101.39999999999836,null,null,null,null,null,null,null,null,null,null,null,null,null,null,null,null,null,null,"Río Viejo"]
[null,101.49999999999835,null,null,null,null,null,null,null,null,null,null,null,null,null,null,null,null,null,null,"Rioblanco"]
[null,101.59999999999835,null,null,null,null,null,null,null,null,null,null,null,null,null,null,null,null,null,null,"Riofrío"]
[null,101.69999999999834,null,null,null,null,null,null,null,null,null,null,null,null,null,null,null,null,null,null,"Riohacha"]
[null,101.79999999999833,null,null,null,null,null,null,null,null,null,null,null,null,null,null,null,null,null,null,"Rionegro"]
[null,101.89999999999833,null,null,null,null,null,null,null,null,null,null,null,null,null,null,null,null,null,null,"Riosucio"]
[null,101.99999999999832,null,null,null,null,null,null,null,null,null,null,null,null,null,null,null,null,null,null,"Risaralda"]
[null,102.09999999999832,null,null,null,null,null,null,null,null,null,null,null,null,null,null,null,null,null,null,"Rivera"]
[null,102.19999999999831,null,null,null,null,null,null,null,null,null,null,null,null,null,null,null,null,null,null,"Roberto Payán"]
[null,102.29999999999831,null,null,null,null,null,null,null,null,null,null,null,null,null,null,null,null,null,null,"Roldanillo"]
[null,102.3999999999983,null,null,null,null,null,null,null,null,null,null,null,null,null,null,null,null,null,null,"Roncesvalles"]
[null,102.49999999999829,null,null,null,null,null,null,null,null,null,null,null,null,null,null,null,null,null,null,"Rondón"]
[null,102.59999999999829,null,null,null,null,null,null,null,null,null,null,null,null,null,null,null,null,null,null,"Rosas"]
[null,102.69999999999828,null,null,null,null,null,null,null,null,null,null,null,null,null,null,null,null,null,null,"Rovira"]
[null,102.79999999999828,null,null,null,null,null,null,null,null,null,null,null,null,null,null,null,null,null,null,"Sabana De Torres"]
[null,102.89999999999827,null,null,null,null,null,null,null,null,null,null,null,null,null,null,null,null,null,null,"Sabanagrande"]
[null,102.99999999999827,null,null,null,null,null,null,null,null,null,null,null,null,null,null,null,null,null,null,"Sabanalarga"]
[null,103.09999999999826,null,null,null,null,null,null,null,null,null,null,null,null,null,null,null,null,null,null,"Sabanas De San Ángel"]
[null,103.19999999999825,null,null,null,null,null,null,null,null,null,null,null,null,null,null,null,null,null,null,"Sabaneta"]
[null,103.29999999999825,null,null,null,null,null,null,null,null,null,null,null,null,null,null,null,null,null,null,"Saboyá"]
[null,103.39999999999824,null,null,null,null,null,null,null,null,null,null,null,null,null,null,null,null,null,null,"Sácama"]
[null,103.49999999999824,null,null,null,null,null,null,null,null,null,null,null,null,null,null,null,null,null,null,"Sáchica"]
[null,103.59999999999823,null,null,null,null,null,null,null,null,null,null,null,null,null,null,null,null,null,null,"Sahagún"]
[null,103.69999999999823,null,null,null,null,null,null,null,null,null,null,null,null,null,null,null,null,null,null,"Saladoblanco"]
[null,103.79999999999822,null,null,null,null,null,null,null,null,null,null,null,null,null,null,null,null,null,null,"Salamina"]
[null,103.89999999999822,null,null,null,null,null,null,null,null,null,null,null,null,null,null,null,null,null,null,"Salazar"]
[null,103.99999999999821,null,null,null,null,null,null,null,null,null,null,null,null,null,null,null,null,null,null,"Saldaña"]
[null,104.0999999999982,null,null,null,null,null,null,null,null,null,null,null,null,null,null,null,null,null,null,"Salento"]
[null,104.1999999999982,null,null,null,null,null,null,null,null,null,null,null,null,null,null,null,null,null,null,"Salgar"]
[null,104.29999999999819,null,null,null,null,null,null,null,null,null,null,null,null,null,null,null,null,null,null,"Samacá"]
[null,104.39999999999819,null,null,null,null,null,null,null,null,null,null,null,null,null,null,null,null,null,null,"Samaná"]
[null,104.49999999999818,null,null,null,null,null,null,null,null,null,null,null,null,null,null,null,null,null,null,"Samaniego"]
[null,104.59999999999818,null,null,null,null,null,null,null,null,null,null,null,null,null,null,null,null,null,null,"Sampués"]
[null,104.69999999999817,null,null,null,null,null,null,null,null,null,null,null,null,null,null,null,null,null,null,"San Agustín"]
[null,104.79999999999816,null,null,null,null,null,null,null,null,null,null,null,null,null,null,null,null,null,null,"San Alberto"]
[null,104.89999999999816,null,null,null,null,null,null,null,null,null,null,null,null,null,null,null,null,null,null,"San Andrés"]
[null,104.99999999999815,null,null,null,null,null,null,null,null,null,null,null,null,null,null,null,null,null,null,"San Andrés De Cuerquía"]
[null,105.09999999999815,null,null,null,null,null,null,null,null,null,null,null,null,null,null,null,null,null,null,"San Andrés De Sotavento"]
[null,105.19999999999814,null,null,null,null,null,null,null,null,null,null,null,null,null,null,null,null,null,null,"San Andrés De Tumaco"]
[null,105.29999999999814,null,null,null,null,null,null,null,null,null,null,null,null,null,null,null,null,null,null,"San Antero"]
[null,105.39999999999813,null,null,null,null,null,null,null,null,null,null,null,null,null,null,null,null,null,null,"San Antonio"]
[null,105.49999999999812,null,null,null,null,null,null,null,null,null,null,null,null,null,null,null,null,null,null,"San Antonio Del Tequendama"]
[null,105.59999999999812,null,null,null,null,null,null,null,null,null,null,null,null,null,null,null,null,null,null,"San Benito"]
[null,105.69999999999811,null,null,null,null,null,null,null,null,null,null,null,null,null,null,null,null,null,null,"San Benito Abad"]
[null,105.79999999999811,null,null,null,null,null,null,null,null,null,null,null,null,null,null,null,null,null,null,"San Bernardo"]
[null,105.8999999999981,null,null,null,null,null,null,null,null,null,null,null,null,null,null,null,null,null,null,"San Bernardo Del Viento"]
[null,105.9999999999981,null,null,null,null,null,null,null,null,null,null,null,null,null,null,null,null,null,null,"San Calixto"]
[null,106.09999999999809,null,null,null,null,null,null,null,null,null,null,null,null,null,null,null,null,null,null,"San Carlos"]
[null,106.19999999999808,null,null,null,null,null,null,null,null,null,null,null,null,null,null,null,null,null,null,"San Carlos De Guaroa"]
[null,106.29999999999808,null,null,null,null,null,null,null,null,null,null,null,null,null,null,null,null,null,null,"San Cayetano"]
[null,106.39999999999807,null,null,null,null,null,null,null,null,null,null,null,null,null,null,null,null,null,null,"San Cristóbal"]
[null,106.49999999999807,null,null,null,null,null,null,null,null,null,null,null,null,null,null,null,null,null,null,"San Diego"]
[null,106.59999999999806,null,null,null,null,null,null,null,null,null,null,null,null,null,null,null,null,null,null,"San Eduardo"]
[null,106.69999999999806,null,null,null,null,null,null,null,null,null,null,null,null,null,null,null,null,null,null,"San Estanislao"]
[null,106.79999999999805,null,null,null,null,null,null,null,null,null,null,null,null,null,null,null,null,null,null,"San Felipe"]
[null,{"$f":"B773+0.1","v":106.89999999999804},null,null,null,null,null,null,null,null,null,null,null,null,null,null,null,null,null,null,"San Fernando"]
[null,106.99999999999804,null,null,null,null,null,null,null,null,null,null,null,null,null,null,null,null,null,null,"San Francisco"]
[null,107.09999999999803,null,null,null,null,null,null,null,null,null,null,null,null,null,null,null,null,null,null,"San Gil"]
[null,107.19999999999803,null,null,null,null,null,null,null,null,null,null,null,null,null,null,null,null,null,null,"San Jacinto"]
[null,107.29999999999802,null,null,null,null,null,null,null,null,null,null,null,null,null,null,null,null,null,null,"San Jacinto Del Cauca"]
[null,107.39999999999802,null,null,null,null,null,null,null,null,null,null,null,null,null,null,null,null,null,null,"San Jerónimo"]
[null,107.49999999999801,null,null,null,null,null,null,null,null,null,null,null,null,null,null,null,null,null,null,"San Joaquín"]
[null,107.599999999998,null,null,null,null,null,null,null,null,null,null,null,null,null,null,null,null,null,null,"San José"]
[null,107.699999999998,null,null,null,null,null,null,null,null,null,null,null,null,null,null,null,null,null,null,"San José De La Montaña"]
[null,107.79999999999799,null,null,null,null,null,null,null,null,null,null,null,null,null,null,null,null,null,null,"San José De Miranda"]
[null,107.89999999999799,null,null,null,null,null,null,null,null,null,null,null,null,null,null,null,null,null,null,"San José De Pare"]
[null,107.99999999999798,null,null,null,null,null,null,null,null,null,null,null,null,null,null,null,null,null,null,"San José De Uré"]
[null,108.09999999999798,null,null,null,null,null,null,null,null,null,null,null,null,null,null,null,null,null,null,"San José Del Fragua"]
[null,108.19999999999797,null,null,null,null,null,null,null,null,null,null,null,null,null,null,null,null,null,null,"San José Del Guaviare"]
[null,108.29999999999797,null,null,null,null,null,null,null,null,null,null,null,null,null,null,null,null,null,null,"San José Del Palmar"]
[null,108.39999999999796,null,null,null,null,null,null,null,null,null,null,null,null,null,null,null,null,null,null,"San Juan De Arama"]
[null,108.49999999999795,null,null,null,null,null,null,null,null,null,null,null,null,null,null,null,null,null,null,"San Juan De Betulia"]
[null,108.59999999999795,null,null,null,null,null,null,null,null,null,null,null,null,null,null,null,null,null,null,"San Juan De Rioseco"]
[null,108.69999999999794,null,null,null,null,null,null,null,null,null,null,null,null,null,null,null,null,null,null,"San Juan De Urabá"]
[null,108.79999999999794,null,null,null,null,null,null,null,null,null,null,null,null,null,null,null,null,null,null,"San Juan Del Cesar"]
[null,108.89999999999793,null,null,null,null,null,null,null,null,null,null,null,null,null,null,null,null,null,null,"San Juan Nepomuceno"]
[null,108.99999999999793,null,null,null,null,null,null,null,null,null,null,null,null,null,null,null,null,null,null,"San Juanito"]
[null,109.09999999999792,null,null,null,null,null,null,null,null,null,null,null,null,null,null,null,null,null,null,"San Lorenzo"]
[null,109.19999999999791,null,null,null,null,null,null,null,null,null,null,null,null,null,null,null,null,null,null,"San Luis"]
[null,109.29999999999791,null,null,null,null,null,null,null,null,null,null,null,null,null,null,null,null,null,null,"San Luis De Cubarral"]
[null,109.3999999999979,null,null,null,null,null,null,null,null,null,null,null,null,null,null,null,null,null,null,"San Luis De Gaceno"]
[null,109.4999999999979,null,null,null,null,null,null,null,null,null,null,null,null,null,null,null,null,null,null,"San Luis De Palenque"]
[null,109.59999999999789,null,null,null,null,null,null,null,null,null,null,null,null,null,null,null,null,null,null,"San Luis De Sincé"]
[null,109.69999999999789,null,null,null,null,null,null,null,null,null,null,null,null,null,null,null,null,null,null,"San Marcos"]
[null,109.79999999999788,null,null,null,null,null,null,null,null,null,null,null,null,null,null,null,null,null,null,"San Martín"]
[null,109.89999999999787,null,null,null,null,null,null,null,null,null,null,null,null,null,null,null,null,null,null,"San Martín De Loba"]
[null,109.99999999999787,null,null,null,null,null,null,null,null,null,null,null,null,null,null,null,null,null,null,"San Mateo"]
[null,110.09999999999786,null,null,null,null,null,null,null,null,null,null,null,null,null,null,null,null,null,null,"San Miguel"]
[null,110.19999999999786,null,null,null,null,null,null,null,null,null,null,null,null,null,null,null,null,null,null,"San Miguel De Sema"]
[null,110.29999999999785,null,null,null,null,null,null,null,null,null,null,null,null,null,null,null,null,null,null,"San Onofre"]
[null,110.39999999999785,null,null,null,null,null,null,null,null,null,null,null,null,null,null,null,null,null,null,"San Pablo"]
[null,110.49999999999784,null,null,null,null,null,null,null,null,null,null,null,null,null,null,null,null,null,null,"San Pablo De Borbur"]
[null,110.59999999999783,null,null,null,null,null,null,null,null,null,null,null,null,null,null,null,null,null,null,"San Pedro"]
[null,110.69999999999783,null,null,null,null,null,null,null,null,null,null,null,null,null,null,null,null,null,null,"San Pedro De Cartago"]
[null,110.79999999999782,null,null,null,null,null,null,null,null,null,null,null,null,null,null,null,null,null,null,"San Pedro De Los Milagros"]
[null,110.89999999999782,null,null,null,null,null,null,null,null,null,null,null,null,null,null,null,null,null,null,"San Pedro De Urabá"]
[null,110.99999999999781,null,null,null,null,null,null,null,null,null,null,null,null,null,null,null,null,null,null,"San Pelayo"]
[null,111.09999999999781,null,null,null,null,null,null,null,null,null,null,null,null,null,null,null,null,null,null,"San Rafael"]
[null,111.1999999999978,null,null,null,null,null,null,null,null,null,null,null,null,null,null,null,null,null,null,"San Roque"]
[null,111.29999999999779,null,null,null,null,null,null,null,null,null,null,null,null,null,null,null,null,null,null,"San Sebastián"]
[null,111.39999999999779,null,null,null,null,null,null,null,null,null,null,null,null,null,null,null,null,null,null,"San Sebastián De Buenavista"]
[null,111.49999999999778,null,null,null,null,null,null,null,null,null,null,null,null,null,null,null,null,null,null,"San Sebastián De Mariquita"]
[null,111.59999999999778,null,null,null,null,null,null,null,null,null,null,null,null,null,null,null,null,null,null,"San Vicente De Chucurí"]
[null,111.69999999999777,null,null,null,null,null,null,null,null,null,null,null,null,null,null,null,null,null,null,"San Vicente Del Caguán"]
[null,111.79999999999777,null,null,null,null,null,null,null,null,null,null,null,null,null,null,null,null,null,null,"San Vicente Ferrer"]
[null,111.89999999999776,null,null,null,null,null,null,null,null,null,null,null,null,null,null,null,null,null,null,"San Zenón"]
[null,111.99999999999775,null,null,null,null,null,null,null,null,null,null,null,null,null,null,null,null,null,null,"Sandoná"]
[null,112.09999999999775,null,null,null,null,null,null,null,null,null,null,null,null,null,null,null,null,null,null,"Santa Ana"]
[null,112.19999999999774,null,null,null,null,null,null,null,null,null,null,null,null,null,null,null,null,null,null,"Santa Bárbara"]
[null,112.29999999999774,null,null,null,null,null,null,null,null,null,null,null,null,null,null,null,null,null,null,"Santa Bárbara De Pinto"]
[null,112.39999999999773,null,null,null,null,null,null,null,null,null,null,null,null,null,null,null,null,null,null,"Santa Catalina"]
[null,112.49999999999773,null,null,null,null,null,null,null,null,null,null,null,null,null,null,null,null,null,null,"Santa Fé De Antioquia"]
[null,112.59999999999772,null,null,null,null,null,null,null,null,null,null,null,null,null,null,null,null,null,null,"Santa Helena Del Opón"]
[null,112.69999999999771,null,null,null,null,null,null,null,null,null,null,null,null,null,null,null,null,null,null,"Santa Isabel"]
[null,112.79999999999771,null,null,null,null,null,null,null,null,null,null,null,null,null,null,null,null,null,null,"Santa Lucía"]
[null,112.8999999999977,null,null,null,null,null,null,null,null,null,null,null,null,null,null,null,null,null,null,"Santa María"]
[null,112.9999999999977,null,null,null,null,null,null,null,null,null,null,null,null,null,null,null,null,null,null,"Santa Marta"]
[null,113.09999999999769,null,null,null,null,null,null,null,null,null,null,null,null,null,null,null,null,null,null,"Santa Rosa"]
[null,113.19999999999769,null,null,null,null,null,null,null,null,null,null,null,null,null,null,null,null,null,null,"Santa Rosa De Cabal"]
[null,{"$f":"B837+0.1","v":113.29999999999768},null,null,null,null,null,null,null,null,null,null,null,null,null,null,null,null,null,null,"Santa Rosa De Osos"]
[null,113.39999999999768,null,null,null,null,null,null,null,null,null,null,null,null,null,null,null,null,null,null,"Santa Rosa De Viterbo"]
[null,113.49999999999767,null,null,null,null,null,null,null,null,null,null,null,null,null,null,null,null,null,null,"Santa Rosa Del Sur"]
[null,113.59999999999766,null,null,null,null,null,null,null,null,null,null,null,null,null,null,null,null,null,null,"Santa Rosalía"]
[null,113.69999999999766,null,null,null,null,null,null,null,null,null,null,null,null,null,null,null,null,null,null,"Santa Sofía"]
[null,113.79999999999765,null,null,null,null,null,null,null,null,null,null,null,null,null,null,null,null,null,null,"Santacruz"]
[null,113.89999999999765,null,null,null,null,null,null,null,null,null,null,null,null,null,null,null,null,null,null,"Santana"]
[null,113.99999999999764,null,null,null,null,null,null,null,null,null,null,null,null,null,null,null,null,null,null,"Santander De Quilichao"]
[null,114.09999999999764,null,null,null,null,null,null,null,null,null,null,null,null,null,null,null,null,null,null,"Santiago"]
[null,114.19999999999763,null,null,null,null,null,null,null,null,null,null,null,null,null,null,null,null,null,null,"Santiago De Tolú"]
[null,114.29999999999762,null,null,null,null,null,null,null,null,null,null,null,null,null,null,null,null,null,null,"Santo Domingo"]
[null,114.39999999999762,null,null,null,null,null,null,null,null,null,null,null,null,null,null,null,null,null,null,"Santo Tomás"]
[null,114.49999999999761,null,null,null,null,null,null,null,null,null,null,null,null,null,null,null,null,null,null,"Santuario"]
[null,114.59999999999761,null,null,null,null,null,null,null,null,null,null,null,null,null,null,null,null,null,null,"Sapuyes"]
[null,114.6999999999976,null,null,null,null,null,null,null,null,null,null,null,null,null,null,null,null,null,null,"Saravena"]
[null,114.7999999999976,null,null,null,null,null,null,null,null,null,null,null,null,null,null,null,null,null,null,"Sardinata"]
[null,114.89999999999759,null,null,null,null,null,null,null,null,null,null,null,null,null,null,null,null,null,null,"Sasaima"]
[null,114.99999999999758,null,null,null,null,null,null,null,null,null,null,null,null,null,null,null,null,null,null,"Sativanorte"]
[null,115.09999999999758,null,null,null,null,null,null,null,null,null,null,null,null,null,null,null,null,null,null,"Sativasur"]
[null,115.19999999999757,null,null,null,null,null,null,null,null,null,null,null,null,null,null,null,null,null,null,"Segovia"]
[null,115.29999999999757,null,null,null,null,null,null,null,null,null,null,null,null,null,null,null,null,null,null,"Sesquilé"]
[null,115.39999999999756,null,null,null,null,null,null,null,null,null,null,null,null,null,null,null,null,null,null,"Sevilla"]
[null,115.49999999999756,null,null,null,null,null,null,null,null,null,null,null,null,null,null,null,null,null,null,"Siachoque"]
[null,115.59999999999755,null,null,null,null,null,null,null,null,null,null,null,null,null,null,null,null,null,null,"Sibaté"]
[null,115.69999999999754,null,null,null,null,null,null,null,null,null,null,null,null,null,null,null,null,null,null,"Sibundoy"]
[null,115.79999999999754,null,null,null,null,null,null,null,null,null,null,null,null,null,null,null,null,null,null,"Silos"]
[null,115.89999999999753,null,null,null,null,null,null,null,null,null,null,null,null,null,null,null,null,null,null,"Silvania"]
[null,115.99999999999753,null,null,null,null,null,null,null,null,null,null,null,null,null,null,null,null,null,null,"Silvia"]
[null,116.09999999999752,null,null,null,null,null,null,null,null,null,null,null,null,null,null,null,null,null,null,"Simacota"]
[null,116.19999999999752,null,null,null,null,null,null,null,null,null,null,null,null,null,null,null,null,null,null,"Simijaca"]
[null,116.29999999999751,null,null,null,null,null,null,null,null,null,null,null,null,null,null,null,null,null,null,"Simití"]
[null,116.3999999999975,null,null,null,null,null,null,null,null,null,null,null,null,null,null,null,null,null,null,"Sincelejo"]
[null,116.4999999999975,null,null,null,null,null,null,null,null,null,null,null,null,null,null,null,null,null,null,"Sipí"]
[null,116.59999999999749,null,null,null,null,null,null,null,null,null,null,null,null,null,null,null,null,null,null,"Sitionuevo"]
[null,116.69999999999749,null,null,null,null,null,null,null,null,null,null,null,null,null,null,null,null,null,null,"Soacha"]
[null,116.79999999999748,null,null,null,null,null,null,null,null,null,null,null,null,null,null,null,null,null,null,"Soatá"]
[null,116.89999999999748,null,null,null,null,null,null,null,null,null,null,null,null,null,null,null,null,null,null,"Socha"]
[null,116.99999999999747,null,null,null,null,null,null,null,null,null,null,null,null,null,null,null,null,null,null,"Socorro"]
[null,117.09999999999746,null,null,null,null,null,null,null,null,null,null,null,null,null,null,null,null,null,null,"Socotá"]
[null,117.19999999999746,null,null,null,null,null,null,null,null,null,null,null,null,null,null,null,null,null,null,"Sogamoso"]
[null,117.29999999999745,null,null,null,null,null,null,null,null,null,null,null,null,null,null,null,null,null,null,"Solano"]
[null,117.39999999999745,null,null,null,null,null,null,null,null,null,null,null,null,null,null,null,null,null,null,"Soledad"]
[null,117.49999999999744,null,null,null,null,null,null,null,null,null,null,null,null,null,null,null,null,null,null,"Solita"]
[null,117.59999999999744,null,null,null,null,null,null,null,null,null,null,null,null,null,null,null,null,null,null,"Somondoco"]
[null,117.69999999999743,null,null,null,null,null,null,null,null,null,null,null,null,null,null,null,null,null,null,"Sonsón"]
[null,117.79999999999742,null,null,null,null,null,null,null,null,null,null,null,null,null,null,null,null,null,null,"Sopetrán"]
[null,117.89999999999742,null,null,null,null,null,null,null,null,null,null,null,null,null,null,null,null,null,null,"Soplaviento"]
[null,117.99999999999741,null,null,null,null,null,null,null,null,null,null,null,null,null,null,null,null,null,null,"Sopó"]
[null,118.09999999999741,null,null,null,null,null,null,null,null,null,null,null,null,null,null,null,null,null,null,"Sora"]
[null,118.1999999999974,null,null,null,null,null,null,null,null,null,null,null,null,null,null,null,null,null,null,"Soracá"]
[null,118.2999999999974,null,null,null,null,null,null,null,null,null,null,null,null,null,null,null,null,null,null,"Sotaquirá"]
[null,118.39999999999739,null,null,null,null,null,null,null,null,null,null,null,null,null,null,null,null,null,null,"Sotara"]
[null,118.49999999999739,null,null,null,null,null,null,null,null,null,null,null,null,null,null,null,null,null,null,"Suaita"]
[null,118.59999999999738,null,null,null,null,null,null,null,null,null,null,null,null,null,null,null,null,null,null,"Suan"]
[null,118.69999999999737,null,null,null,null,null,null,null,null,null,null,null,null,null,null,null,null,null,null,"Suárez"]
[null,118.79999999999737,null,null,null,null,null,null,null,null,null,null,null,null,null,null,null,null,null,null,"Suaza"]
[null,118.89999999999736,null,null,null,null,null,null,null,null,null,null,null,null,null,null,null,null,null,null,"Subachoque"]
[null,118.99999999999736,null,null,null,null,null,null,null,null,null,null,null,null,null,null,null,null,null,null,"Sucre"]
[null,119.09999999999735,null,null,null,null,null,null,null,null,null,null,null,null,null,null,null,null,null,null,"Suesca"]
[null,119.19999999999735,null,null,null,null,null,null,null,null,null,null,null,null,null,null,null,null,null,null,"Supatá"]
[null,119.29999999999734,null,null,null,null,null,null,null,null,null,null,null,null,null,null,null,null,null,null,"Supía"]
[null,119.39999999999733,null,null,null,null,null,null,null,null,null,null,null,null,null,null,null,null,null,null,"Suratá"]
[null,119.49999999999733,null,null,null,null,null,null,null,null,null,null,null,null,null,null,null,null,null,null,"Susa"]
[null,119.59999999999732,null,null,null,null,null,null,null,null,null,null,null,null,null,null,null,null,null,null,"Susacón"]
[null,{"$f":"B901+0.1","v":119.69999999999732},null,null,null,null,null,null,null,null,null,null,null,null,null,null,null,null,null,null,"Sutamarchán"]
[null,119.79999999999731,null,null,null,null,null,null,null,null,null,null,null,null,null,null,null,null,null,null,"Sutatausa"]
[null,119.89999999999731,null,null,null,null,null,null,null,null,null,null,null,null,null,null,null,null,null,null,"Sutatenza"]
[null,119.9999999999973,null,null,null,null,null,null,null,null,null,null,null,null,null,null,null,null,null,null,"Tabio"]
[null,120.09999999999729,null,null,null,null,null,null,null,null,null,null,null,null,null,null,null,null,null,null,"Tadó"]
[null,120.19999999999729,null,null,null,null,null,null,null,null,null,null,null,null,null,null,null,null,null,null,"Talaigua Nuevo"]
[null,120.29999999999728,null,null,null,null,null,null,null,null,null,null,null,null,null,null,null,null,null,null,"Tamalameque"]
[null,120.39999999999728,null,null,null,null,null,null,null,null,null,null,null,null,null,null,null,null,null,null,"Támara"]
[null,120.49999999999727,null,null,null,null,null,null,null,null,null,null,null,null,null,null,null,null,null,null,"Tame"]
[null,120.59999999999727,null,null,null,null,null,null,null,null,null,null,null,null,null,null,null,null,null,null,"Támesis"]
[null,120.69999999999726,null,null,null,null,null,null,null,null,null,null,null,null,null,null,null,null,null,null,"Taminango"]
[null,120.79999999999725,null,null,null,null,null,null,null,null,null,null,null,null,null,null,null,null,null,null,"Tangua"]
[null,120.89999999999725,null,null,null,null,null,null,null,null,null,null,null,null,null,null,null,null,null,null,"Taraira"]
[null,120.99999999999724,null,null,null,null,null,null,null,null,null,null,null,null,null,null,null,null,null,null,"Tarapacá"]
[null,121.09999999999724,null,null,null,null,null,null,null,null,null,null,null,null,null,null,null,null,null,null,"Tarazá"]
[null,121.19999999999723,null,null,null,null,null,null,null,null,null,null,null,null,null,null,null,null,null,null,"Tarqui"]
[null,121.29999999999723,null,null,null,null,null,null,null,null,null,null,null,null,null,null,null,null,null,null,"Tarso"]
[null,121.39999999999722,null,null,null,null,null,null,null,null,null,null,null,null,null,null,null,null,null,null,"Tasco"]
[null,121.49999999999721,null,null,null,null,null,null,null,null,null,null,null,null,null,null,null,null,null,null,"Tauramena"]
[null,121.59999999999721,null,null,null,null,null,null,null,null,null,null,null,null,null,null,null,null,null,null,"Tausa"]
[null,121.6999999999972,null,null,null,null,null,null,null,null,null,null,null,null,null,null,null,null,null,null,"Tello"]
[null,121.7999999999972,null,null,null,null,null,null,null,null,null,null,null,null,null,null,null,null,null,null,"Tena"]
[null,121.89999999999719,null,null,null,null,null,null,null,null,null,null,null,null,null,null,null,null,null,null,"Tenerife"]
[null,121.99999999999719,null,null,null,null,null,null,null,null,null,null,null,null,null,null,null,null,null,null,"Tenjo"]
[null,122.09999999999718,null,null,null,null,null,null,null,null,null,null,null,null,null,null,null,null,null,null,"Tenza"]
[null,122.19999999999717,null,null,null,null,null,null,null,null,null,null,null,null,null,null,null,null,null,null,"Teorama"]
[null,122.29999999999717,null,null,null,null,null,null,null,null,null,null,null,null,null,null,null,null,null,null,"Teruel"]
[null,122.39999999999716,null,null,null,null,null,null,null,null,null,null,null,null,null,null,null,null,null,null,"Tesalia"]
[null,122.49999999999716,null,null,null,null,null,null,null,null,null,null,null,null,null,null,null,null,null,null,"Tibacuy"]
[null,122.59999999999715,null,null,null,null,null,null,null,null,null,null,null,null,null,null,null,null,null,null,"Tibaná"]
[null,122.69999999999715,null,null,null,null,null,null,null,null,null,null,null,null,null,null,null,null,null,null,"Tibasosa"]
[null,122.79999999999714,null,null,null,null,null,null,null,null,null,null,null,null,null,null,null,null,null,null,"Tibirita"]
[null,122.89999999999714,null,null,null,null,null,null,null,null,null,null,null,null,null,null,null,null,null,null,"Tibú"]
[null,122.99999999999713,null,null,null,null,null,null,null,null,null,null,null,null,null,null,null,null,null,null,"Tierralta"]
[null,123.09999999999712,null,null,null,null,null,null,null,null,null,null,null,null,null,null,null,null,null,null,"Timaná"]
[null,123.19999999999712,null,null,null,null,null,null,null,null,null,null,null,null,null,null,null,null,null,null,"Timbío"]
[null,123.29999999999711,null,null,null,null,null,null,null,null,null,null,null,null,null,null,null,null,null,null,"Timbiquí"]
[null,123.39999999999711,null,null,null,null,null,null,null,null,null,null,null,null,null,null,null,null,null,null,"Tinjacá"]
[null,123.4999999999971,null,null,null,null,null,null,null,null,null,null,null,null,null,null,null,null,null,null,"Tipacoque"]
[null,123.5999999999971,null,null,null,null,null,null,null,null,null,null,null,null,null,null,null,null,null,null,"Tiquisio"]
[null,123.69999999999709,null,null,null,null,null,null,null,null,null,null,null,null,null,null,null,null,null,null,"Titiribí"]
[null,123.79999999999708,null,null,null,null,null,null,null,null,null,null,null,null,null,null,null,null,null,null,"Toca"]
[null,123.89999999999708,null,null,null,null,null,null,null,null,null,null,null,null,null,null,null,null,null,null,"Tocaima"]
[null,123.99999999999707,null,null,null,null,null,null,null,null,null,null,null,null,null,null,null,null,null,null,"Tocancipá"]
[null,124.09999999999707,null,null,null,null,null,null,null,null,null,null,null,null,null,null,null,null,null,null,"Togüí"]
[null,124.19999999999706,null,null,null,null,null,null,null,null,null,null,null,null,null,null,null,null,null,null,"Toledo"]
[null,124.29999999999706,null,null,null,null,null,null,null,null,null,null,null,null,null,null,null,null,null,null,"Tolú Viejo"]
[null,124.39999999999705,null,null,null,null,null,null,null,null,null,null,null,null,null,null,null,null,null,null,"Tona"]
[null,124.49999999999704,null,null,null,null,null,null,null,null,null,null,null,null,null,null,null,null,null,null,"Tópaga"]
[null,124.59999999999704,null,null,null,null,null,null,null,null,null,null,null,null,null,null,null,null,null,null,"Topaipí"]
[null,124.69999999999703,null,null,null,null,null,null,null,null,null,null,null,null,null,null,null,null,null,null,"Toribío"]
[null,124.79999999999703,null,null,null,null,null,null,null,null,null,null,null,null,null,null,null,null,null,null,"Toro"]
[null,124.89999999999702,null,null,null,null,null,null,null,null,null,null,null,null,null,null,null,null,null,null,"Tota"]
[null,124.99999999999702,null,null,null,null,null,null,null,null,null,null,null,null,null,null,null,null,null,null,"Totoró"]
[null,125.09999999999701,null,null,null,null,null,null,null,null,null,null,null,null,null,null,null,null,null,null,"Trinidad"]
[null,125.199999999997,null,null,null,null,null,null,null,null,null,null,null,null,null,null,null,null,null,null,"Trujillo"]
[null,125.299999999997,null,null,null,null,null,null,null,null,null,null,null,null,null,null,null,null,null,null,"Tubará"]
[null,125.39999999999699,null,null,null,null,null,null,null,null,null,null,null,null,null,null,null,null,null,null,"Tuchín"]
[null,125.49999999999699,null,null,null,null,null,null,null,null,null,null,null,null,null,null,null,null,null,null,"Tuluá"]
[null,125.59999999999698,null,null,null,null,null,null,null,null,null,null,null,null,null,null,null,null,null,null,"Tunja"]
[null,125.69999999999698,null,null,null,null,null,null,null,null,null,null,null,null,null,null,null,null,null,null,"Tununguá"]
[null,125.79999999999697,null,null,null,null,null,null,null,null,null,null,null,null,null,null,null,null,null,null,"Túquerres"]
[null,125.89999999999696,null,null,null,null,null,null,null,null,null,null,null,null,null,null,null,null,null,null,"Turbaco"]
[null,125.99999999999696,null,null,null,null,null,null,null,null,null,null,null,null,null,null,null,null,null,null,"Turbaná"]
[null,{"$f":"B965+0.1","v":126.09999999999695},null,null,null,null,null,null,null,null,null,null,null,null,null,null,null,null,null,null,"Turbo"]
[null,126.19999999999695,null,null,null,null,null,null,null,null,null,null,null,null,null,null,null,null,null,null,"Turmequé"]
[null,126.29999999999694,null,null,null,null,null,null,null,null,null,null,null,null,null,null,null,null,null,null,"Tuta"]
[null,126.39999999999694,null,null,null,null,null,null,null,null,null,null,null,null,null,null,null,null,null,null,"Tutazá"]
[null,126.49999999999693,null,null,null,null,null,null,null,null,null,null,null,null,null,null,null,null,null,null,"Ubalá"]
[null,126.59999999999692,null,null,null,null,null,null,null,null,null,null,null,null,null,null,null,null,null,null,"Ubaque"]
[null,126.69999999999692,null,null,null,null,null,null,null,null,null,null,null,null,null,null,null,null,null,null,"Ulloa"]
[null,126.79999999999691,null,null,null,null,null,null,null,null,null,null,null,null,null,null,null,null,null,null,"Úmbita"]
[null,126.89999999999691,null,null,null,null,null,null,null,null,null,null,null,null,null,null,null,null,null,null,"Une"]
[null,126.9999999999969,null,null,null,null,null,null,null,null,null,null,null,null,null,null,null,null,null,null,"Unguía"]
[null,127.0999999999969,null,null,null,null,null,null,null,null,null,null,null,null,null,null,null,null,null,null,"Unión Panamericana"]
[null,127.19999999999689,null,null,null,null,null,null,null,null,null,null,null,null,null,null,null,null,null,null,"Uramita"]
[null,127.29999999999688,null,null,null,null,null,null,null,null,null,null,null,null,null,null,null,null,null,null,"Uribe"]
[null,127.39999999999688,null,null,null,null,null,null,null,null,null,null,null,null,null,null,null,null,null,null,"Uribia"]
[null,127.49999999999687,null,null,null,null,null,null,null,null,null,null,null,null,null,null,null,null,null,null,"Urrao"]
[null,127.59999999999687,null,null,null,null,null,null,null,null,null,null,null,null,null,null,null,null,null,null,"Urumita"]
[null,127.69999999999686,null,null,null,null,null,null,null,null,null,null,null,null,null,null,null,null,null,null,"Usiacurí"]
[null,127.79999999999686,null,null,null,null,null,null,null,null,null,null,null,null,null,null,null,null,null,null,"Útica"]
[null,127.89999999999685,null,null,null,null,null,null,null,null,null,null,null,null,null,null,null,null,null,null,"Valdivia"]
[null,127.99999999999685,null,null,null,null,null,null,null,null,null,null,null,null,null,null,null,null,null,null,"Valencia"]
[null,128.09999999999684,null,null,null,null,null,null,null,null,null,null,null,null,null,null,null,null,null,null,"Valle De San José"]
[null,128.19999999999683,null,null,null,null,null,null,null,null,null,null,null,null,null,null,null,null,null,null,"Valle De San Juan"]
[null,128.29999999999683,null,null,null,null,null,null,null,null,null,null,null,null,null,null,null,null,null,null,"Valle Del Guamuez"]
[null,128.39999999999682,null,null,null,null,null,null,null,null,null,null,null,null,null,null,null,null,null,null,"Valledupar"]
[null,128.49999999999682,null,null,null,null,null,null,null,null,null,null,null,null,null,null,null,null,null,null,"Valparaíso"]
[null,128.59999999999681,null,null,null,null,null,null,null,null,null,null,null,null,null,null,null,null,null,null,"Vegachí"]
[null,128.69999999999681,null,null,null,null,null,null,null,null,null,null,null,null,null,null,null,null,null,null,"Vélez"]
[null,128.7999999999968,null,null,null,null,null,null,null,null,null,null,null,null,null,null,null,null,null,null,"Venadillo"]
[null,128.89999999999679,null,null,null,null,null,null,null,null,null,null,null,null,null,null,null,null,null,null,"Venecia"]
[null,128.99999999999679,null,null,null,null,null,null,null,null,null,null,null,null,null,null,null,null,null,null,"Ventaquemada"]
[null,129.09999999999678,null,null,null,null,null,null,null,null,null,null,null,null,null,null,null,null,null,null,"Vergara"]
[null,129.19999999999678,null,null,null,null,null,null,null,null,null,null,null,null,null,null,null,null,null,null,"Versalles"]
[null,129.29999999999677,null,null,null,null,null,null,null,null,null,null,null,null,null,null,null,null,null,null,"Vetas"]
[null,129.39999999999677,null,null,null,null,null,null,null,null,null,null,null,null,null,null,null,null,null,null,"Vianí"]
[null,129.49999999999676,null,null,null,null,null,null,null,null,null,null,null,null,null,null,null,null,null,null,"Victoria"]
[null,129.59999999999675,null,null,null,null,null,null,null,null,null,null,null,null,null,null,null,null,null,null,"Vigía Del Fuerte"]
[null,129.69999999999675,null,null,null,null,null,null,null,null,null,null,null,null,null,null,null,null,null,null,"Vijes"]
[null,129.79999999999674,null,null,null,null,null,null,null,null,null,null,null,null,null,null,null,null,null,null,"Villa Caro"]
[null,129.89999999999674,null,null,null,null,null,null,null,null,null,null,null,null,null,null,null,null,null,null,"Villa De Leyva"]
[null,129.99999999999673,null,null,null,null,null,null,null,null,null,null,null,null,null,null,null,null,null,null,"Villa De San Diego De Ubaté"]
[null,130.09999999999673,null,null,null,null,null,null,null,null,null,null,null,null,null,null,null,null,null,null,"Villa Del Rosario"]
[null,130.19999999999672,null,null,null,null,null,null,null,null,null,null,null,null,null,null,null,null,null,null,"Villa Rica"]
[null,130.29999999999671,null,null,null,null,null,null,null,null,null,null,null,null,null,null,null,null,null,null,"Villagarzón"]
[null,130.39999999999671,null,null,null,null,null,null,null,null,null,null,null,null,null,null,null,null,null,null,"Villagómez"]
[null,130.4999999999967,null,null,null,null,null,null,null,null,null,null,null,null,null,null,null,null,null,null,"Villahermosa"]
[null,130.5999999999967,null,null,null,null,null,null,null,null,null,null,null,null,null,null,null,null,null,null,"Villamaría"]
[null,130.69999999999669,null,null,null,null,null,null,null,null,null,null,null,null,null,null,null,null,null,null,"Villanueva"]
[null,130.79999999999669,null,null,null,null,null,null,null,null,null,null,null,null,null,null,null,null,null,null,"Villapinzón"]
[null,130.89999999999668,null,null,null,null,null,null,null,null,null,null,null,null,null,null,null,null,null,null,"Villarrica"]
[null,130.99999999999667,null,null,null,null,null,null,null,null,null,null,null,null,null,null,null,null,null,null,"Villavicencio"]
[null,131.09999999999667,null,null,null,null,null,null,null,null,null,null,null,null,null,null,null,null,null,null,"Villavieja"]
[null,131.19999999999666,null,null,null,null,null,null,null,null,null,null,null,null,null,null,null,null,null,null,"Villeta"]
[null,131.29999999999666,null,null,null,null,null,null,null,null,null,null,null,null,null,null,null,null,null,null,"Viotá"]
[null,131.39999999999665,null,null,null,null,null,null,null,null,null,null,null,null,null,null,null,null,null,null,"Viracachá"]
[null,131.49999999999665,null,null,null,null,null,null,null,null,null,null,null,null,null,null,null,null,null,null,"Vistahermosa"]
[null,131.59999999999664,null,null,null,null,null,null,null,null,null,null,null,null,null,null,null,null,null,null,"Viterbo"]
[null,131.69999999999663,null,null,null,null,null,null,null,null,null,null,null,null,null,null,null,null,null,null,"Yacopí"]
[null,131.79999999999663,null,null,null,null,null,null,null,null,null,null,null,null,null,null,null,null,null,null,"Yacuanquer"]
[null,131.89999999999662,null,null,null,null,null,null,null,null,null,null,null,null,null,null,null,null,null,null,"Yaguará"]
[null,131.99999999999662,null,null,null,null,null,null,null,null,null,null,null,null,null,null,null,null,null,null,"Yalí"]
[null,132.09999999999661,null,null,null,null,null,null,null,null,null,null,null,null,null,null,null,null,null,null,"Yarumal"]
[null,132.19999999999661,null,null,null,null,null,null,null,null,null,null,null,null,null,null,null,null,null,null,"Yavaraté"]
[null,132.2999999999966,null,null,null,null,null,null,null,null,null,null,null,null,null,null,null,null,null,null,"Yolombó"]
[null,132.3999999999966,null,null,null,null,null,null,null,null,null,null,null,null,null,null,null,null,null,null,"Yondó"]
[null,{"$f":"B1029+0.1","v":132.49999999999659},null,null,null,null,null,null,null,null,null,null,null,null,null,null,null,null,null,null,"Yopal"]
[null,132.59999999999658,null,null,null,null,null,null,null,null,null,null,null,null,null,null,null,null,null,null,"Yotoco"]
[null,132.69999999999658,null,null,null,null,null,null,null,null,null,null,null,null,null,null,null,null,null,null,"Yumbo"]
[null,132.79999999999657,null,null,null,null,null,null,null,null,null,null,null,null,null,null,null,null,null,null,"Zambrano"]
[null,132.89999999999657,null,null,null,null,null,null,null,null,null,null,null,null,null,null,null,null,null,null,"Zapatoca"]
[null,132.99999999999656,null,null,null,null,null,null,null,null,null,null,null,null,null,null,null,null,null,null,"Zapayán"]
[null,133.09999999999656,null,null,null,null,null,null,null,null,null,null,null,null,null,null,null,null,null,null,"Zaragoza"]
[null,133.19999999999655,null,null,null,null,null,null,null,null,null,null,null,null,null,null,null,null,null,null,"Zarzal"]
[null,133.29999999999654,null,null,null,null,null,null,null,null,null,null,null,null,null,null,null,null,null,null,"Zetaquira"]
[null,133.39999999999654,null,null,null,null,null,null,null,null,null,null,null,null,null,null,null,null,null,null,"Zipacón"]
[null,133.49999999999653,null,null,null,null,null,null,null,null,null,null,null,null,null,null,null,null,null,null,"Zipaquirá"]
[null,133.59999999999653,null,null,null,null,null,null,null,null,null,null,null,null,null,null,null,null,null,null,"Zona Bananera"]
[null,133.69999999999652,null,null,null,null,null,null,null,null,null,null,null,null,null,null,null,null,null,null,"Turbaco"]
[null,133.79999999999652,null,null,null,null,null,null,null,null,null,null,null,null,null,null,null,null,null,null,"Turbana"]
[null,133.89999999999651,null,null,null,null,null,null,null,null,null,null,null,null,null,null,null,null,null,null,"Turbo"]
[null,133.9999999999965,null,null,null,null,null,null,null,null,null,null,null,null,null,null,null,null,null,null,"Turmeque"]
[null,134.0999999999965,null,null,null,null,null,null,null,null,null,null,null,null,null,null,null,null,null,null,"Tuta"]
[null,134.19999999999649,null,null,null,null,null,null,null,null,null,null,null,null,null,null,null,null,null,null,"Tutaza"]
[null,134.29999999999649,null,null,null,null,null,null,null,null,null,null,null,null,null,null,null,null,null,null,"Ubala"]
[null,134.39999999999648,null,null,null,null,null,null,null,null,null,null,null,null,null,null,null,null,null,null,"Ubaque"]
[null,134.49999999999648,null,null,null,null,null,null,null,null,null,null,null,null,null,null,null,null,null,null,"Ulloa"]
[null,134.59999999999647,null,null,null,null,null,null,null,null,null,null,null,null,null,null,null,null,null,null,"Umbita"]
[null,134.69999999999646,null,null,null,null,null,null,null,null,null,null,null,null,null,null,null,null,null,null,"Une"]
[null,134.79999999999646,null,null,null,null,null,null,null,null,null,null,null,null,null,null,null,null,null,null,"Unguia"]
[null,134.89999999999645,null,null,null,null,null,null,null,null,null,null,null,null,null,null,null,null,null,null,"Union Panamericana"]
[null,134.99999999999645,null,null,null,null,null,null,null,null,null,null,null,null,null,null,null,null,null,null,"Uramita"]
[null,135.09999999999644,null,null,null,null,null,null,null,null,null,null,null,null,null,null,null,null,null,null,"Uribe"]
[null,135.19999999999644,null,null,null,null,null,null,null,null,null,null,null,null,null,null,null,null,null,null,"Uribia"]
[null,135.29999999999643,null,null,null,null,null,null,null,null,null,null,null,null,null,null,null,null,null,null,"Urrao"]
[null,135.39999999999642,null,null,null,null,null,null,null,null,null,null,null,null,null,null,null,null,null,null,"Urumita"]
[null,135.49999999999642,null,null,null,null,null,null,null,null,null,null,null,null,null,null,null,null,null,null,"Usiacuri"]
[null,135.59999999999641,null,null,null,null,null,null,null,null,null,null,null,null,null,null,null,null,null,null,"Utica"]
[null,135.69999999999641,null,null,null,null,null,null,null,null,null,null,null,null,null,null,null,null,null,null,"Valdivia"]
[null,135.7999999999964,null,null,null,null,null,null,null,null,null,null,null,null,null,null,null,null,null,null,"Valencia"]
[null,135.8999999999964,null,null,null,null,null,null,null,null,null,null,null,null,null,null,null,null,null,null,"Valle De San Jose"]
[null,135.99999999999639,null,null,null,null,null,null,null,null,null,null,null,null,null,null,null,null,null,null,"Valle De San Juan"]
[null,136.09999999999638,null,null,null,null,null,null,null,null,null,null,null,null,null,null,null,null,null,null,"Valle Del Guamuez"]
[null,136.19999999999638,null,null,null,null,null,null,null,null,null,null,null,null,null,null,null,null,null,null,"Valledupar"]
[null,136.29999999999637,null,null,null,null,null,null,null,null,null,null,null,null,null,null,null,null,null,null,"Valparaiso"]
[null,136.39999999999637,null,null,null,null,null,null,null,null,null,null,null,null,null,null,null,null,null,null,"Valparaiso"]
[null,136.49999999999636,null,null,null,null,null,null,null,null,null,null,null,null,null,null,null,null,null,null,"Vegachi"]
[null,136.59999999999636,null,null,null,null,null,null,null,null,null,null,null,null,null,null,null,null,null,null,"Velez"]
[null,136.69999999999635,null,null,null,null,null,null,null,null,null,null,null,null,null,null,null,null,null,null,"Venadillo"]
[null,136.79999999999634,null,null,null,null,null,null,null,null,null,null,null,null,null,null,null,null,null,null,"Venecia"]
[null,136.89999999999634,null,null,null,null,null,null,null,null,null,null,null,null,null,null,null,null,null,null,"Venecia"]
[null,136.99999999999633,null,null,null,null,null,null,null,null,null,null,null,null,null,null,null,null,null,null,"Ventaquemada"]
[null,137.09999999999633,null,null,null,null,null,null,null,null,null,null,null,null,null,null,null,null,null,null,"Vergara"]
[null,137.19999999999632,null,null,null,null,null,null,null,null,null,null,null,null,null,null,null,null,null,null,"Versalles"]
[null,137.29999999999632,null,null,null,null,null,null,null,null,null,null,null,null,null,null,null,null,null,null,"Vetas"]
[null,137.39999999999631,null,null,null,null,null,null,null,null,null,null,null,null,null,null,null,null,null,null,"Viani"]
[null,137.49999999999631,null,null,null,null,null,null,null,null,null,null,null,null,null,null,null,null,null,null,"Victoria"]
[null,137.5999999999963,null,null,null,null,null,null,null,null,null,null,null,null,null,null,null,null,null,null,"Vigia Del Fuerte"]
[null,137.69999999999629,null,null,null,null,null,null,null,null,null,null,null,null,null,null,null,null,null,null,"Vijes"]
[null,137.79999999999629,null,null,null,null,null,null,null,null,null,null,null,null,null,null,null,null,null,null,"Villa Caro"]
[null,137.89999999999628,null,null,null,null,null,null,null,null,null,null,null,null,null,null,null,null,null,null,"Villa De Leyva"]
[null,137.99999999999628,null,null,null,null,null,null,null,null,null,null,null,null,null,null,null,null,null,null,"Villa De San Diego De Ubate"]
[null,138.09999999999627,null,null,null,null,null,null,null,null,null,null,null,null,null,null,null,null,null,null,"Villa Del Rosario"]
[null,138.19999999999627,null,null,null,null,null,null,null,null,null,null,null,null,null,null,null,null,null,null,"Villa Rica"]
[null,138.29999999999626,null,null,null,null,null,null,null,null,null,null,null,null,null,null,null,null,null,null,"Villagarzon"]
[null,138.39999999999625,null,null,null,null,null,null,null,null,null,null,null,null,null,null,null,null,null,null,"Villagomez"]
[null,138.49999999999625,null,null,null,null,null,null,null,null,null,null,null,null,null,null,null,null,null,null,"Villahermosa"]
[null,138.59999999999624,null,null,null,null,null,null,null,null,null,null,null,null,null,null,null,null,null,null,"Villamaria"]
[null,138.69999999999624,null,null,null,null,null,null,null,null,null,null,null,null,null,null,null,null,null,null,"Villanueva"]
[null,138.79999999999623,null,null,null,null,null,null,null,null,null,null,null,null,null,null,null,null,null,null,"Villanueva"]
[null,138.89999999999623,null,null,null,null,null,null,null,null,null,null,null,null,null,null,null,null,null,null,"Villanueva"]
[null,138.99999999999622,null,null,null,null,null,null,null,null,null,null,null,null,null,null,null,null,null,null,"Villanueva"]
[null,{"$f":"B1095+0.1","v":139.09999999999621},null,null,null,null,null,null,null,null,null,null,null,null,null,null,null,null,null,null,"Villapinzon"]
[null,139.19999999999621,null,null,null,null,null,null,null,null,null,null,null,null,null,null,null,null,null,null,"Villarrica"]
[null,139.2999999999962,null,null,null,null,null,null,null,null,null,null,null,null,null,null,null,null,null,null,"Villavicencio"]
[null,139.3999999999962,null,null,null,null,null,null,null,null,null,null,null,null,null,null,null,null,null,null,"Villavieja"]
[null,139.49999999999619,null,null,null,null,null,null,null,null,null,null,null,null,null,null,null,null,null,null,"Villeta"]
[null,139.59999999999619,null,null,null,null,null,null,null,null,null,null,null,null,null,null,null,null,null,null,"Viota"]
[null,139.69999999999618,null,null,null,null,null,null,null,null,null,null,null,null,null,null,null,null,null,null,"Viracacha"]
[null,139.79999999999617,null,null,null,null,null,null,null,null,null,null,null,null,null,null,null,null,null,null,"Vistahermosa"]
[null,139.89999999999617,null,null,null,null,null,null,null,null,null,null,null,null,null,null,null,null,null,null,"Viterbo"]
[null,139.99999999999616,null,null,null,null,null,null,null,null,null,null,null,null,null,null,null,null,null,null,"Yacopi"]
[null,140.09999999999616,null,null,null,null,null,null,null,null,null,null,null,null,null,null,null,null,null,null,"Yacuanquer"]
[null,140.19999999999615,null,null,null,null,null,null,null,null,null,null,null,null,null,null,null,null,null,null,"Yaguara"]
[null,140.29999999999615,null,null,null,null,null,null,null,null,null,null,null,null,null,null,null,null,null,null,"Yali"]
[null,140.39999999999614,null,null,null,null,null,null,null,null,null,null,null,null,null,null,null,null,null,null,"Yarumal"]
[null,140.49999999999613,null,null,null,null,null,null,null,null,null,null,null,null,null,null,null,null,null,null,"Yavarate"]
[null,140.59999999999613,null,null,null,null,null,null,null,null,null,null,null,null,null,null,null,null,null,null,"Yolombo"]
[null,140.69999999999612,null,null,null,null,null,null,null,null,null,null,null,null,null,null,null,null,null,null,"Yondo"]
[null,140.79999999999612,null,null,null,null,null,null,null,null,null,null,null,null,null,null,null,null,null,null,"Yopal"]
[null,140.89999999999611,null,null,null,null,null,null,null,null,null,null,null,null,null,null,null,null,null,null,"Yotoco"]
[null,140.99999999999611,null,null,null,null,null,null,null,null,null,null,null,null,null,null,null,null,null,null,"Yumbo"]
[null,141.0999999999961,null,null,null,null,null,null,null,null,null,null,null,null,null,null,null,null,null,null,"Zambrano"]
[null,141.19999999999609,null,null,null,null,null,null,null,null,null,null,null,null,null,null,null,null,null,null,"Zapatoca"]
[null,141.29999999999609,null,null,null,null,null,null,null,null,null,null,null,null,null,null,null,null,null,null,"Zapayan"]
[null,141.39999999999608,null,null,null,null,null,null,null,null,null,null,null,null,null,null,null,null,null,null,"Zaragoza"]
[null,141.49999999999608,null,null,null,null,null,null,null,null,null,null,null,null,null,null,null,null,null,null,"Zarzal"]
[null,141.59999999999607,null,null,null,null,null,null,null,null,null,null,null,null,null,null,null,null,null,null,"Zetaquira"]
[null,141.69999999999607,null,null,null,null,null,null,null,null,null,null,null,null,null,null,null,null,null,null,"Zipacon"]
[null,141.79999999999606,null,null,null,null,null,null,null,null,null,null,null,null,null,null,null,null,null,null,"Zipaquira"]
[null,141.89999999999606,null,null,null,null,null,null,null,null,null,null,null,null,null,null,null,null,null,null,"Zona Bananera"]
[null,141.99999999999605]
[null,142.09999999999604]
[null,142.19999999999604]
[null,142.29999999999603]
[null,142.39999999999603]
[null,142.49999999999602]
[null,142.59999999999602]
[null,142.69999999999601]
[null,142.799999999996]
[null,142.899999999996]
[null,142.99999999999599]
[null,143.09999999999599]
[null,143.19999999999598]
[null,143.29999999999598]
[null,143.39999999999597]
[null,143.49999999999596]
[null,143.59999999999596]
[null,143.69999999999595]
[null,{"$f":"B1142+0.1","v":143.79999999999595}]
[null,143.89999999999594]
[null,143.99999999999594]
[null,144.09999999999593]
[null,144.19999999999592]
[null,144.29999999999592]
[null,144.39999999999591]
[null,144.49999999999591]
[null,144.5999999999959]
[null,144.6999999999959]
[null,144.79999999999589]
[null,144.89999999999588]
[null,{"$f":"B1154+0.1","v":144.99999999999588}]
[null,145.09999999999587]
[null,145.19999999999587]
[null,145.29999999999586]
[null,145.39999999999586]
[null,{"$f":"B1159+0.1","v":145.49999999999585}]
[null,145.59999999999584]
[null,145.69999999999584]
[null,145.79999999999583]
[null,145.89999999999583]
[null,145.99999999999582]
[null,146.09999999999582]
[null,146.19999999999581]
[null,146.2999999999958]
[null,146.3999999999958]
[null,146.49999999999579]
[null,{"$f":"B1170+0.1","v":146.59999999999579}]
[null,{"$f":"B1171+0.1","v":146.69999999999578}]
[null,146.79999999999578]
[null,146.89999999999577]
[null,146.99999999999577]
[null,147.09999999999576]
[null,147.19999999999575]
[null,147.29999999999575]
[null,147.39999999999574]
[null,147.49999999999574]
[null,147.59999999999573]
[null,{"$f":"B1181+0.1","v":147.69999999999573}]
[null,{"$f":"B1182+0.1","v":147.79999999999572}]
[null,147.89999999999571]
[null,147.99999999999571]
[null,148.0999999999957]
[null,148.1999999999957]
[null,148.29999999999569]
[null,148.39999999999569]
[null,148.49999999999568]
[null,148.59999999999567]
[null,{"$f":"B1191+0.1","v":148.69999999999567}]
[null,{"$f":"B1192+0.1","v":148.79999999999566}]
[null,148.89999999999566]
[null,148.99999999999565]
[null,149.09999999999565]
[null,{"$f":"B1196+0.1","v":149.19999999999564}]
[null,{"$f":"B1197+0.1","v":149.29999999999563}]
[null,149.39999999999563]
[null,149.49999999999562]
[null,149.59999999999562]
[null,{"$f":"B1201+0.1","v":149.69999999999561}]
[null,{"$f":"B1202+0.1","v":149.79999999999561}]
[null,149.8999999999956]
[null,{"$f":"B1204+0.1","v":149.99999999999559}]
[null,{"$f":"B1205+0.1","v":150.09999999999559}]
[null,150.19999999999558]
[null,150.29999999999558]
[null,150.39999999999557]
[null,150.49999999999557]
[null,150.59999999999556]
[null,150.69999999999555]
[null,150.79999999999555]
[null,150.89999999999554]
[null,150.99999999999554]
[null,151.09999999999553]
[null,151.19999999999553]
[null,151.29999999999552]
[null,151.39999999999552]
[null,151.49999999999551]
[null,151.5999999999955]
[null,151.6999999999955]
[null,151.79999999999549]
[null,151.89999999999549]
[null,151.99999999999548]
[null,152.09999999999548]
[null,152.19999999999547]
[null,152.29999999999546]
[null,152.39999999999546]
[null,152.49999999999545]
[null,152.59999999999545]
[null,152.69999999999544]
[null,152.79999999999544]
[null,152.89999999999543]
[null,152.99999999999542]
[null,153.09999999999542]
[null,153.19999999999541]
[null,153.29999999999541]
[null,153.3999999999954]
[null,153.4999999999954]
[null,153.59999999999539]
[null,153.69999999999538]
[null,153.79999999999538]
[null,153.89999999999537]
[null,153.99999999999537]
[null,154.09999999999536]
[null,154.19999999999536]
[null,154.29999999999535]
[null,154.39999999999534]
[null,154.49999999999534]
[null,154.59999999999533]
[null,154.69999999999533]
[null,154.79999999999532]
[null,154.89999999999532]
[null,154.99999999999531]
[null,155.0999999999953]
[null,155.1999999999953]
[null,155.29999999999529]
[null,155.39999999999529]
[null,155.49999999999528]
[null,155.59999999999528]
[null,155.69999999999527]
[null,155.79999999999526]
[null,155.89999999999526]
[null,155.99999999999525]
[null,156.09999999999525]
[null,156.19999999999524]
[null,156.29999999999524]
[null,156.39999999999523]
[null,{"$f":"B1269+0.1","v":156.49999999999523}]
[null,156.59999999999522]
[null,156.69999999999521]
[null,156.79999999999521]
[null,156.8999999999952]
[null,156.9999999999952]
[null,157.09999999999519]
[null,157.19999999999519]
[null,157.29999999999518]
[null,157.39999999999517]
[null,157.49999999999517]
[null,157.59999999999516]
[null,157.69999999999516]
[null,157.79999999999515]
[null,157.89999999999515]
[null,157.99999999999514]
[null,158.09999999999513]
[null,158.19999999999513]
[null,158.29999999999512]
[null,158.39999999999512]
[null,158.49999999999511]
[null,158.59999999999511]
[null,158.6999999999951]
[null,158.79999999999509]
[null,158.89999999999509]
[null,158.99999999999508]
[null,159.09999999999508]
[null,159.19999999999507]
[null,159.29999999999507]
[null,159.39999999999506]
[null,159.49999999999505]
[null,159.59999999999505]
[null,159.69999999999504]
[null,159.79999999999504]
[null,159.89999999999503]
[null,159.99999999999503]
[null,160.09999999999502]
[null,160.19999999999501]
[null,160.29999999999501]
[null,160.399999999995]
[null,160.499999999995]
[null,160.59999999999499]
[null,160.69999999999499]
[null,160.79999999999498]
[null,160.89999999999498]
[null,160.99999999999497]
[null,161.09999999999496]
[null,161.19999999999496]
[null,161.29999999999495]
[null,161.39999999999495]
[null,161.49999999999494]
[null,161.59999999999494]
[null,161.69999999999493]
[null,161.79999999999492]
[null,161.89999999999492]
[null,161.99999999999491]
[null,162.09999999999491]
[null,162.1999999999949]
[null,162.2999999999949]
[null,162.39999999999489]
[null,162.49999999999488]
[null,162.59999999999488]
[null,162.69999999999487]
[null,162.79999999999487]
[null,{"$f":"B1333+0.1","v":162.89999999999486}]
[null,162.99999999999486]
[null,163.09999999999485]
[null,163.19999999999484]
[null,163.29999999999484]
[null,163.39999999999483]
[null,163.49999999999483]
[null,163.59999999999482]
[null,163.69999999999482]
[null,163.79999999999481]
[null,163.8999999999948]
[null,163.9999999999948]
[null,164.09999999999479]
[null,164.19999999999479]
[null,164.29999999999478]
[null,164.39999999999478]
[null,164.49999999999477]
[null,164.59999999999476]
[null,164.69999999999476]
[null,164.79999999999475]
[null,164.89999999999475]
[null,164.99999999999474]
[null,165.09999999999474]
[null,165.19999999999473]
[null,165.29999999999472]
[null,165.39999999999472]
[null,165.49999999999471]
[null,165.59999999999471]
[null,165.6999999999947]
[null,165.7999999999947]
[null,165.89999999999469]
[null,165.99999999999469]
[null,166.09999999999468]
[null,166.19999999999467]
[null,166.29999999999467]
[null,166.39999999999466]
[null,166.49999999999466]
[null,166.59999999999465]
[null,166.69999999999465]
[null,166.79999999999464]
[null,166.89999999999463]
[null,166.99999999999463]
[null,167.09999999999462]
[null,167.19999999999462]
[null,167.29999999999461]
[null,167.39999999999461]
[null,167.4999999999946]
[null,167.59999999999459]
[null,167.69999999999459]
[null,167.79999999999458]
[null,167.89999999999458]
[null,167.99999999999457]
[null,168.09999999999457]
[null,168.19999999999456]
[null,168.29999999999455]
[null,168.39999999999455]
[null,168.49999999999454]
[null,168.59999999999454]
[null,168.69999999999453]
[null,168.79999999999453]
[null,168.89999999999452]
[null,168.99999999999451]
[null,169.09999999999451]
[null,169.1999999999945]
[null,{"$f":"B1397+0.1","v":169.2999999999945}]
[null,169.39999999999449]
[null,169.49999999999449]
[null,169.59999999999448]
[null,169.69999999999447]
[null,169.79999999999447]
[null,{"$f":"B1403+0.1","v":169.89999999999446}]
[null,{"$f":"B1404+0.1","v":169.99999999999446}]
[null,170.09999999999445]
[null,170.19999999999445]
[null,170.29999999999444]
[null,170.39999999999444]
[null,170.49999999999443]
[null,170.59999999999442]
[null,170.69999999999442]
[null,170.79999999999441]
[null,170.89999999999441]
[null,170.9999999999944]
[null,171.0999999999944]
[null,171.19999999999439]
[null,171.29999999999438]
[null,171.39999999999438]
[null,171.49999999999437]
[null,{"$f":"B1420+0.1","v":171.59999999999437}]
[null,{"$f":"B1421+0.1","v":171.69999999999436}]
[null,171.79999999999436]
[null,171.89999999999435]
[null,171.99999999999434]
[null,172.09999999999434]
[null,172.19999999999433]
[null,172.29999999999433]
[null,172.39999999999432]
[null,172.49999999999432]
[null,172.59999999999431]
[null,172.6999999999943]
[null,172.7999999999943]
[null,172.89999999999429]
[null,172.99999999999429]
[null,173.09999999999428]
[null,173.19999999999428]
[null,173.29999999999427]
[null,173.39999999999426]
[null,{"$f":"B1439+0.1","v":173.49999999999426}]
[null,{"$f":"B1440+0.1","v":173.59999999999425}]
[null,173.69999999999425]
[null,173.79999999999424]
[null,173.89999999999424]
[null,173.99999999999423]
[null,174.09999999999422]
[null,174.19999999999422]
[null,174.29999999999421]
[null,174.39999999999421]
[null,174.4999999999942]
[null,174.5999999999942]
[null,174.69999999999419]
[null,174.79999999999418]
[null,174.89999999999418]
[null,174.99999999999417]
[null,175.09999999999417]
[null,175.19999999999416]
[null,175.29999999999416]
[null,175.39999999999415]
[null,{"$f":"B1459+0.1","v":175.49999999999415}]
[null,{"$f":"B1460+0.1","v":175.59999999999414}]
[null,175.69999999999413]
[null,175.79999999999413]
[null,175.89999999999412]
[null,175.99999999999412]
[null,176.09999999999411]
[null,176.19999999999411]
[null,176.2999999999941]
[null,176.39999999999409]
[null,176.49999999999409]
[null,176.59999999999408]
[null,176.69999999999408]
[null,{"$f":"B1472+0.1","v":176.79999999999407}]
[null,{"$f":"B1473+0.1","v":176.89999999999407}]
[null,176.99999999999406]
[null,177.09999999999405]
[null,177.19999999999405]
[null,177.29999999999404]
[null,177.39999999999404]
[null,177.49999999999403]
[null,177.59999999999403]
[null,177.69999999999402]
[null,177.79999999999401]
[null,177.89999999999401]
[null,177.999999999994]
[null,178.099999999994]
[null,178.19999999999399]
[null,178.29999999999399]
[null,{"$f":"B1488+0.1","v":178.39999999999398}]
[null,{"$f":"B1489+0.1","v":178.49999999999397}]
[null,178.59999999999397]
[null,178.69999999999396]
[null,178.79999999999396]
[null,178.89999999999395]
[null,178.99999999999395]
[null,179.09999999999394]
[null,179.19999999999393]
[null,179.29999999999393]
[null,{"$f":"B1498+0.1","v":179.39999999999392}]
[null,{"$f":"B1499+0.1","v":179.49999999999392}]
[null,{"$f":"B1500+0.1","v":179.59999999999391}]
[null,{"$f":"B1501+0.1","v":179.69999999999391}]
[null,179.7999999999939]
[null,179.8999999999939]
[null,179.99999999999389]